Workbook

Sheet 项目
B1: 江苏省基本医疗保险诊疗项目和医疗服务设施范围及支付标准（20251027）
A2: 序号 | B2: 收费 项目 编码 | C2: 收费项目名称 | D2: 国家医疗服务项目代码 | E2: 国家医疗服务项目名称 | F2: 项目内涵 | G2: 除外内容 | H2: 医保支付类别 | I2: 计价 单位 | J2: 医院价格（元） | M2: 说明 | N2: 变更类别
B3: 一、综合医疗服务类 | M3: 1．本类包括一般医疗服务、一般检查治疗、社区卫生及预防保健项目和其它医疗服务项目4个二级分类。2．护理项目(分类码1201)实行分级别指导性价格。3．多科室共同使用的医疗服务项目列入本类之中，如护理、抢救、注射、换药等等。
B4: 11 | C4: (一)一般医疗服务
B5: 1101 | C5: 1.挂号费 | M5: 患者一次为诊断一种疾病，涉及两个以上科室的，当日只收一次挂号费和诊察费。
A6: 1 | B6: 110100001-b | C6: 门诊病历手册 | D6: 001101000010000 | E6: 挂号费 | H6: 丙 | I6: 册 | J6: 1.0
B7: 1102 | C7: 2.诊察费 | F7: 含挂号费、药事服务费，含门诊、急诊及其为患者提供候诊就诊设施条件、诊断书、收费清单 | M7: 门诊注射、换药、针灸、理疗、推拿、血透、放射治疗疗程中不再收取诊察费。对只取药及慢性病病人定期化验，不需另外提供新的治疗方案的，应提供方便通道。
A8: =MAX(A$2:A7)+1 -> 2 | B8: 110200001 | C8: 门诊诊察费（儿童专科晚间） | D8: 001102000010000 | E8: 普通门诊诊查费 | F8: 挂号，核实患儿信息，就诊病历传送，病案管理，询问病情，听取主诉，病史采集，向患儿或家属告知，进行一般物理检查，书写病历，开具检查单，根据病情提供治疗方案（治疗单、处方）等。 | H8: 甲 | I8: 次
A9: =MAX(A$2:A8)+1 -> 3 | B9: 110200001-a | C9: 普通门诊诊察费（儿童专科晚间） | D9: 001102000010000 | E9: 普通门诊诊查费 | F9: 指主治及以下医师提供的晚间普通门诊诊疗服务。 | H9: 乙 | I9: 次 | J9: 30.0 | M9: 限儿童专科医院
A10: =MAX(A$2:A9)+1 -> 4 | B10: 110200001-b | C10: 普通门诊诊察费（儿童专科晚间） | D10: 001102000010000 | E10: 普通门诊诊查费 | F10: 指主治及以下医师提供的晚间普通门诊诊疗服务。 | H10: 乙 | I10: 次 | J10: 24.0 | M10: 指综合性医院、中医院，三类医院
A11: =MAX(A$2:A10)+1 -> 5 | B11: 110200001-c | C11: 普通门诊诊察费（儿童专科晚间） | D11: 001102000010000 | E11: 普通门诊诊查费 | F11: 指主治及以下医师提供的晚间普通门诊诊疗服务。 | H11: 乙 | I11: 次 | M11: 指综合性医院、中医院，二类医院
A12: =MAX(A$2:A11)+1 -> 6 | B12: 110200001-d | C12: 副主任医师普通门诊诊察费（儿童专科晚间） | D12: 001102000020200 | E12: 专家门诊诊查费(副主任医师) | F12: 指副主任医师提供的晚间门诊诊疗服务 | H12: 乙 | I12: 次 | M12: 指综合性医院、中医院，二类医院
A13: =MAX(A$2:A12)+1 -> 7 | B13: 110200001-e | C13: 主任医师普通门诊诊察费（儿童专科晚间） | D13: 001102000020100 | E13: 专家门诊诊查费(主任医师) | F13: 指主任医师提供的晚间门诊诊疗服务 | H13: 乙 | I13: 次 | M13: 指综合性医院、中医院，二类医院
A14: =MAX(A$2:A13)+1 -> 8 | B14: 110200001-f | C14: 专家门诊诊察费（儿童专科晚间） | D14: 001102000020200 | E14: 专家门诊诊查费(副主任医师) | F14: 指由副主任医师及以上在晚间专家门诊提供技术劳务的诊疗服务。 | H14: 乙 | I14: 次 | J14: 60.0 | M14: 限儿童专科医院
A15: =MAX(A$2:A14)+1 -> 9 | B15: 110200002-a | C15: 享受政府特殊津贴待遇的临床医学专家 | D15: 001102000020400 | E15: 专家门诊诊查费(享受政府特殊津贴待遇的临床医学专家) | H15: 乙 | I15: 次 | J15: 50
A16: =MAX(A$2:A15)+1 -> 10 | B16: 110200002-e | C16: 特需门诊诊察费 | D16: 001102000010000 | E16: 普通门诊诊查费 | F16: 具备单独的诊疗场所,有专人陪同，实行包括挂号、采样、送检和取药等全程服务。 | H16: 丙 | I16: 次 | J16: 市场调节价 | M16: 特需服务项目，限民营医疗机构收取
A17: =MAX(A$2:A16)+1 -> 11 | B17: 110200003 | C17: 急诊诊察费 | D17: 001102000030000 | E17: 急诊诊查费 | F17: 指医护人员提供的24小时急救、急症的诊疗服务 | H17: 甲 | I17: 次 | J17: 25.0
A18: =MAX(A$2:A17)+1 -> 12 | B18: 110200005 | C18: 住院诊察费 | D18: 001102000050000 | E18: 住院诊查费 | F18: 指医务人员技术劳务性服务 | H18: 甲 | I18: 日 | J18: 22.0 | M18: 产科新生儿不得收取，限儿童专科医院和其他医院儿科加收10元
A19: =MAX(A$2:A18)+1 -> 13 | B19: 110200006 | C19: 西医诊察费 | D19: 001102000010000 | E19: 普通门诊诊查费 | H19: 乙
A20: =MAX(A$2:A19)+1 -> 14 | B20: 110200006-a | C20: 普通门诊诊察费 | D20: 001102000010000 | E20: 普通门诊诊查费 | F20: 指主治及以下医师提供的普通门诊诊疗服务。 | H20: 乙 | I20: 次 | J20: 12.0
A21: =MAX(A$2:A20)+1 -> 15 | B21: 110200006-b | C21: 副主任医师门诊诊察费 | D21: 001102000010200 | E21: 普通门诊诊查费(副主任医师) | F21: 指由副主任医师在专家门诊提供技术劳务的诊疗服务。 | H21: 乙 | I21: 次 | J21: 22.0 | M21: 儿童专科医院和其他医院儿科加收10元
A22: =MAX(A$2:A21)+1 -> 16 | B22: 110200006-c | C22: 主任医师门诊诊察费 | D22: 001102000010100 | E22: 普通门诊诊查费(主任医师) | F22: 指由主任医师在专家门诊提供技术劳务的诊疗服务。 | H22: 乙 | I22: 次 | J22: 35.0 | M22: 儿童专科医院和其他医院儿科加收10元
A23: =MAX(A$2:A22)+1 -> 17 | B23: 110200007 | C23: 中医辩证论治费 | D23: 004800000060000 | E23: 中医辨证论治 | H23: 乙 | I23: 次
A24: =MAX(A$2:A23)+1 -> 18 | B24: 110200007-a | C24: 普通门诊中医辩证论治费 | D24: 004800000060000 | E24: 中医辨证论治 | F24: 指主治及以下中医或中西医结合医师在中医普通门诊提供的诊疗服务。 | H24: 乙 | I24: 次 | J24: 15.0
A25: =MAX(A$2:A24)+1 -> 19 | B25: 110200007-b | C25: 副主任医师门诊中医辩证论治费 | D25: 004800000060200 | E25: 中医辨证论治(副主任医师) | F25: 指由具有副高级职称的中医或中西医结合医师在专家门诊提供的诊疗服务。 | H25: 乙 | I25: 次 | J25: 25.0 | M25: 儿童专科医院和其他医院儿科加收10元
A26: =MAX(A$2:A25)+1 -> 20 | B26: 110200007-c | C26: 主任医师门诊中医辩证论治费 | D26: 004800000060300 | E26: 中医辨证论治(主任医师) | F26: 指由具有正高级职称的中医或中西医结合医师在专家门诊提供的诊疗服务。 | H26: 乙 | I26: 次 | J26: 38.0 | M26: 儿童专科医院和其他医院儿科加收10元
A27: =MAX(A$2:A26)+1 -> 21 | B27: 110200008 | C27: 方便门诊费 | D27: 001102000010400 | E27: 普通门诊诊查费(便民门诊) | F27: 指对只取药及慢性病病人定期检查、不需另外提供新的治疗方案的病人提供的诊疗服务。 | H27: 乙 | I27: 次 | J27: 市定价
A28: =MAX(A$2:A27)+1 -> 22 | B28: 110200009 | C28: 药学门诊诊察费 | D28: 321102000080000 | E28: 药学门诊诊察费 | F28: 指符合规定资质的具有中级及以上专业技术职务任职资格并从事临床药学工作3年及以上的药师，在门诊为确有需要的患者提供单独直接的药学服务。含药物治疗回顾、个人用药记录、药物相关活动计划、干预或调整意见，以及文档记录。 | H28: 丙 | I28: 次 | J28: 市场调节价 | M28: 收费以患者知情同意、自愿选择为前提
B29: 1103 | C29: 3.急诊监护费
A30: =MAX(A$2:A29)+1 -> 23 | B30: 110300001 | C30: 急诊监护费 | D30: 001103000010000 | E30: 急诊监护费 | F30: 含监护、床位、诊查、护理 | H30: 乙 | I30: 日 | J30: 130.0 | M30: 符合监护病房条件和管理标准，超过半日不足24小时按一日计算，不足半日按半日计算。
B31: 1104 | C31: 4.院前急救费
A32: =MAX(A$2:A31)+1 -> 24 | B32: 110400001 | C32: 院前急救费 | D32: 001104000010000 | E32: 院前急救费 | F32: 包括内脏衰竭、外伤、烧伤、中毒、溺水、电击等现场急救；不含出诊费、诊察费、监护费 | G32: 化验、特殊检查、治疗、药物、血液 | H32: 甲 | I32: 次 | J32: 46.0
B33: 1105 | C33: 5.体检费
A34: =MAX(A$2:A33)+1 -> 25 | B34: 110500001 | C34: 体检费 | D34: 001105000010000 | E34: 体检费 | F34: 含内、外(含皮肤)、妇(不含宫颈刮片)、五官等科的常规检查；写总检报告 | G34: 影像、化验及特殊检查 | H34: 丙 | I34: 次 | J34: 15.0 | M34: 不另收挂号费及诊查费
A35: =MAX(A$2:A34)+1 -> 26 | B35: 110500001-a | C35: 驾驶员体检 | D35: 001105000010000 | E35: 体检费 | F35: 含身高、听力、视力、变色力和四肢、躯干、颈部的运动能力 | H35: 丙 | I35: 次 | J35: 8.0 | M35: 限依法取得医疗卫生执业资格的县及县以上医院
A36: =MAX(A$2:A35)+1 -> 27 | B36: 110500001-b | C36: 大学生体检 | D36: 001105000010000 | E36: 体检费 | F36: 内科、外科、肝功能（ALT）、乙型肝炎表面抗原检查和胸部X光透视 | H36: 丙 | I36: 次 | J36: 20.0
A37: =MAX(A$2:A36)+1 -> 28 | B37: 110500001-c | C37: 中小学生体检 | D37: 001105000010000 | E37: 体检费 | H37: 丙 | I37: 次 | J37: 市定价 | M37: 根据《中小学生健康体检管理办法》规定，义务教育阶段学生健康体检的费用由学校公用经费开支，不得向学生收费。
A38: =MAX(A$2:A37)+1 -> 29 | B38: 110500001-d | C38: 相关行业从业人员健康检查 | D38: 001105000010000 | E38: 体检费 | F38: 含问诊、一般体检、X线检查、抽血化验、大便细菌培养加鉴定 | H38: 丙 | I38: 人 | M38: 具体规定按省物价局、省财政厅、省卫生厅关于印发《江苏省相关行业从业人员健康检查收费管理办法（试行）》的通知（苏价费[2004]441号、苏财综[2004]141号）和省物价局、省财政厅、省卫生厅、省教育厅《关于相关行业从业人员健康检查和新生体检政策等有关问题的通知》（苏价医[2010]255号、苏财综[2010]56号）执行
B39: 1106 | C39: 6.救护车费 | M39: 省定基准价，具体价格由各市制定。
A40: =MAX(A$2:A39)+1 -> 30 | B40: 110600001 | C40: 救护车使用费 | D40: 001106000010000 | E40: 救护车费 | F40: 不含院前危急重症抢救，不含过路、过桥费 | H40: 丙 | I40: 公里 | J40: 市定价 | M40: 增加≤0.5公里的，不计费；增加＞0.5公里不足1公里的，按1公里计费。
A41: =MAX(A$2:A40)+1 -> 31 | B41: 110600001-a | C41: 救护车使用费（A） | D41: 001106000010000 | E41: 救护车费 | F41: 指急救范围地段内用车 | H41: 丙 | I41: 公里 | J41: 市定价 | M41: 起步公里数及起步基价由各市制定，超过起步公里数，每增加1公里加收4元。
A42: =MAX(A$2:A41)+1 -> 32 | B42: 110600001-b | C42: 救护车使用费（B） | D42: 001106000010000 | E42: 救护车费 | F42: 指跨越急救范围地段或接送、转运伤病员的非院前医疗急救用车。 | H42: 丙 | I42: 公里 | J42: 市定价 | M42: 省定指导价格8元/公里，各地可上浮不超过25%，下浮不限，制定具体价格。
A43: =MAX(A$2:A42)+1 -> 33 | B43: 110600002 | C43: 重大活动医疗保障服务 | D43: 001106000010000 | E43: 救护车费 | F43: 指企事业单位重大活动备用车辆服务 | H43: 丙 | I43: 车.小时 | J43: 市定价 | M43: 一小时起算，送伤者至救治目的地价格另计。
A44: =MAX(A$2:A43)+1 -> 34 | B44: 110600003 | C44: 院前危急重症抢救 | D44: 001104000010700 | E44: 院前危急重症抢救费 | F44: 指院前医务人员对危急重症患者的现场抢救。不含心脏电除颤术、心肺复苏术、气管插管术、呼吸机辅助呼吸、心电图检查、骨折外固定术。 | G44: 药品、血液及血液成分 | H44: 乙 | I44: 次 | J44: 市定价 | M44: 需符合《需要紧急救治的急危重伤病标准及诊疗规范》（国卫办医发〔2013〕32号）要求，确因患者病情需要，只提供其中部分内容的，均按本项目相应的价格收费。
A45: =MAX(A$2:A44)+1 -> 35 | B45: 110600004 | C45: 心脏电除颤术 | D45: 003107020170000 | E45: 心脏电除颤术 | H45: 乙 | I45: 次 | J45: 60.0
A46: =MAX(A$2:A45)+1 -> 36 | B46: 110600005 | C46: 心肺复苏术 | D46: 003301000120000 | E46: 心肺复苏术 | H46: 乙 | I46: 次 | J46: 130.0
A47: =MAX(A$2:A46)+1 -> 37 | B47: 110600006 | C47: 气管插管术 | D47: 003301000130000 | E47: 气管插管术 | F47: 指经口插管 | G47: 导管 | H47: 乙 | I47: 次 | J47: 50.0
A48: =MAX(A$2:A47)+1 -> 38 | B48: 110600007 | C48: 呼吸机辅助呼吸 | D48: 003106030010000 | E48: 呼吸机辅助呼吸 | H48: 乙 | I48: 小时 | J48: 15.0
A49: =MAX(A$2:A48)+1 -> 39 | B49: 110600008 | C49: 常规心电图检查（十二通道） | D49: 003107010010002 | E49: 常规心电图检查(十二通道加收) | H49: 乙 | I49: 次 | J49: 30.0
A50: =MAX(A$2:A49)+1 -> 40 | B50: 110600009 | C50: 骨折外固定术 | D50: 004200000070000 | E50: 骨折夹板外固定术 | G50: 外固定材料 | H50: 乙 | I50: 次 | J50: 50.0
B51: 1109 | C51: 9.床位费
A52: =MAX(A$2:A51)+1 -> 41 | B52: 1109-a | C52: 传染（皮肤）病医院（病区）消毒费加收 | D52: 321109000000100 | E52: 传染（皮肤）病医院（病区）消毒费加收 | F52: 符合《医院感染管理办法》（卫生部令第48号），采取预防医院织物交叉感染的长效消毒技术，将洗涤消毒过的床单、被套、枕套、病号服等病房被服处理为抗菌被服，抗菌被服具有长期抗菌功能 | H52: 丙 | I52: 床.日 | J52: 市定价 | M52: 限110900001收取
A53: =MAX(A$2:A52)+1 -> 42 | B53: 110900001 | C53: 普通病房床位费 | D53: 001109000010000 | E53: 普通病房床位费 | F53: 接诊登记，进行住院指导，办理入（出）院手续，按医嘱收费计价，复核及住院费用清单打印等服务。基本床单元配置：含病床、床头柜、座椅(或木凳)、床垫、棉褥、棉被（毯）、枕头、床单、病人服装、热水瓶(或器)、废品袋（或篓）等。含医用垃圾、污水处理和病房降温取暖费。 | H53: 乙 | I53: 日 | J53: 市定价 | M53: 入院当天计算床位费，出院当天不计算床位费；当天入院，当天出院的按一天计算。单人间、套间病房床位比例不得超过医院登记总床位数的10%
A54: =MAX(A$2:A53)+1 -> 43 | B54: 110900001-a | C54: 四人及以上多人间床位费 | D54: 001109000010400 | E54: 普通病房床位费(四人及以上间) | F54: 病房内每床使用面积不少于6平方米。除符合基本床单元配置外，还应具备下列设备设施条件：每床设有传呼、供氧和吸引系统；病区内设有公用卫生设施和洗浴设备，供应冷、热水，配有微波炉等。 | H54: 甲 | I54: 日 | J54: 市定价
A55: =MAX(A$2:A54)+1 -> 44 | B55: 110900001-b | C55: 三人间床位费 | D55: 001109000010300 | E55: 普通病房床位费(三人间) | F55: 病房内每床使用面积不少于7平方米。除符合基本床单元配置外，还应具备下列设备设施条件：每床设有传呼、供氧和吸引系统；病房内设有卫生间和洗浴设备，供应冷、热水；每床配衣柜、活动餐桌；病区内设配餐间（配微波炉等）、活动室等。 | H55: 乙 | I55: 日 | J55: 市定价
A56: =MAX(A$2:A55)+1 -> 45 | B56: 110900001-c | C56: 双人间床位费A | D56: 001109000010200 | E56: 普通病房床位费(双人间) | F56: 病房内每床使用面积不少于10平方米，除符合基本床单元配置外，还应具备下列设备设施条件：病房内设有卫生间和洗浴设备，供应冷、热水；每床设有传呼、负压吸引及中心供氧等系统；配衣柜、活动餐桌、电视；病区内设配餐间（配微波炉等）、活动室等。 | H56: 乙 | I56: 日 | J56: 市定价
A57: =MAX(A$2:A56)+1 -> 46 | B57: 110900001-d | C57: 双人间床位费B | D57: 001109000010200 | E57: 普通病房床位费(双人间) | F57: 病房内每床使用面积不少于12平方米，除符合基本床单元配置外，还应具备下列设备设施条件：病房内设有卫生间和洗浴设备，24小时供应冷、热水；每床设有天轨输液盘、传呼、负压吸引及中心供氧等系统；配衣柜、活动餐桌、电视等；病区内设配餐间（配微波炉等）、活动室等。 | H57: 乙 | I57: 日 | J57: 市定价
A58: =MAX(A$2:A57)+1 -> 47 | B58: 110900001-e | C58: 单人间床位费 | D58: 001109000010100 | E58: 普通病房床位费(单人间) | F58: 病房内每床使用面积不少于15平方米。除符合基本床单元配置外，还应具备下列设备设施条件：病房内设有卫生间和洗浴设备，24小时供应冷、热水；每床设有天轨输液盘、传呼、负压吸引及中心供氧等系统；配衣柜、活动餐桌、电视、冰箱等；病区内设配餐间（配微波炉等）、活动室等。 | H58: 乙 | I58: 日 | J58: 市场调节价
A59: =MAX(A$2:A58)+1 -> 48 | B59: 110900001-f | C59: 套间病房床位费 | D59: 001109000010500 | E59: 套间病房床位费 | F59: 指套间，除符合基本床单元配置外，还应具备下列设备设施条件：设立独立的卫生间和洗浴设施，24小时供应冷、热水；病床设有天轨输液盘、传呼、负压吸引及中心供氧等系统，配备空调、电视、衣橱、沙发、冰箱等相关生活服务设备，病区内设配餐间（配微波炉等）、活动室等。每天均由副主任以上医师查房，管床医生由主治以上医生担任，配备足够的护理力量，确保患者的医疗护理，患者的检查和治疗均由专人陪护。 | H59: 乙 | I59: 日 | J59: 市场调节价
A60: =MAX(A$2:A59)+1 -> 49 | B60: 110900001-g | C60: 新生儿床位费 | D60: 001109000010600 | E60: 普通病房床位费(新生儿床) | F60: 指新生儿科普通床位。有配奶间，洗浴间及相应设施。 | H60: 乙 | I60: 日 | J60: 市定价 | M60: 使用新生儿暖箱的，如保留新生儿床位，床位另计价。
A61: =MAX(A$2:A60)+1 -> 50 | B61: 110900001-h | C61: 母婴同室婴儿床位费A | D61: 001109000010000 | E61: 普通病房床位费 | F61: 指双人间病房。含婴儿床、床垫、棉褥、棉被（或毯）、枕头、床单、婴儿衣裤。 | H61: 乙 | I61: 日 | J61: 市定价 | M61: 仅限符合条件的爱婴医院收取，且不得与新生儿床位费同时收取。
A62: =MAX(A$2:A61)+1 -> 51 | B62: 110900001-j | C62: 母婴同室婴儿床位费B | D62: 001109000010000 | E62: 普通病房床位费 | F62: 指三人间病房。含婴儿床、床垫、棉褥、棉被（或毯）、枕头、床单、婴儿衣裤。 | H62: 乙 | I62: 日 | J62: 市定价 | M62: 限符合条件的爱婴医院收取，且不得与新生儿床位费同时收取。
A63: =MAX(A$2:A62)+1 -> 52 | B63: 110900001-k | C63: 简易病房床位费 | D63: 001109000010000 | E63: 普通病房床位费 | F63: 包括加床 | H63: 甲 | I63: 日 | J63: 市定价 | M63: 不得超过四人及以上多人间床位费价格的40%
A64: =MAX(A$2:A63)+1 -> 53 | B64: 110900001-m | C64: 陪护床 | D64: 001109000010000 | E64: 普通病房床位费 | F64: 含卧具、被褥等。 | H64: 丙 | I64: 日 | J64: 市定价 | M64: 不得超过四人及以上多人间床位费价格的40%
A65: =MAX(A$2:A64)+1 -> 54 | B65: 110900002 | C65: 层流洁净病房床位费 | D65: 001109000020000 | E65: 层流洁净病房床位费 | F65: 有层流装置、风淋通道的层流洁净间；采用全封闭管理，有严格消毒隔离措施及对外通话系统，具备普通病房的床位设施。含医用垃圾、污水处理和病房降温取暖费。 | H65: 乙 | I65: 日 | J65: 市定价
A66: =MAX(A$2:A65)+1 -> 55 | B66: 110900002-a | C66: 百级病房床位费 | D66: 001109000020100 | E66: 百级层流洁净病房床位费 | F66: 达到百级规定层流洁净级别，包括负压病房床位。 | H66: 乙 | I66: 日 | J66: 市定价
A67: =MAX(A$2:A66)+1 -> 56 | B67: 110900002-b | C67: 千级病房床位费 | D67: 001109000020200 | E67: 千级层流洁净病房床位费 | F67: 达到千级规定层流洁净级别。 | H67: 乙 | I67: 日 | J67: 市定价
A68: =MAX(A$2:A67)+1 -> 57 | B68: 110900002-c | C68: 万级病房床位费 | D68: 001109000020300 | E68: 万级层流洁净病房床位费 | F68: 达到万级规定层流洁净级别 | H68: 乙 | I68: 日 | J68: 市定价
A69: =MAX(A$2:A68)+1 -> 58 | B69: 110900002-d | C69: 层流病床床位费 | D69: 001109000020000 | E69: 层流洁净病房床位费 | H69: 乙 | I69: 日 | J69: 市定价
A70: =MAX(A$2:A69)+1 -> 59 | B70: 110900003 | C70: 重症监护病房床位费 | D70: 001109000030100 | E70: 重症监护病房床位费 | F70: 指专用重症监护病房（如ICU、CCU、RCU、NICU、EICU等）。设有中心监护台、心电监护仪及其它监护抢救设施,相对封闭管理的单人或多人监护病房，每天更换、消毒床单元，仪器设备的保养。含医用垃圾、污水处理和病房降温取暖费。 | H70: 乙 | I70: 日 | J70: 市定价 | M70: 保留普通床位的，普通床位另计价
A71: =MAX(A$2:A70)+1 -> 60 | B71: 110900004 | C71: 特殊防护病房床位费 | D71: 001109000040000 | E71: 特殊防护病房床位费 | F71: 指核素内照射治疗病房床位。在普通病床的功能基础上，须达到如下标准：重晶石或铅墙、铅防护门放射性防护病房、病区放射性专用厕所、防止放射性污染控制设施、专用放射性废物处理、储存衰变池及环保监控报警排放系统、可视对讲电话、床旁积极呼叫通讯系统。含医用垃圾、污水处理和病房降温取暖费。 | H71: 乙 | I71: 日 | J71: 市定价
A72: =MAX(A$2:A71)+1 -> 61 | B72: 110900005 | C72: 门/急诊留观床位费 | D72: 001109000050000 | E72: 急诊观察床位费 | F72: 指符合门/急诊观察条件和要求的急诊观察床位。办理留观手续，建立观察病历，密切观察病情变化，协助患者做好基础护理。符合基本床单元配置，含医用垃圾、污水处理和病房降温取暖费。 | H72: 乙 | I72: 日 | J72: 市定价
B73: 1110 | C73: 10.会诊费
A74: =MAX(A$2:A73)+1 -> 62 | B74: 111000001 | C74: 院际会诊 | D74: 001110000010000 | E74: 院际会诊 | H74: 丙 | I74: 次 | M74: 副主任医师以上
A75: =MAX(A$2:A74)+1 -> 63 | B75: 111000001-a | C75: 院际会诊-本地 | D75: 001110000010100 | E75: 院际会诊(本地) | H75: 丙 | I75: 次 | J75: 130.0
A76: =MAX(A$2:A75)+1 -> 64 | B76: 111000001-b | C76: 院际会诊-外埠 | D76: 001110000010200 | E76: 院际会诊(外埠) | H76: 丙 | I76: 次 | J76: 260.0
A77: =MAX(A$2:A76)+1 -> 65 | B77: 111000002-a | C77: 高级专家诊疗中心专家门诊诊察费 | D77: 001102000020400 | E77: 专家门诊诊查费(享受政府特殊津贴待遇的临床医学专家) | F77: 具备单独的诊区，诊区整体环境要整洁、舒适、方便，配有沙发（椅）、饮用水、轮椅、推床等设施。独立诊区内设导诊咨询服务台，保证一人一室进行诊疗。 | H77: 丙 | I77: 次 | J77: 市场调节价 | M77: 特需服务项目，限三级甲等公立医疗机构开展。
B78: 1111 | C78: “互联网+”医疗服务
B79: 111101 | C79: 远程会诊 | M79: 按受邀方医疗机构类别收费。邀请方应当根据患者的病情和意愿组织远程会诊服务，并向患者说明远程会诊服务内容、费用等情况，征得患者书面同意，签署远程会诊服务知情同意书。参加会诊专家为副主任以上医师
A80: =MAX(A$2:A79)+1 -> 66 | B80: 111101001 | C80: 会诊费（远程会诊） | D80: 001110000030000 | E80: 远程会诊 | F80: 指因患者病情需要，邀请方和受邀方医疗机构通过可视视频实时同步交互的方式开展的远程会诊。 | H80: 丙 | I80: 科/次 | J80: 130.0 | M80: 总价最多不超过520元。
A81: =MAX(A$2:A80)+1 -> 67 | B81: 111101001-a | C81: 会诊费（远程会诊） | D81: 001110000030000 | E81: 远程会诊 | H81: 丙 | I81: 科/次 | J81: 市场调节价 | M81: 指邀请方或受邀方在省外、境外的医疗机构
A82: =MAX(A$2:A81)+1 -> 68 | B82: 111101003 | C82: 远程病理会诊 | D82: 001110000030000 | E82: 远程会诊 | F82: 由高级职称病理医师主持的专家组会诊。开通远程医疗网络系统，邀请方医疗机构向受邀方医疗机构提供临床及病理资料，双方通过视频交互方式对患者的病情进行会诊，受邀方将诊疗意见告知邀请方，并出具由相关医师签名的诊疗意见报告。邀请方参考受邀方的诊疗意见，决定诊断与治疗方案。 | H82: 丙 | I82: 次 | J82: 595.0
B83: 111102 | C83: 互联网医院门诊 | M83: 按提供服务医疗机构类别收费。限实体医疗机构第二名称的互联网医院以及依托实体医疗机构独立设置的互联网医院收取。不得用于首诊。
A84: =MAX(A$2:A83)+1 -> 69 | B84: 111102001 | C84: 互联网诊察费（复诊） | D84: 321110000050000 | E84: 远程门诊（互联网医疗） | F84: 指医务人员通过互联网医疗服务平台提供技术劳务的复诊诊疗服务，包含为患者提供从问诊到诊断，制定诊疗方案或提出下一步诊疗建议。 | H84: 乙 | I84: 次 | M84: 不区分医师级别，按本院普通门诊诊察费或普通门诊中医辩证论治费项目价格收取。
B85: 111103 | C85: 远程诊断 | M85: 按受邀方医疗机构类别收费。邀请方应当根据患者的病情和意愿组织远程会诊服务，并向患者说明远程会诊服务内容、费用等情况，征得患者书面同意，签署远程会诊服务知情同意书。
B86: 12 | C86: (二)一般检查治疗
B87: 1201 | C87: 1.护理费 | G87: 药物
A88: =MAX(A$2:A87)+1 -> 70 | B88: 120100011 | C88: 吸痰护理 | D88: 001201000110000 | E88: 吸痰护理 | F88: 指不能有效主动清理呼吸道分泌物患者的护理，经鼻腔或人工气道吸痰时，运用负压吸引器，观察患者生命体征及痰液性质，协助患者采取舒适体位，评价吸痰效果。 | G88: 一次性吸痰管、吸痰连接管 | H88: 乙 | I88: 日 | J88: 25.0 | M88: 不得与“机械辅助排痰（120100015）”同时收取。限儿童专科医院和其他医院儿科加收30%
A89: =MAX(A$2:A88)+1 -> 71 | B89: 120100015 | C89: 机械辅助排痰 | D89: 001201000150000 | E89: 机械辅助排痰 | F89: 指运用排痰仪器进行辅助排痰。协助患者于适当体位，评估痰液位置，选择叩击点，运用排痰仪器胸或背部叩击使痰液松动，协助翻身、拍背等方式使痰液到达浅部易于咳出，达到有效咳嗽、排痰、体位引流。 | H89: 乙 | I89: 日 | J89: 60.0
A90: =MAX(A$2:A89)+1 -> 72 | B90: 120100018 | C90: 淋巴水肿手法引流消肿 | D90: 323108000390000 | E90: 淋巴水肿手法引流消肿 | F90: 通过手法引流、弹性压力绷带包扎、皮肤护理、功能锻炼指导等帮助淋巴水肿患者减轻或消除水肿 | H90: 丙 | I90: 次 | J90: 市场调节价 | M90: 限乳腺癌及妇科肿瘤术后患者使用。试用期新项目
B91: 1202 | C91: 2.抢救费 | G91: 药物 | M91: 会诊费另收
A92: =MAX(A$2:A91)+1 -> 73 | B92: 120200001 | C92: 大抢救 | D92: 001202000010000 | E92: 大抢救 | F92: 指1.成立专门抢救班子；2．主管医生不离开现场;3.严密观察病情变化；4. 抢救涉及两科以上及时组织院内外会诊;5.专人护理，配合抢救 | H92: 甲 | I92: 日 | J92: 130.0 | M92: 6周岁及以下儿童加收30%
A93: =MAX(A$2:A92)+1 -> 74 | B93: 120200002 | C93: 中抢救 | D93: 001202000020000 | E93: 中抢救 | F93: 指1．成立专门抢救小组；2．医生不离开现场，3.严密观察病情变化；4. 抢救涉及两科以上及时组织院内会诊;5.专人护理，配合抢救 | H93: 甲 | I93: 日 | J93: 65.0 | M93: 6周岁及以下儿童加收30%
A94: =MAX(A$2:A93)+1 -> 75 | B94: 120200003 | C94: 小抢救 | D94: 001202000030000 | E94: 小抢救 | F94: 指1．专门医生现场抢救病人。2.严密观察记录病情变化；3. 抢救涉及两科以上及时请院内会诊;4.有专门护士配合 | H94: 甲 | I94: 日 | J94: 39.0 | M94: 6周岁及以下儿童加收30%
B95: 1203 | C95: 3.氧气吸入
A96: =MAX(A$2:A95)+1 -> 76 | B96: 120300001 | C96: 氧气吸入 | D96: 001203000010000 | E96: 氧气吸入 | F96: 包括低流量给氧、中心给氧、氧气创面治疗 | G96: 一次性鼻导管、鼻塞、面罩、一体式吸氧管、一次性使用氧气湿化连接瓶/袋等 | H96: 甲 | I96: 小时 | J96: 4.0 | M96: 每天不超过65元
A97: =MAX(A$2:A96)+1 -> 77 | B97: 120300001-a | C97: 氧气吸入 | D97: 001203000010000 | E97: 氧气吸入 | H97: 甲 | I97: 日 | J97: 65.0 | M97: 持续吸氧
A98: =MAX(A$2:A97)+1 -> 78 | B98: 120300001-b | C98: 氧气吸入 | D98: 001203000010000 | E98: 氧气吸入 | F98: 指静脉输氧(含注射、输液、材料、氧气） | H98: 丙 | I98: 人次 | J98: 39.0
A99: =MAX(A$2:A98)+1 -> 79 | B99: 120300001-c | C99: 加压给氧加收 | D99: 001203000010001 | E99: 氧气吸入(加压给氧加收) | H99: 甲 | I99: 小时 | J99: 1.3 | M99: 加压给氧加收
B100: 1204 | C100: 4.注射 | F100: 含用药指导与观察，药物的人工配置 | G100: 一次性输液器、采血器、注射器等特殊性消耗材料；药物、血液和血制品；一次性使用静脉营养输液袋，一次性止血带（包括点连式、连抽式，限传染性病人使用），全自动注药泵
A101: =MAX(A$2:A100)+1 -> 80 | B101: 1204-a | C101: 静脉用药集中调配 | D101: 321204000000000 | E101: 静脉用药集中调配 | F101: 指在静脉用药调配中心调配普通药物或抗微生物药物，用于粉针和水针西林瓶、水剂安瓿瓶配制。不含静脉高营养治疗和抗肿瘤化学药物调配。 | H101: 乙 | I101: 次 | J101: 5.0 | M101: 限符合《江苏省医疗机构静脉用药调配中心（室）现场评估验收标准》的静脉用药调配中心（PIVAS）使用。该项目与静脉输液、小儿静脉输液项目配合使用，不得单独收费。每日收费不超过15元。
A102: =MAX(A$2:A101)+1 -> 81 | B102: 1204-b | C102: 使用微量泵或输液泵加收 | D102: 001204000060001 | E102: 静脉输液(使用微量泵或输液泵按小时加收) | H102: 甲 | I102: 小时/泵 | J102: 0.7
A103: =MAX(A$2:A102)+1 -> 82 | B103: 120400001 | C103: 肌肉注射 | D103: 001204000010000 | E103: 肌肉注射 | F103: 包括皮下、皮内注射 | G103: 胰岛素笔用针头、低压无针注射器用注射头 | H103: 甲 | I103: 次 | J103: 5.0
A104: =MAX(A$2:A103)+1 -> 83 | B104: 120400001-a | C104: 无痛皮试 | D104: 001204000010300 | E104: 皮试 | F104: 含电极 | H104: 丙 | I104: 次 | J104: 5.2 | M104: 指快速皮试
A105: =MAX(A$2:A104)+1 -> 84 | B105: 120400002 | C105: 静脉注射 | D105: 001204000020000 | E105: 静脉注射 | F105: 包括静脉采血 | H105: 甲 | I105: 次 | J105: 6.0
A106: =MAX(A$2:A105)+1 -> 85 | B106: 120400002-a | C106: 无痛采血 | D106: 001204000020100 | E106: 静脉注射(静脉采血) | F106: 含一次性安全防护材料 | H106: 丙 | I106: 次 | J106: 市定价 | M106: 指使用激光仪采血仪,限采末梢血
A107: =MAX(A$2:A106)+1 -> 86 | B107: 120400003 | C107: 心内注射 | D107: 001204000030000 | E107: 心内注射 | H107: 甲 | I107: 次 | J107: 10.0 | M107: 6周岁及以下儿童加收30%
A108: =MAX(A$2:A107)+1 -> 87 | B108: 120400004 | C108: 动脉加压注射 | D108: 001204000040000 | E108: 动脉加压注射 | F108: 包括动脉采血 | H108: 甲 | I108: 次 | J108: 7.0 | M108: 6周岁及以下儿童加收30%
A109: =MAX(A$2:A108)+1 -> 88 | B109: 120400005 | C109: 皮下输液 | D109: 001204000050000 | E109: 皮下输液 | H109: 甲 | I109: 组 | J109: 2.6
A110: =MAX(A$2:A109)+1 -> 89 | B110: 120400006 | C110: 静脉输液 | D110: 001204000060000 | E110: 静脉输液 | F110: 含一次性输液器、注射器等特殊性消耗材料，包括输血、留置静脉针 | G110: 过滤器、采血器、胰岛素专用注射器、三通管、延长管、留置针、肝素帽、泵条（管）；药物、血液和血制品；留置针固定专用透明敷贴、避光输液器、输液瓶盖贴膜、超低密度聚乙烯输液器、一次性使用自动止液输液器、不含DEHP成分的输液器（用于新生儿、青春期前的男性、怀孕期和哺乳期的妇女，脂溶性液体和药物的输注）、一次性使用精密过滤输液器（仅适用于门诊患者输注化疗药物使用，住院、急诊患者如需使用应严格按照输注药物的性质合理选择） | H110: 甲 | I110: 次 | J110: 10.0 | M110: 不得加收躺椅费、留观诊察费、降温取暖费等其他任何费用。
A111: =MAX(A$2:A110)+1 -> 90 | B111: 120400006-b | C111: 静脉输液每瓶加收 | D111: 001204000060000 | E111: 静脉输液 | H111: 甲 | I111: 瓶 | J111: 1.3 | M111: 门诊输液自第二瓶（袋）（包括中途加药）起每瓶（袋）加收，住院输液自第四瓶（袋）（包括中途加药）起每瓶（袋）加收。
A112: =MAX(A$2:A111)+1 -> 91 | B112: 120400007 | C112: 小儿静脉输液 | D112: 001204000070000 | E112: 小儿头皮静脉输液 | F112: 包括小儿头皮输液、输血、留置静脉针。含一次性输液器、注射器等特殊性消耗材料。 | G112: 按静脉输液（编码120400006）的除外内容收费，输液托手固定贴、超低密度聚乙烯输液器 | H112: 甲 | I112: 次 | J112: 13.0 | M112: 指学龄前（6周岁以内）儿童。躺椅费、留观诊察费、降温取暖费等其他任何费用不得加收。
A113: =MAX(A$2:A112)+1 -> 92 | B113: 120400007-a | C113: 小儿静脉输液加收 | D113: 001204000070000 | E113: 小儿头皮静脉输液 | H113: 甲 | I113: 瓶 | J113: 1.3 | M113: 自第二瓶（袋）（包括中途加药）起每瓶（袋）加收。
A114: =MAX(A$2:A113)+1 -> 93 | B114: 120400008 | C114: 静脉高营养治疗 | D114: 001204000080000 | E114: 静脉高营养治疗 | H114: 甲 | I114: 次 | J114: 6.5 | M114: 6周岁及以下儿童加收30%
A115: =MAX(A$2:A114)+1 -> 94 | B115: 120400009 | C115: 静脉切开置管术 | D115: 001204000090000 | E115: 静脉切开置管术 | H115: 甲 | I115: 次 | J115: 50.0 | M115: 6周岁及以下儿童加收30%
A116: =MAX(A$2:A115)+1 -> 95 | B116: 120400010 | C116: 静脉穿刺置管术 | D116: 001204000100000 | E116: 静脉穿刺置管术 | G116: PIU导管 | H116: 甲 | I116: 次 | J116: 30.0 | M116: 6周岁及以下儿童加收30%
A117: =MAX(A$2:A116)+1 -> 96 | B117: 120400011 | C117: 中心静脉穿刺置管术 | D117: 001204000110000 | E117: 中心静脉穿刺置管术 | F117: 包括深静脉穿刺置管术、PICC置管术、深静脉穿刺术、经外周静脉入中线导管术。 | G117: 中心静脉套件、测压套件、PICC导管、中心静脉置管术换药包、一次性使用中心静脉导管包、导引穿刺套件 | H117: 甲 | I117: 次 | J117: 100.0 | M117: 中心静脉置管术换药包不得与中心静脉套件、测压套件重复。6周岁及以下儿童加收30%
A118: =MAX(A$2:A117)+1 -> 97 | B118: 120400011-a | C118: 中心静脉导管修复术 | D118: 323201000170000 | E118: 中心静脉导管破损修复术 | F118: 各类中心静脉导管的修复，恢复导管功能。 | H118: 丙 | I118: 次 | J118: 100.0
A119: =MAX(A$2:A118)+1 -> 98 | B119: 120400011-c | C119: 心电引导中心静脉导管定位 | D119: 001204000110000 | E119: 中心静脉穿刺置管术 | F119: 不含中心静脉穿刺置管术；腔内心电图定位方法进行中心静脉导管尖端定位。 | H119: 丙 | I119: 次 | J119: 130.0
A120: =MAX(A$2:A119)+1 -> 99 | B120: 120400012 | C120: 动脉穿刺置管术 | D120: 001204000120000 | E120: 动脉穿刺置管术 | H120: 甲 | I120: 次 | J120: 70.0 | M120: 6周岁及以下儿童加收30%
A121: =MAX(A$2:A120)+1 -> 100 | B121: 120400013 | C121: 抗肿瘤化学药物配置 | D121: 001204000130000 | E121: 抗肿瘤化学药物配置 | H121: 甲 | I121: 组 | J121: 40.0
A122: =MAX(A$2:A121)+1 -> 101 | B122: 120400013-a | C122: 配制第二组起每组加收 | D122: 001204000130001 | E122: 抗肿瘤化学药物配置(大剂量药物加收) | H122: 甲 | I122: 组 | J122: 7.0 | M122: 一天内为同一患者多次配制使用两种及其以上抗肿瘤化学药物的，自配制第二组起每组加收
A123: =MAX(A$2:A122)+1 -> 102 | B123: 120400014 | C123: 储血费 | D123: 003108000040000 | E123: 采自体血及保存 | H123: 甲 | I123: 100ml或0.5单位 | J123: 3.9 | M123: 限设立输血科或血库并开展储血业务的医疗机构收取
A124: =MAX(A$2:A123)+1 -> 103 | B124: 120400016 | C124: 肠外营养配置 | D124: 321204000160000 | E124: 肠外营养配置 | F124: 具备百级层流操作间，操作者必须着无菌防尘服进行工作。将高营养混合液（指碳水化合物、氨基酸、脂肪乳、电解质、维生素、微量元素和水等全营养混合液）按照肠外营养配置流程规范进行配置。含一次性注射器。 | H124: 乙 | I124: 天 | J124: 40.0 | M124: 限设立临床营养科，有具备临床医生资质的营养专业技术人员，有符合规范要求的配置室的医疗机构开展
A125: =MAX(A$2:A124)+1 -> 104 | B125: 120400018 | C125: 骨髓腔输液通路置管术 | D125: 321204000140000 | E125: 骨髓腔输液通路置管术 | H125: 丙 | I125: 次 | J125: 市场调节价 | M125: 用于危急重症抢救患者。试用期新项目
B126: 1205 | C126: 5.清创缝合 | G126: 医用网状弹力绷带
A127: =MAX(A$2:A126)+1 -> 105 | B127: 1205-a | C127: 狂犬病伤口处置冲洗加收 | D127: 321205000000001 | E127: 狂犬病伤口处置冲洗加收 | F127: 使用专用冲洗设备和专用清洗剂对伤口进行冲洗 | H127: 乙 | I127: 次 | J127: 95.0 | M127: 符合《狂犬病预防控制技术指南》相关要求,限II级及以上暴露伤口处置使用。
A128: =MAX(A$2:A127)+1 -> 106 | B128: 120500001 | C128: 大清创缝合 | D128: 001205000010000 | E128: 大清创缝合 | F128: 清创＋缝合 | H128: 甲 | I128: 次 | J128: 170.0 | M128: 创面在30cm²以上，6周岁及以下儿童加收30%
A129: =MAX(A$2:A128)+1 -> 107 | B129: 120500001-a | C129: 大清创 | D129: 001205000010000 | E129: 大清创缝合 | H129: 甲 | I129: 次 | J129: 70.0 | M129: 6周岁及以下儿童加收30%
A130: =MAX(A$2:A129)+1 -> 108 | B130: 120500002 | C130: 中清创缝合 | D130: 001205000020000 | E130: 中清创缝合 | F130: 清创＋缝合 | H130: 甲 | I130: 次 | J130: 85.0 | M130: 创面在30-10cm²，6周岁及以下儿童加收30%
A131: =MAX(A$2:A130)+1 -> 109 | B131: 120500002-a | C131: 中清创 | D131: 001205000020000 | E131: 中清创缝合 | H131: 甲 | I131: 次 | J131: 60.0 | M131: 6周岁及以下儿童加收30%
A132: =MAX(A$2:A131)+1 -> 110 | B132: 120500003 | C132: 小清创缝合 | D132: 001205000030000 | E132: 小清创缝合 | F132: 清创＋缝合 | H132: 甲 | I132: 次 | J132: 65.0 | M132: 创面在10cm²以下，6周岁及以下儿童加收30%
A133: =MAX(A$2:A132)+1 -> 111 | B133: 120500003-a | C133: 小清创 | D133: 001205000030000 | E133: 小清创缝合 | H133: 甲 | I133: 次 | J133: 35.0 | M133: 6周岁及以下儿童加收30%
B134: 1206 | C134: 6.换药 | F134: 含引流片、碘酒、碘伏、纱布、棉垫、酒精、双氧水、外用生理盐水、换药器械 | G134: 特殊药物、引流管、绷带、长效抗菌（包括透明质酸钠凝胶）、平纱布、无机诱导活性敷料。剂、膏按平均分摊次数加收\物理抗菌喷雾敷料、次氯酸护创液、功能性敷料 | M134: 拆线和换药不能同时计收
A135: =MAX(A$2:A133)+1 -> 112 | B135: 120600001 | C135: 特大换药 | D135: 001206000010000 | E135: 特大换药 | H135: 甲 | I135: 次 | J135: 39.0 | M135: 创面在40cm²以上，6周岁及以下儿童加收30%
A136: =MAX(A$2:A135)+1 -> 113 | B136: 120600002 | C136: 大换药 | D136: 001206000020000 | E136: 大换药 | H136: 甲 | I136: 次 | J136: 26.0 | M136: 创面在40-30cm²，6周岁及以下儿童加收30%
A137: =MAX(A$2:A136)+1 -> 114 | B137: 120600003 | C137: 中换药 | D137: 001206000030000 | E137: 中换药 | H137: 甲 | I137: 次 | J137: 13.0 | M137: 创面在30-15cm²，6周岁及以下儿童加收30%
A138: =MAX(A$2:A137)+1 -> 115 | B138: 120600004 | C138: 小换药 | D138: 001206000040000 | E138: 小换药 | F138: 包括门诊拆线 | H138: 甲 | I138: 次 | J138: 6.5 | M138: 创面在15cm²以下，6周岁及以下儿童加收30%
A139: =MAX(A$2:A138)+1 -> 116 | B139: 120600005 | C139: 创面负压治疗 | D139: 003114000600000 | E139: 创面密封负压引流术 | F139: 指体表面积≤5% | G139: 创伤引流套装 | H139: 乙 | I139: 小时 | J139: 10.0 | M139: 每天最多不超过200元。
A140: =MAX(A$2:A139)+1 -> 117 | B140: 120600005-a | C140: 创面负压治疗 | D140: 003114000600000 | E140: 创面密封负压引流术 | F140: 指体表面积＞5% | H140: 乙 | I140: 小时 | J140: 15.0 | M140: 每天最多不超过300元。
A141: =MAX(A$2:A140)+1 -> 118 | B141: 120600006 | C141: 蛆虫清创治疗 | D141: 001206000000100 | E141: 换药(外擦药物治疗) | H141: 乙 | I141: 次 | J141: 市定价
B142: 1207 | C142: 7.雾化吸入
A143: =MAX(A$2:A141)+1 -> 119 | B143: 120700001 | C143: 雾化吸入 | D143: 001207000010000 | E143: 雾化吸入 | F143: 包括超声、高压泵、氧化雾化及蒸气雾化吸入、经呼吸机管道雾化吸入 | G143: 药物、雾化器含口、雾化面罩、雾化器软管(限超声雾化时使用） | H143: 甲 | I143: 次 | J143: 6.5 | M143: 6周岁及以下儿童加收30% | N143: 删除
B144: 1208 | C144: 8.鼻饲管置管
A145: =MAX(A$2:A143)+1 -> 120 | B145: 120800001 | C145: 鼻饲管置管 | D145: 001208000010000 | E145: 鼻饲管置管 | G145: 药物和一次性胃管 | H145: 甲 | I145: 次 | J145: 13.0 | M145: 6周岁及以下儿童加收30%
A146: =MAX(A$2:A145)+1 -> 121 | B146: 120800001-a | C146: 注食、注药、十二指肠灌注加收 | D146: 001208000010000 | E146: 鼻饲管置管 | H146: 甲 | I146: 次 | J146: 2.6 | M146: 注食、注药、十二指肠灌注加收
A147: =MAX(A$2:A146)+1 -> 122 | B147: 120800001-b | C147: 幽门后营养置管术加收 | D147: 001208000010000 | E147: 鼻饲管置管 | F147: 指盲插法留置鼻肠管，不借助辅助工具和设备，由手法操作直接将导管头端通过幽门送入十二指肠上部或空肠。 | G147: 鼻肠管 | H147: 丙 | I147: 次 | J147: 市场调节价
A148: =MAX(A$2:A147)+1 -> 123 | B148: 120800002 | C148: 肠内高营养治疗 | D148: 001208000020000 | E148: 肠内高营养治疗 | F148: 指经鼻胃/肠管、胃造瘘管、空肠造瘘管的胃肠营养治疗，含肠内营养液的配制。含一次性注射器。 | G148: 营养泵管 | H148: 甲 | I148: 天 | J148: 26.0 | M148: 限设立临床营养科，有具备临床医生资质的营养专业技术人员，有符合规范要求的配置室的医疗机构开展。6周岁及以下儿童加收30%。
B149: 1209 | C149: 9.胃肠减压
A150: =MAX(A$2:A149)+1 -> 124 | B150: 120900001 | C150: 胃肠减压 | D150: 001209000010000 | E150: 胃肠减压 | F150: 含留置胃管抽胃液及间断减压 | G150: 一次性吸引管、负压引流器 | H150: 甲 | I150: 次 | J150: 20.0
B151: 1210 | C151: 10.洗胃
A152: =MAX(A$2:A151)+1 -> 125 | B152: 121000001 | C152: 洗胃 | D152: 001210000010000 | E152: 洗胃 | F152: 含插胃管及冲洗 | G152: 药物和一次性胃管 | H152: 甲 | I152: 次 | J152: 26.0 | M152: 使用洗胃机不再另收，6周岁及以下儿童加收30%
B153: 1211 | C153: 11.物理降温
A154: =MAX(A$2:A153)+1 -> 126 | B154: 121100001 | C154: 一般物理降温 | D154: 001211000010000 | E154: 一般物理降温 | F154: 包括酒精擦浴及冰袋等方法 | H154: 甲 | I154: 次 | J154: 2.6
A155: =MAX(A$2:A154)+1 -> 127 | B155: 121100002 | C155: 特殊物理降温 | D155: 001211000020000 | E155: 特殊物理降温 | F155: 指使用专用降温设备等方法。包括医用降温毯 | H155: 甲 | I155: 次 | J155: 6.5
B156: 1212 | C156: 12.坐浴
A157: =MAX(A$2:A156)+1 -> 128 | B157: 121200001 | C157: 坐浴 | D157: 001212000010000 | E157: 坐浴 | G157: 药物 | H157: 甲 | I157: 次 | J157: 3.9
B158: 1213 | C158: 13.冷热湿敷
A159: =MAX(A$2:A158)+1 -> 129 | B159: 121300001 | C159: 冷热湿敷 | D159: 001213000010000 | E159: 冷热湿敷 | G159: 药物 | H159: 甲 | I159: 次 | J159: 3.9
B160: 1214 | C160: 14.引流管冲洗
A161: =MAX(A$2:A160)+1 -> 130 | B161: 121400002 | C161: 低负压引流治疗 | D161: 003114000600000 | E161: 创面密封负压引流术 | G161: 引流装置 | H161: 乙 | I161: 小时 | J161: 6.0 | M161: 限儿科使用
B162: 1215 | C162: 15.灌肠 | G162: 灌肠管（肛管）、一次性使用肠道冲洗袋
A163: =MAX(A$2:A162)+1 -> 131 | B163: 121500001 | C163: 灌肠 | D163: 001215000010000 | E163: 灌肠 | F163: 包括一般灌肠、保留灌肠、三通氧气灌肠 | G163: 氧气 | H163: 甲 | I163: 次 | J163: 13.0 | M163: 6周岁及以下儿童加收30%
A164: =MAX(A$2:A163)+1 -> 132 | B164: 121500002 | C164: 清洁灌肠 | D164: 001215000020000 | E164: 清洁灌肠 | F164: 含经肛门清洁灌肠及经口全消化道清洁洗肠 | H164: 甲 | I164: 次 | J164: 26.0 | M164: 6周岁及以下儿童加收30%
B165: 1216 | C165: 16.导尿
A166: =MAX(A$2:A165)+1 -> 133 | B166: 121600001 | C166: 导尿 | D166: 001216000010000 | E166: 导尿 | F166: 包括一次性导尿和留置导尿 | G166: 特殊一次性消耗物品（包括导尿包、尿管及尿袋）、引流套件 | H166: 甲 | I166: 次 | J166: 5.2 | M166: 6周岁及以下儿童加收30%
A167: =MAX(A$2:A166)+1 -> 134 | B167: 121600001-a | C167: 留置导尿加收 | D167: 001216000010100 | E167: 导尿(留置导尿) | H167: 甲 | I167: 日 | J167: 1.3 | M167: 留置导尿加收
A168: =MAX(A$2:A167)+1 -> 135 | B168: 121600002 | C168: 膀胱冲洗 | D168: 001216000020000 | E168: 膀胱冲洗 | G168: 特殊一次性耗材 | H168: 甲 | I168: 次 | J168: 20.0
A169: =MAX(A$2:A168)+1 -> 136 | B169: 121600003 | C169: 持续膀胱冲洗 | D169: 001216000030000 | E169: 持续膀胱冲洗 | F169: 包括加压持续冲洗。指膀胱、前列腺、尿道术前术后的治疗,不含留置导尿 | G169: 生理盐水、引流袋 | H169: 甲 | I169: 日 | J169: 50.0
A170: =MAX(A$2:A169)+1 -> 137 | B170: 121600004 | C170: 中段尿培养尿液留取 | D170: 321216000040000 | E170: 中段尿培养尿液留取 | F170: 含一次性材料 | H170: 甲 | I170: 次 | J170: 8.0
B171: 1217 | C171: 17.肛管排气
A172: =MAX(A$2:A171)+1 -> 138 | B172: 121700001 | C172: 肛管排气 | D172: 001217000010000 | E172: 肛管排气 | G172: 肛管 | H172: 甲 | I172: 次 | J172: 3.9 | M172: 6周岁及以下儿童加收30%
B173: 13 | C173: (三)社区卫生服务及预防保健项目 | F173: 药物、化验、检查
B174: 1301 | C174: 1.婴幼儿健康体检
A175: =MAX(A$2:A174)+1 -> 139 | B175: 130100001 | C175: 婴幼儿健康体检 | D175: 001301000010000 | E175: 婴幼儿健康体检 | H175: 丙 | I175: 次 | J175: 市定价
B176: 1302 | C176: 2.儿童龋齿预防保健
A177: =MAX(A$2:A176)+1 -> 140 | B177: 130200001 | C177: 儿童龋齿预防保健 | D177: 001302000010000 | E177: 儿童龋齿预防保健 | F177: 含4岁至学龄前儿童按齿科常规检查 | H177: 乙 | I177: 次 | J177: 市定价
A178: =MAX(A$2:A177)+1 -> 141 | B178: 130200002 | C178: 氟导入儿童龋齿预防 | D178: 001302000010000 | E178: 儿童龋齿预防保健 | F178: 含口腔检查、氟离子导入及相关材料 | H178: 乙 | I178: 次 | J178: 市定价 | M178: 3-13周岁的儿童龋齿预防
B179: 1303 | C179: 3.家庭巡诊
A180: =MAX(A$2:A179)+1 -> 142 | B180: 130300001 | C180: 家庭巡诊 | D180: 001303000010000 | E180: 家庭巡诊 | F180: 含了解服务对象健康状况、指导疾病治疗和康复、进行健康咨询 | H180: 丙 | I180: 次 | J180: 市定价
B181: 1304 | C181: 4.围产保健访视
A182: =MAX(A$2:A181)+1 -> 143 | B182: 130400001 | C182: 围产保健访视 | D182: 001304000010000 | E182: 围产保健访视 | F182: 含出生至满月访视，对围产期保健进行指导，如母乳喂养、产后保健等 | H182: 丙 | I182: 次 | J182: 市定价
B183: 1305 | C183: 5.传染病访视
A184: =MAX(A$2:A183)+1 -> 144 | B184: 130500001 | C184: 传染病访视 | D184: 001305000010000 | E184: 传染病访视 | F184: 含指导家庭预防和疾病治疗、康复 | H184: 丙 | I184: 次 | J184: 市定价
B185: 1306 | C185: 6.家庭病床
A186: =MAX(A$2:A185)+1 -> 145 | B186: 130600001 | C186: 家庭病床建床费 | D186: 001306000010000 | E186: 家庭病床建床费 | F186: 含建立病历和病人全面检查 | H186: 甲 | I186: 次 | J186: 市定价
A187: =MAX(A$2:A186)+1 -> 146 | B187: 130600002 | C187: 家庭病床巡诊费 | D187: 001306000020000 | E187: 家庭病床巡诊费 | F187: 含定期查房和病情记录 | H187: 甲 | I187: 次 | J187: 市定价
B188: 1307 | C188: 7.出诊费
A189: =MAX(A$2:A188)+1 -> 147 | B189: 130700001 | C189: 出诊 | D189: 001307000010000 | E189: 出诊 | F189: 包括急救出诊 | H189: 丙 | I189: 次 | J189: 市定价
A190: =MAX(A$2:A189)+1 -> 148 | B190: 130700001-a | C190: 出诊（副高职称以上） | D190: 001307000010001 | E190: 出诊(副高职称及以上) | H190: 丙 | I190: 次 | J190: 市定价 | M190: 副高职称以上
B191: 1308 | C191: 8.建立健康档案
A192: =MAX(A$2:A191)+1 -> 149 | B192: 130800001 | C192: 建立健康档案 | D192: 001308000010000 | E192: 建立健康档案 | H192: 丙 | I192: 次 | J192: 市定价 | M192: 仅限无经费保障的社区医疗机构收取。
A193: =MAX(A$2:A192)+1 -> 150 | B193: 130800002 | C193: 糖尿病远程管理 | D193: 321110000050000 | E193: 远程门诊（互联网医疗） | F193: 对糖尿病患者的院外血糖控制情况进行实时监控、管理、指导和反馈。 | H193: 丙 | I193: 天 | J193: 市定价
B194: 1309 | C194: 9.疾病健康教育 | M194: 不得向住院病人收取
A195: =MAX(A$2:A194)+1 -> 151 | B195: 130900001 | C195: 健康咨询 | D195: 001309000010000 | E195: 健康咨询 | F195: 指个体健康咨询 | H195: 丙 | I195: 次 | J195: 市定价 | M195: 仅限无经费保障的社区医疗机构收取。
A196: =MAX(A$2:A195)+1 -> 152 | B196: 130900002 | C196: 疾病健康教育 | D196: 001309000020000 | E196: 疾病健康教育 | F196: 指群体健康教育 | H196: 丙 | I196: 人次 | J196: 市定价 | M196: 仅限无经费保障的社区医疗机构收取。
A197: =MAX(A$2:A196)+1 -> 153 | B197: 130900003 | C197: 美沙酮维持治疗 | D197: 003115030300000 | E197: 脱瘾治疗 | F197: 含健康咨询 | H197: 甲 | I197: 天 | J197: 市定价 | M197: 按《江苏省滥用阿片类物质成瘾者社区维持治疗工作方案》执行
B198: 1310 | C198: 10.延伸服务费
A199: =MAX(A$2:A198)+1 -> 154 | B199: 131000001 | C199: 拆零服务费 | D199: 321310000010000 | E199: 拆零服务费 | H199: 甲 | I199: 次 | J199: 0.1
A200: =MAX(A$2:A199)+1 -> 155 | B200: 1311 | C200: 11.一般诊疗费 | D200: 001101000010000 | E200: 挂号费 | F200: 指主治及以下医师提供的普通门诊诊疗服务。挂号，初建病历(电子或纸质病历)，核实就诊者信息，就诊病历传送，病案管理。询问病情，听取主诉，病史采集，向患者或家属告知，进行一般物理检查，书写病历，开具检查单，根据病情提供治疗方案(治疗单、处方)等。 含门诊病历手册、普通门诊诊察费、急诊诊察费、门急诊留观诊察费、肌肉注射、皮下注射、皮内注射、静脉注射、静脉采血、心内注射、动脉加压注射、动脉采血、静脉输液、输血、留置静脉针、小儿静脉输液、小儿头皮输液、小儿输血、小儿留置静脉针。含一次性输液器 | G200: 过滤器、采血器、注射器；药物、血液和血制品；一次性使用静脉营养输液袋，一次性止血带（包括点连式、连抽式，限传染性病人使用），全自动注药泵、胰岛素笔用针头、胰岛素专用注射器、三通管、延长管、留置针、肝素帽、泵条（管）；留置针固定专用透明敷贴、避光输液器（仅限精密过滤标识为：1.0µm、3.0µm和5.0µm）、输液瓶盖贴膜、超低密度聚乙烯输液器（用于以聚氧乙烯蓖麻油和乙醇作增溶剂的药物输注）、一次性使用自动止液输液器、输液托手固定贴 (按《省物价局 省卫生厅 省人力资源和社会保障厅关于基层医疗卫生机构设立“一般诊疗费”项目的通知》（苏价医〔2011〕195号）规定执行) | H200: 乙 | I200: 次 | J200: 市定价 | M200: 患者一次为诊断一种疾病，涉及两个以上科室的，当日只收一次一般诊疗费。开展门诊预约挂号服务的医疗机构，预约服务不得收费。
... 5232 more rows

Sheet 放射检查类
A1: 说明： 1. 本价格项目表以放射检查为重点，按照检查方式的服务产出设立价格项目。 2. 本价格项目表所称“基本物耗”指原则上限于不应或不必要与医疗服务项目分割的易耗品，包括但不限于各类消杀用品、储存用品、清洁用品、个人防护用品、垃圾处理用品、润滑剂、棉球、棉签、纱布（垫）、护（尿）垫、治疗巾（单）、中单、护理盘（包）、治疗包、普通注射器、标签、无菌设备保护套、非药品类对比剂、定影液、显影液、影像存储介质、铅制防护用品、可复用的操作器具、软件（版权、开发、购买）成本等。基本物耗成本计入项目价格，不另行收费。除基本物耗以外的其他耗材，按照实际采购价格零差率销售。 3. 本价格项目表所称“X线摄影成像”中的“部位”，指颅脑、颅底、眼部、中耳乳突、鼻咽部、口腔颌面、颈部软组织、胸部、心脏、上腹部（包含肝胆胰脾及所涵盖区域）、下腹部（指双肾、肾上腺、双肾上缘至盆腔入口以上所涵盖区域）、盆腔（盆腔入口至肛缘）、颈椎、胸椎、腰椎、骶尾部、单侧肩关节、单侧膝关节、单侧髋关节、单侧上肢、单侧下肢、体表软组织、其他。 4. 本价格项目表所称“计算机体层成像（CT）平扫”“计算机体层成像（CT）增强扫描”中的“部位”，指颅脑、颅底、眼部、中耳乳突、鼻咽部、口腔颌面、颈部软组织、胸部、心脏、上腹部（包含肝胆胰脾及所涵盖区域）、下腹部（指双肾、肾上腺、双肾上缘至盆腔入口以上所涵盖区域）、盆腔（盆腔入口至肛缘）、颈椎、胸椎、腰椎、骶尾部、单侧肩关节、单侧膝关节、单侧髋关节、单侧上肢、单侧下肢、体表软组织、其他。 5. 本价格项目表所称“磁共振（MR）平扫”和“磁共振（MR）增强扫描”中的“部位”，指颅脑、颅底、眼部、中耳乳突、鼻咽部、颈部软组织、胸部、心脏、上腹部（包含肝胆胰脾及所涵盖区域）、下腹部（指双肾、肾上腺、双肾上缘至盆腔入口以上所涵盖区域）、盆腔、颈椎、胸椎、腰椎、骶尾部、髋关节、骶髂关节、单侧肩关节、单侧前臂、单侧上臂、单侧手、单侧腕关节、单足、单侧踝关节、单侧肘关节、单侧膝关节、大腿、小腿、体表软组织、其他。 6. 本价格项目表所称“计算机体层（CT）造影成像（血管）”中的“血管”，指颅内动脉、颅内静脉、冠状动脉、肺动脉、胸主动脉、腹主动脉、颈动脉、颈静脉、上肢动脉、下肢动脉、下肢静脉、肺静脉、上腔静脉、下腔静脉、门脉系统。 7. 本价格项目表所称“磁共振（MR）成像（血管）”中的“血管”，指头颅动脉、头颅静脉、肺动脉、颈动脉、颈静脉、胸主动脉、腹主动脉、上肢动脉、下肢动脉、下腔静脉。 8. 本价格项目表所称“能量成像”，指通过两个或更多的能量获取物质衰减信息，基于不同组织的能量依赖性不同导致光子吸收的差异，对不同组织进行鉴别和分类。包括但不限于使用具有双能、能量或光谱等扫描功能的计算机体层成像（CT）设备进行计算机体层成像。 9. 本价格项目表所称“特殊方式成像”，参照国家卫生健康委制定发布的技术规范所列项目，调整制定为以下方式：“磁共振单脏器磁敏感加权成像”“单脏器磁共振波谱分析”“磁共振动态增强成像”“磁共振弥散成像”“功能磁共振”“酰胺质子转移成像”等，不同成像方式可累计计费。 10. 本价格项目表所称“计算机体层（CT）灌注成像”、“磁共振（MR）灌注成像”、“单光子发射断层显像（SPECT）”中的“脏器”，指脑、唾液腺、甲状腺（含甲状旁腺）、食管、肺、心脏、肝脏、胆囊、胰腺、脾脏、肾脏、肾上腺、胃肠道、膀胱输尿管、前列腺、子宫及附件、睾丸。 11. 本价格项目表所称“放射性核素平面显像（静态）”“放射性核素平面显像（动态）”“放射性核素平面显像（全身）”中所指设备包括但不限于通过γ照相机、SPECT、SPECT/CT等单光子发射的显像设备完成的平面静态显像。本项目中已包含3个及以内的体位检查，每增加一体位按一定比例或数额加收。 12. 本价格项目表所称“放射性核素平面显像”、“正电子发射计算机断层显像/计算机断层扫描（PET/CT）”和“正电子发射计算机断层显像/磁共振成像（PET/MRI）”中的“部位”，指头颅、颈部、胸部、腹部（肝、胆、脾、胰、双肾、胃部、肠道）、盆腔、泌尿系、四肢、其他未列部位。 13. 本价格项目表所称“正电子发射计算机断层显像/计算机断层扫描（PET/CT）”和“正电子发射计算机断层显像/磁共振成像（PET/MRI）”中的“局部”指扫描长度70CM，“躯干”指扫描范围从颅底到大腿中上部，“全身”指扫描范围从头到脚。 14. 本价格项目表所称“对比剂”中的药品类对比剂按零差率销售。 15. 公立医疗机构开展相关放射检查须提供符合要求的“数字影像处理和上传存储服务”并执行现行放射检查项目价格，对于不能提供符合要求的“数字影像处理和上传存储服务”的，执行的相关放射检查项目价格减收5元。 16. 允许公立医疗机构在患者自愿选择基础上，若提供“数字胶片云储存服务”，可不再提供实体胶片。将减少实体胶片打印节约的成本，用于补偿数字胶片服务成本。医疗机构在常规提供影像资料后，如需额外提供影像资料，可收取相应费用。 17. 本价格项目表中核医学相关检查项目均不含放射性药品费用。 18. 本价格项目表中“负荷显像”按2次计费。 19. 医保系统相应功能模块建设完成后，医疗机构应将影像资料上传至本地医保系统。 20. 本价格项目表所称的“人工智能辅助诊断”是指应用人工智能技术辅助进行的放射检查诊断，不得与主项目同时收费。
A2: 序号 | B2: 编码 | C2: 项目名称 | D2: 服务产出 | E2: 价格构成 | F2: 医保支付类别 | G2: 计价 | H2: 价格（元） | I2: 计价说明
G3: 单位
B4: 2301 | C4: 放射检查
B5: 230101 | C5: X线检查
A6: 1 | B6: 012301010010000 | C6: X线摄影成像 | D6: 通过X线摄影（含数字化），实现对患者投照部位的定位、X线成像及分析。 | E6: 所定价格涵盖摆位、摄影、成像、分析、出具报告、数字影像处理与上传存储（含数字方式）等步骤所需的人力资源、设备运转成本消耗与基本物质资源消耗。 | F6: 甲 | G6: 部位· 体位 | H6: 40 | I6: 1.“床旁X线摄影”指患者因病情无法前往检查科室，需在病床旁完成X线摄影。在同一次检查中，无论多少部位仅加收一次。2.“影像拼接成像”指双下肢、脊柱全长等的X线摄影成像。3.各级医疗机构开展普通透视、食管钡餐透视检查仍按原价格收费。
A7: 2 | B7: 012301010010001 | C7: X线摄影成像-床旁X线摄影（加收） | F7: 甲 | G7: 次 | H7: 30
A8: 3 | B8: 012301010010011 | C8: X线摄影成像-动态X线摄影（加收） | F8: 甲 | G8: 次 | H8: 40
A9: 4 | B9: 012301010010021 | C9: X线摄影成像-影像拼接成像（加收） | F9: 甲 | G9: 次 | H9: 40
A10: 5 | B10: 012301010010100 | C10: X线摄影成像-人工智能辅助诊断（扩展） | F10: 甲 | G10: 部位· 体位 | H10: 40
A11: 6 | B11: 012301010011100 | C11: X线摄影成像-口腔曲面体层成像（扩展） | F11: 甲 | G11: 部位· 体位 | H11: 40
A12: 7 | B12: 012301010020000 | C12: X线摄影成像（牙片） | D12: 通过X线摄影（含数字化），实现对范围牙齿的X线成像及分析。 | E12: 所定价格涵盖摆位、摄影、成像、分析、出具报告、数字影像处理与上传存储（含数字方式）等步骤所需的人力资源、设备运转成本消耗与基本物质资源消耗。 | F12: 甲 | G12: 部位 | H12: 15 | I12: 部位的定义为：切牙、前磨牙和磨牙，以两个牙位为一个部位；尖牙，以单牙位为一个部位
A13: 8 | B13: 012301010020100 | C13: X线摄影成像（牙片）-人工智能辅助诊断（扩展） | F13: 甲 | G13: 部位 | H13: 15
A14: 9 | B14: 012301010030000 | C14: X线摄影成像（乳腺） | D14: 通过X线摄影（含数字化），实现患者的乳腺X线成像及分析。 | E14: 所定价格涵盖摆位、摄影、成像、分析、出具报告、数字影像处理与上传存储（含数字方式）等步骤所需的人力资源、设备运转成本消耗与基本物质资源消耗。 | F14: 甲 | G14: 单侧 | H14: 70
A15: 10 | B15: 012301010030100 | C15: X线摄影成像（乳腺）-人工智能辅助诊断（扩展） | F15: 甲 | G15: 单侧 | H15: 70
A16: 11 | B16: 012301010040000 | C16: X线造影成像 | D16: 通过X线摄影，对经口服、注射或灌肠方式引入对比剂后的消化道、鼻窦、泪道等各类腔道的形态及功能进行成像及分析（不含穿刺/插管）。 | E16: 所定价格涵盖摆位、对比剂引入、观察、成像、分析、出具报告、数字影像处理与上传存储（含数字方式）等步骤所需的人力资源、设备运转成本消耗与基本物质资源消耗。 | F16: 甲 | G16: 次 | H16: 78
A17: 12 | B17: 012301010040001 | C17: X线造影成像-全消化道造影（加收） | F17: 甲 | G17: 次 | H17: 39
A18: 13 | B18: 012301010040100 | C18: X线造影成像-人工智能辅助诊断（扩展） | F18: 甲 | G18: 次 | H18: 78
A19: 14 | B19: 012301010041100 | C19: X线造影成像-泪道造影（扩展） | F19: 甲 | G19: 次 | H19: 78
A20: 15 | B20: 012301010041200 | C20: X线造影成像-T管造影（扩展） | F20: 甲 | G20: 次 | H20: 78
B21: 230102 | C21: X线计算机体层检查
A22: 16 | B22: 012301020010000 | C22: 计算机体层成像（CT）平扫 | D22: 通过计算机体层成像（CT）平扫，实现患者检查部位的成像及分析。 | E22: 所定价格涵盖摆位、扫描成像、分析、出具报告、数字影像处理与上传存储（含数字方式）等步骤所需的人力资源、设备运转成本消耗与基本物质资源消耗。 | F22: 乙 | G22: 部位 | H22: 190
A23: 17 | B23: 012301020010001 | C23: 计算机体层成像（CT）平扫-能量成像（加收） | F23: 乙 | G23: 次 | H23: 20 | I23: 在同一次检查中，无论多少部位仅加收一次。
A24: 18 | B24: 012301020010021 | C24: 计算机体层成像（CT）平扫-冠脉钙化积分（加收） | F24: 乙 | G24: 次 | H24: 10
A25: 19 | B25: 012301020010100 | C25: 计算机体层成像（CT）平扫-人工智能辅助诊断（扩展） | F25: 乙 | G25: 部位 | H25: 190
A26: 20 | B26: 012301020011100 | C26: 计算机体层成像（CT）平扫-口腔颌面锥形束CT（CBCT）（扩展） | F26: 乙 | G26: 次 | H26: 190
A27: 21 | B27: 012301020020000 | C27: 计算机体层成像（CT）增强 | D27: 通过计算机体层成像（CT）增强扫描，对使用对比剂后的检查部位进行成像及分析。 | E27: 所定价格涵盖摆位、对比剂注射、扫描成像、分析、出具报告、数字影像处理与上传存储（含数字方式）等步骤所需的人力资源和基本物质资源消耗。 | F27: 乙 | G27: 部位 | H27: 255
A28: 22 | B28: 012301020020001 | C28: 计算机体层成像（CT）增强-能量成像（加收） | F28: 乙 | G28: 次 | H28: 20 | I28: 在同一次检查中，无论多少部位仅加收一次。
A29: 23 | B29: 012301020020100 | C29: 计算机体层成像（CT）增强-人工智能辅助诊断（扩展） | F29: 乙 | G29: 部位 | H29: 255
A30: 24 | B30: 012301020021100 | C30: 计算机体层成像（CT）增强-延迟显像（扩展） | F30: 乙 | G30: 部位 | H30: 255
A31: 25 | B31: 012301020030000 | C31: 计算机体层（CT）造影成像（血管） | D31: 通过CT增强扫描，对使用对比剂后的血管进行成像及分析。 | E31: 所定价格涵盖摆位、对比剂注射、扫描成像、分析、出具报告、数字影像处理与上传存储（含数字方式）等步骤所需的人力资源和基本物质资源消耗。 | F31: 乙 | G31: 血管 | H31: 400
A32: 26 | B32: 012301020030001 | C32: 计算机体层（CT）造影成像（血管）-能量成像（加收） | F32: 乙 | G32: 次 | H32: 20 | I32: 在同一次检查中，无论多少血管仅加收一次。
A33: 27 | B33: 012301020030100 | C33: 计算机体层（CT）造影成像（血管）-人工智能辅助诊断（扩展） | F33: 乙 | G33: 血管 | H33: 400
A34: 28 | B34: 012301020040000 | C34: 计算机体层（CT）灌注成像 | D34: 通过连续CT扫描，对使用对比剂后局部组织血流进行灌注成像及分析。 | E34: 所定价格涵盖摆位、对比剂注射、连续扫描成像、分析、出具报告、数字影像处理与上传存储（含数字方式）等步骤所需的人力资源和基本物质资源消耗。 | F34: 乙 | G34: 脏器 | H34: 400
A35: 29 | B35: 012301020040001 | C35: 计算机体层（CT）灌注成像-心电门控（加收） | F35: 乙 | G35: 次 | H35: 20
A36: 30 | B36: 012301020040100 | C36: 计算机体层（CT）灌注成像-人工智能辅助诊断（扩展） | F36: 乙 | G36: 脏器 | H36: 400
B37: 230103 | C37: 磁共振检查
A38: 31 | B38: 012301030010000 | C38: 磁共振（MR）平扫 | D38: 通过磁共振平扫，实现患者检查部位的成像及分析。 | E38: 所定价格涵盖摆位、扫描成像、分析、出具报告、数字影像处理与上传存储（含数字方式）等步骤所需的人力资源、设备运转成本消耗与基本物质资源消耗。 | F38: 乙 | G38: 部位 | H38: 440 | I38: 复杂成像指对心脏、胎儿进行磁共振平扫成像。
A39: 32 | B39: 012301030010001 | C39: 磁共振（MR）平扫-特殊方式成像（加收） | F39: 乙 | G39: 项 | H39: 50 | I39: 无论多少部位，使用同一成像方式仅加收一次；不同成像方式可累计收费。
A40: 33 | B40: 012301030010011 | C40: 磁共振（MR）平扫-复杂成像（加收） | F40: 乙 | G40: 次 | H40: 80
A41: 34 | B41: 012301030010021 | C41: 磁共振（MR）平扫-呼吸门控（加收） | F41: 乙 | G41: 次 | H41: 20
A42: 35 | B42: 012301030010100 | C42: 磁共振（MR）平扫-人工智能辅助诊断（扩展） | F42: 乙 | G42: 部位 | H42: 440
A43: 36 | B43: 012301030020000 | C43: 磁共振（MR）增强 | D43: 通过磁共振增强扫描，对使用对比剂后的检查部位进行成像及分析。 | E43: 所定价格涵盖穿刺、摆位、对比剂注射、扫描成像、分析、出具报告、数字影像处理与上传存储（含数字方式）等步骤所需的人力资源、设备运转成本消耗与基本物质资源消耗。 | F43: 乙 | G43: 部位 | H43: 495
A44: 37 | B44: 012301030020001 | C44: 磁共振（MR）增强-特殊方式成像（加收） | F44: 乙 | G44: 项 | H44: 50 | I44: 无论多少部位，使用同一成像方式仅加收一次；不同成像方式可累计收费。
A45: 38 | B45: 012301030020011 | C45: 磁共振（MR）增强-心脏（加收） | F45: 乙 | G45: 次 | H45: 80
A46: 39 | B46: 012301030020021 | C46: 磁共振（MR）增强-呼吸门控（加收） | F46: 乙 | G46: 次 | H46: 20
A47: 40 | B47: 012301030020100 | C47: 磁共振（MR）增强-人工智能辅助诊断（扩展） | F47: 乙 | G47: 部位 | H47: 495
A48: 41 | B48: 012301030030000 | C48: 磁共振（MR）平扫成像（血管） | D48: 通过磁共振平扫，对血管进行成像及分析。 | E48: 所定价格涵盖摆位、扫描成像、分析、出具报告、数字影像处理与上传存储（含数字方式）等步骤所需的人力资源、设备运转成本消耗与基本物质资源消耗。 | F48: 乙 | G48: 血管 | H48: 440
A49: 42 | B49: 012301030030001 | C49: 磁共振（MR）平扫成像（血管）-高分辨率血管壁成像（加收） | F49: 乙 | G49: 血管 | H49: 50
A50: 43 | B50: 012301030030011 | C50: 磁共振（MR）平扫成像（血管）-呼吸门控（加收） | F50: 乙 | G50: 次 | H50: 20
A51: 44 | B51: 012301030030100 | C51: 磁共振（MR）平扫成像（血管）-人工智能辅助诊断（扩展） | F51: 乙 | G51: 血管 | H51: 440
A52: 45 | B52: 012301030040000 | C52: 磁共振（MR）增强成像（血管） | D52: 通过磁共振扫描，注射对比剂后对血管进行成像及分析。 | E52: 所定价格涵盖穿刺、摆位、对比剂注射、扫描成像、分析、出具报告、数字影像处理与上传存储（含数字方式）等步骤所需的人力资源、设备运转成本消耗与基本物质资源消耗。 | F52: 乙 | G52: 血管 | H52: 495
A53: 46 | B53: 012301030040001 | C53: 磁共振（MR）增强成像（血管）-高分辨率血管壁成像（加收） | F53: 乙 | G53: 血管 | H53: 50
A54: 47 | B54: 012301030040011 | C54: 磁共振（MR）增强成像（血管）-呼吸门控（加收） | F54: 乙 | G54: 次 | H54: 20
A55: 48 | B55: 012301030040021 | C55: 磁共振（MR）增强成像（血管）-冠状动脉（加收） | F55: 乙 | G55: 次 | H55: 80
A56: 49 | B56: 012301030040100 | C56: 磁共振（MR）增强成像（血管）-人工智能辅助诊断（扩展） | F56: 乙 | G56: 血管 | H56: 495
A57: 50 | B57: 012301030050000 | C57: 磁共振（MR）灌注成像 | D57: 通过磁共振增强扫描，对非使用对比剂技术或使用对比剂后的检查部位进行灌注成像及分析。 | E57: 所定价格涵盖穿刺（使用对比剂时）、摆位、对比剂注射（使用对比剂时）、扫描成像、分析、出具报告、数字影像处理与上传存储（含数字方式）等步骤所需的人力资源、设备运转成本消耗与基本物质资源消耗。 | F57: 乙 | G57: 脏器 | H57: 545 | I57: “非使用对比剂技术”包括但不限于使用氢质子成像、磁共振动态增强成像、氙磁共振成像技术、使用自旋标记技术等。
A58: 51 | B58: 012301030050001 | C58: 磁共振（MR）灌注成像-呼吸门控（加收） | F58: 乙 | G58: 次 | H58: 20
A59: 52 | B59: 012301030050100 | C59: 磁共振（MR）灌注成像-人工智能辅助诊断（扩展） | F59: 乙 | G59: 脏器 | H59: 545
A60: 53 | B60: 012301030051100 | C60: 磁共振（MR）灌注成像-磁共振（MR）动态增强（扩展） | F60: 乙 | G60: 脏器 | H60: 545
B61: 2303 | C61: 核医学诊断
B62: 230301 | C62: 放射性核素平面显像
A63: 54 | B63: 012303010010000 | C63: 放射性核素平面显像（静态） | D63: 通过采集体内放射性静态分布图像，提供组织器官的功能信息。 | E63: 所定价格涵盖放射性药品注射或口服给药、摆位、图像采集、数字影像处理与上传存储（含数字方式）、分析、出具报告等步骤所需的人力资源、设备运转成本消耗与基本物质资源消耗。 | F63: 乙 | G63: 部位 | H63: 190 | I63: 两个及以上部位按全身收费
A64: 55 | B64: 012303010010001 | C64: 放射性核素平面显像（静态）-增加体位（加收） | F64: 乙 | G64: 体位 | H64: 30
A65: 56 | B65: 012303010010011 | C65: 放射性核素平面显像（静态）-延迟显像（加收） | F65: 乙 | G65: 部位 | H65: 30
A66: 57 | B66: 012303010010100 | C66: 放射性核素平面显像（静态）-人工智能辅助诊断（扩展） | F66: 乙 | G66: 部位 | H66: 190
A67: 58 | B67: 012303010020000 | C67: 放射性核素平面显像（动态） | D67: 通过采集体内放射性动态分布图像，提供组织器官的功能信息。 | E67: 所定价格涵盖放射性药品注射或口服给药、摆位、图像采集、数字影像处理与上传存储（含数字方式）、分析、出具报告等步骤所需的人力资源、设备运转成本消耗与基本物质资源消耗。 | F67: 乙 | G67: 部位 | H67: 219 | I67: 两个及以上部位按全身收费
A68: 59 | B68: 012303010020001 | C68: 放射性核素平面显像（动态）-增加体位（加收） | F68: 乙 | G68: 体位 | H68: 30
A69: 60 | B69: 012303010020011 | C69: 放射性核素平面显像（动态）-延迟显像（加收） | F69: 乙 | G69: 部位 | H69: 20
A70: 61 | B70: 012303010020100 | C70: 放射性核素平面显像（动态）-人工智能辅助诊断（扩展） | F70: 乙 | G70: 部位 | H70: 219
A71: 62 | B71: 012303010030000 | C71: 放射性核素平面显像（全身） | D71: 通过采集体内放射性全身分布图像，提供组织器官的功能信息。 | E71: 所定价格涵盖放射性药品注射或口服给药、摆位、图像采集、数字影像处理与上传存储（含数字方式）、分析、出具报告等步骤所需的人力资源、设备运转成本消耗与基本物质资源消耗。 | F71: 乙 | G71: 次 | H71: 400
A72: 63 | B72: 012303010030001 | C72: 放射性核素平面显像（全身）-增加体位（加收） | F72: 乙 | G72: 体位 | H72: 30
A73: 64 | B73: 012303010030011 | C73: 放射性核素平面显像（全身）-延迟显像（加收） | F73: 乙 | G73: 次 | H73: 30
A74: 65 | B74: 012303010030100 | C74: 放射性核素平面显像（全身）-人工智能辅助诊断（扩展） | F74: 乙 | G74: 次 | H74: 400
B75: 230302 | C75: 单光子发射断层显像
A76: 66 | B76: 012303020010000 | C76: 单光子发射断层显像（SPECT）（部位） | D76: 通过采集体内放射性静态断层分布图像，提供单个脏器或组织功能信息。 | E76: 所定价格涵盖放射性药品注射或口服给药、摆位、图像采集、数字影像处理与上传存储（含数字方式）、分析、出具报告等步骤所需的人力资源、设备运转成本消耗与基本物质资源消耗。 | F76: 乙 | G76: 次 | H76: 300 | I76: “次”指首个脏器，超过两个脏器按全身收费。
A77: 67 | B77: 012303020010011 | C77: 单光子发射断层显像（SPECT）（部位）-负荷显像（加收） | F77: 乙 | G77: 次 | H77: 30
A78: 68 | B78: 012303020010021 | C78: 单光子发射断层显像（SPECT）（部位）-单光子发射计算机断层显像/计算机断层扫描（SPECT/CT）图像融合（加收） | F78: 乙 | G78: 次 | H78: 180
A79: 69 | B79: 012303020010100 | C79: 单光子发射断层显像（SPECT）（部位）-人工智能辅助诊断（扩展） | F79: 乙 | G79: 次 | H79: 300
A80: 70 | B80: 012303020020000 | C80: 单光子发射断层显像（SPECT）（全身） | D80: 通过采集体内放射性全身断层分布图像，提供全身脏器或组织功能信息。 | E80: 所定价格涵盖放射性药品注射或口服给药、摆位、图像采集、数字影像处理与上传存储（含数字方式）、分析、出具报告等步骤所需的人力资源、设备运转成本消耗与基本物质资源消耗。 | F80: 乙 | G80: 次 | H80: 450
A81: 71 | B81: 012303020020001 | C81: 单光子发射断层显像（SPECT）（全身）-负荷显像（加收） | F81: 乙 | G81: 次 | H81: 30
A82: 72 | B82: 012303020020011 | C82: 单光子发射断层显像（SPECT）（全身）-单光子发射计算机断层显像/计算机断层扫描（SPECT/CT）图像融合（加收） | F82: 乙 | G82: 次 | H82: 270
A83: 73 | B83: 012303020020100 | C83: 单光子发射断层显像（SPECT）（全身）-人工智能辅助诊断（扩展） | F83: 乙 | G83: 次 | H83: 450
B84: 230303 | C84: 正电子发射计算机断层显像
A85: 74 | B85: 012303030010000 | C85: 正电子发射计算机断层显像/计算机断层扫描（PET/CT）（局部） | D85: 通过正电子发射计算机断层显像设备与计算机体层扫描设备进行显像，提供局部组织器官的形态结构、代谢和功能信息。 | E85: 所定价格涵盖放射性药品注射、口服给药或其他、摆位、图像采集、数字影像处理与上传存储（含数字方式）、分析、出具报告等步骤所需的人力资源、设备运转成本消耗与基本物质资源消耗。 | F85: 丙 | G85: 部位 | H85: 2455 | I85: 两个以上部位按全身收费
A86: 75 | B86: 012303030010100 | C86: 正电子发射计算机断层显像/计算机断层扫描（PET/CT）（局部）-人工智能辅助诊断（扩展） | F86: 丙 | G86: 部位 | H86: 2455
A87: 76 | B87: 012303030011100 | C87: 正电子发射计算机断层显像/计算机断层扫描（PET/CT）（局部）-延迟显像（扩展） | F87: 丙 | G87: 部位 | H87: 2455
A88: 77 | B88: 012303030020000 | C88: 正电子发射计算机断层显像/计算机断层扫描（PET/CT）（躯干） | D88: 通过正电子发射计算机断层显像设备与计算机体层扫描设备进行显像，提供躯干组织器官的形态结构、代谢和功能信息。 | E88: 所定价格涵盖放射性药品注射、口服给药或其他、摆位、图像采集、数字影像处理与上传存储（含数字方式）、分析、出具报告等步骤所需的人力资源、设备运转成本消耗与基本物质资源消耗。 | F88: 丙 | G88: 部位 | H88: 4000 | I88: 躯干和局部同时开展按全身收费
A89: 78 | B89: 012303030020001 | C89: 正电子发射计算机断层显像/计算机断层扫描（PET/CT）（躯干）-全身加收（加收） | F89: 丙 | G89: 次 | H89: 1000
A90: 79 | B90: 012303030020100 | C90: 正电子发射计算机断层显像/计算机断层扫描（PET/CT）（躯干）-人工智能辅助诊断（扩展） | F90: 丙 | G90: 部位 | H90: 4000
A91: 80 | B91: 012303030021100 | C91: 正电子发射计算机断层显像/计算机断层扫描（PET/CT）（躯干）-延迟显像（扩展） | F91: 丙 | G91: 部位 | H91: 4000
A92: 81 | B92: 012303030030000 | C92: 正电子发射计算机断层显像/磁共振成像（PET/MRI）（局部） | D92: 通过正电子发射计算机断层显像设备与磁共振设备进行显像，提供局部组织器官的形态结构、代谢和功能信息。 | E92: 所定价格涵盖放射性药品注射、口服给药或其他、摆位、图像采集、数字影像处理与上传存储（含数字方式）、分析、出具报告等步骤所需的人力资源、设备运转成本消耗与基本物质资源消耗。 | F92: 丙 | G92: 部位 | H92: 4500 | I92: 两个及以上部位按全身收费
A93: 82 | B93: 012303030030100 | C93: 正电子发射计算机断层显像/磁共振成像（PET/MRI）（局部）-人工智能辅助诊断（扩展） | F93: 丙 | G93: 部位 | H93: 4500
A94: 83 | B94: 012303030040000 | C94: 正电子发射计算机断层显像/磁共振成像（PET/MRI）（躯干） | D94: 通过正电子发射计算机断层显像设备与磁共振设备进行显像，提供躯干组织器官的形态结构、代谢和功能信息。 | E94: 所定价格涵盖放射性药品注射、口服给药或其他、摆位、图像采集、数字影像处理与上传存储（含数字方式）、分析、出具报告等步骤所需的人力资源、设备运转成本消耗与基本物质资源消耗。 | F94: 丙 | G94: 部位 | H94: 6500 | I94: 躯干和局部同时开展按全身收费
A95: 84 | B95: 012303030040001 | C95: 正电子发射计算机断层显像/磁共振成像（PET/MRI）（躯干）-全身加收（加收） | F95: 丙 | G95: 次 | H95: 1500
A96: 85 | B96: 012303030040100 | C96: 正电子发射计算机断层显像/磁共振成像（PET/MRI）（躯干）-人工智能辅助诊断（扩展） | F96: 丙 | G96: 部位 | H96: 6500
B97: 230304 | C97: 核素功能试验
A98: 86 | B98: 012303040010000 | C98: 甲状腺摄碘131试验 | D98: 通过甲状腺摄取碘131试验，动态评估甲状腺对碘的吸收功能，提供甲状腺功能状况的信息。 | E98: 所定价格涵盖放射性药品给药、标准源制备、多点测量、计数、计算甲状腺摄碘率、数据存储、出具报告等步骤所需的人力资源与基本物质资源消耗。 | F98: 甲 | G98: 次 | H98: 65
A99: 87 | B99: 012303040020000 | C99: 尿碘131排泄试验 | D99: 通过测量尿液中排泄的碘131量，实现对体内碘含量情况的评估。 | E99: 所定价格涵盖放射性药品给药、收集尿液、标准源制备、测量、数据分析与计算、出具报告等步骤所需的人力资源与基本物质资源消耗。 | F99: 甲 | G99: 次 | H99: 55
A100: 88 | B100: 012303040030000 | C100: 核素标记测定 | D100: 通过放射性同位素标记红细胞、白蛋白，测定体内总红细胞量、红细胞在体内的平均存活时间及总血浆量，辅助诊断和管理血液疾病、心血管疾病、肾脏疾病及体液失衡状态。 | E100: 所定价格涵盖取血、核素标记红细胞、白蛋白制备、标记红细胞、白蛋白静脉注射、再次取血、放射性测量、计算、出具报告等步骤所需的人力资源与基本物质资源消耗。 | F100: 丙 | G100: 项 | H100: 75
A101: 89 | B101: 012303040040000 | C101: 肾图 | D101: 通过核素肾功能扫描，测量肾脏滤过率、排泄功能及血流情况，实现对肾脏功能的综合评估。 | E101: 所定价格涵盖放射性药品注射或口服给药、摆位、图像采集、出具报告等步骤所需的人力资源与基本物质资源消耗。 | F101: 甲 | G101: 次 | H101: 65
A102: 90 | B102: 012303040040001 | C102: 肾图-干预肾图（加收） | F102: 甲 | G102: 次 | H102: 20

Sheet 泌尿系统透析类
A1: 说明： 1. 本价格项目表以泌尿系统为重点，按照泌尿系统诊查、治疗、手术相关主要环节的服务产出设立医疗服务价格项目。 2. 本价格项目表所称的“基本物耗”指原则上限于不应或不必要与医疗服务项目分割的易耗品，包括但不限于各类消杀灭菌用品、储存用品、清洁用品、个人防护用品、垃圾处理用品、滑石粉、标签、防渗漏垫、中单、护（尿）垫、棉球、棉签、纱布（垫）、治疗护理盘（包）、治疗巾（单）、手术一对一巾（单）、手术包、普通注射器、可复用的操作器具、冲洗工具、报告打印耗材、碘伏帽、肝素帽、血液透析器、血液透析滤过器、血透管路、血透置换液（成品或自制）、血透透析液、穿刺针以及血液透析、血液滤过等相关操作使用的其他医用耗材、软件（版权、开发、购买）成本等。基本物耗成本计入项目价格，不另行收费。除基本物耗以外的其他耗材，按照实际采购价格零差率销售。患者居家腹透，所需的碘伏帽、透析液等药品耗材，医疗机构可按零差率要求单独收费，无需捆绑价格项目。 3. 本价格项目表价格构成中所称的“穿刺”为主项操作涉及的必要穿刺步骤。 4. 本价格项目表所称的“腹膜透析操作训练费”是指患者在医疗机构院内当面接受专业人员医学指导的情况；患者居家，请医疗机构派专业人员上门提供医学指导的情况，医疗机构在收取“腹膜透析操作训练费”费用的同时，可据实加收“上门服务费”。医疗机构以录播视频、音频等方式提供非实时的医学指导，不得收取“腹膜透析操作训练费”。
A2: 序号 | B2: 编码 | C2: 项目名称 | D2: 服务产出 | E2: 价格构成 | F2: 医保支付类别 | G2: 计价单位 | H2: 价格（元） | L2: 计价说明
H3: 三类医院 | J3: 二类医院 | K3: 一类医院
A4: 1 | B4: 013110000010000 | C4: 血液透析费 | D4: 通过弥散和对流原理清除血液中过多水分和有害物质。 | E4: 所定价格涵盖消毒、穿刺、安装设定、连接管路、监测、血液回输、加压止血、封管、处理用物等步骤所需的人力资源和基本物质资源消耗。 | F4: 乙 | G4: 次 | H4: 399 | K4: 市定价 | L4: 本项目中的“监测”指：血温、血压、在线清除率、血容量监测，医院未完成全部四项监测事项的，每少完成一项减收5元。
A5: 2 | B5: 013110000020000 | C5: 血液滤过费 | D5: 通过对流原理清除血液中过多水分和有害物质。 | E5: 所定价格涵盖消毒、穿刺、建立通路、抗凝处理、连接管路、补充置换液、清除毒素及水分、监测、封管、处理用物等步骤所需的人力资源和基本物质资源消耗。 | F5: 乙 | G5: 次 | H5: 399 | K5: 市定价 | L5: 本项目中的“监测”指：血温、血压、在线清除率、血容量监测，医院未完成全部四项监测事项的，每少完成一项减收5元。
A6: 3 | B6: 013110000030000 | C6: 血液透析滤过费 | D6: 通过同时进行血液透析和血液滤过清除血液中过多水分和有害物质。 | E6: 所定价格涵盖消毒、穿刺、建立通路、连接管路、参数设置、清除毒素及水分滤过、监测、封管、处理用物等步骤所需的人力资源和基本物质资源消耗。 | F6: 乙 | G6: 次 | H6: 599 | K6: 市定价 | L6: 本项目中的“监测”指：血温、血压、在线清除率、血容量监测，医院未完成全部四项监测事项的，每少完成一项减收5元。
A7: 4 | B7: 013110000040000 | C7: 血液灌流费 | D7: 通过吸附原理‌直接结合血液中的中大分子及蛋白结合毒素。 | E7: 所定价格涵盖消毒、穿刺、建立通路、连接管路、参数设置、血液灌流、回输、封管、处理用物等步骤所需的人力资源和基本物质资源消耗。 | F7: 乙 | G7: 次 | H7: 378 | K7: 市定价
A8: 5 | B8: 013110000050000 | C8: 血液透析灌流费 | D8: 通过同时进行血液透析和血液灌流清除血液中过多水分和有害物质。 | E8: 所定价格涵盖消毒、穿刺、建立通路、连接管路、参数设置、透析灌流、监测、封管、处理用物等步骤所需的人力资源和基本物质资源消耗。 | F8: 乙 | G8: 次 | H8: 780 | K8: 市定价 | L8: 本项目中的“监测”指：血温、血压、在线清除率、血容量监测，医院未完成全部四项监测事项的，每少完成一项减收5元。
A9: 6 | B9: 013110000080000 | C9: 连续性肾脏替代治疗费 | D9: 通过血液净化实现连续肾脏替代治疗和多脏器功能衰竭的生命支持治疗。 | E9: 所定价格涵盖消毒、穿刺、连接管路、上机、血液净化、体外抗凝、回输、去除装置、处理用物等步骤所需的人力资源和基本物质资源消耗。 | F9: 乙 | G9: 小时 | H9: 80 | K9: 市定价 | L9: 连续性肾脏替代治疗、连续性血浆吸附滤过治疗使用的滤器、管路、置换液按照实际采购价格零差率销售，可另行收取相应费用。
A10: 7 | B10: 013110000080001 | C10: 连续性肾脏替代治疗费-连续性血浆吸附滤过治疗（加收） | F10: 乙 | G10: 小时 | H10: 80 | K10: 市定价
A11: 8 | B11: 013110000090000 | C11: 腹膜透析费（人工） | D11: 通过人工进行肾脏替代治疗，清除毒素和/或水分。 | E11: 所定价格涵盖操作前准备、透析管连接、注入透析液、引流液收集、记录等步骤所需的人力资源和基本物质资源消耗。 | F11: 甲 | G11: 次 | H11: 20 | K11: 市定价
A12: 9 | B12: 013110000100000 | C12: 腹膜透析费（自动） | D12: 通过设备进行肾脏替代治疗，清除毒素和/或水分。 | E12: 所定价格涵盖设备准备、透析管连接、设备运行、引流液收集、记录等步骤所需的人力资源和基本物质资源消耗。 | F12: 甲 | G12: 小时 | H12: 10 | K12: 市定价
A13: 10 | B13: 013110000110000 | C13: 腹膜透析操作训练费 | D13: 由医疗机构提供腹膜透析治疗的相关操作训练和指导，使患者具备自我操作腹膜透析和疾病自我管理的能力。 | E13: 所定价格涵盖医务人员对患者及照顾者进行培训，使其掌握家庭腹膜透析技能所需的人力资源和基本物质资源消耗。 | F13: 丙 | G13: 小时 | H13: 50 | K13: 市定价 | L13: 同一住院周期，训练总时长超过7小时的，按7小时收费。
A14: 11 | B14: 013110000150000 | C14: 腹膜平衡试验费 | D14: 对腹膜功能进行检测，调整腹膜透析方案。 | E14: 所定价格涵盖腹透换液、留取标本、测量、计算、出具方案、处理用物等步骤所需的人力资源和基本物质资源消耗。 | F14: 甲 | G14: 次 | H14: 78 | K14: 市定价
A15: 12 | B15: 013110000160000 | C15: 腹膜透析导管复位费（导丝复位） | D15: 通过导丝调整复位移位的腹膜透析导管，恢复导管功能。 | E15: 所定价格涵盖消毒、修复、调整管路、试水通畅等步骤所需的人力资源和基本物质资源消耗。 | F15: 甲 | G15: 次 | H15: 129 | K15: 市定价 | L15: 不与“腹膜透析导管复位费（手术复位）”同时收取。
A16: 13 | B16: 013110000170000 | C16: 腹膜透析导管取出费 | D16: 通过各种方式取出腹膜透析导管。 | E16: 所定价格涵盖消毒、切开、分离、拔管、缝合等步骤所需的人力资源和基本物质资源消耗。 | F16: 甲 | G16: 次 | H16: 260 | K16: 市定价
A17: 14 | B17: 013311000010000 | C17: 腹膜透析置管费 | D17: 通过各种方式放置腹膜透析导管。 | E17: 所定价格涵盖消毒、切开、穿刺或分离、置管、试水通畅、缝合、处理用物等步骤所需的人力资源和基本物质资源消耗。 | F17: 甲 | G17: 次 | H17: 520 | I17: 468 | K17: 市定价
A18: 15 | B18: 013311000010001 | C18: 腹膜透析置管费-儿童（加收） | F18: 甲 | G18: 次 | L18: 6周岁及以下儿童按主项的30%加收
A19: 16 | B19: 013311000020000 | C19: 腹膜透析换管费 | D19: 更换破损、堵塞、移位的腹膜透析导管。 | E19: 所定价格涵盖消毒、切开、拔除旧管、原位置入新管、试水通畅、缝合、处理用物等步骤所需的人力资源和基本物质资源消耗。 | F19: 甲 | G19: 次 | H19: 520 | I19: 468 | K19: 市定价 | L19: 不与“腹膜透析置管费”“腹膜透析导管取出费”“腹膜透析导管感染清创费”同时收取。
A20: 17 | B20: 013311000020001 | C20: 腹膜透析换管费-儿童（加收） | F20: 甲 | G20: 次 | L20: 6周岁及以下儿童按主项的30%加收
A21: 18 | B21: 013311000030000 | C21: 腹膜透析导管复位费（手术复位） | D21: 通过手术调整复位移位的腹膜透析导管，恢复导管功能。 | E21: 所定价格涵盖消毒、修复、调整管路、试水通畅、缝合及必要时使用导丝调整、处理用物等步骤所需的人力资源和基本物质资源消耗。 | F21: 甲 | G21: 次 | H21: 400 | I21: 360 | K21: 市定价 | L21: 不与“腹膜透析导管复位费（导丝复位）”同时收取。
A22: 19 | B22: 013311000030001 | C22: 腹膜透析导管复位费（手术复位）-儿童（加收） | F22: 甲 | G22: 次 | L22: 6周岁及以下儿童按主项的30%加收

Sheet 产科类
A1: 说明： 1. 本价格项目表以产科为重点、按照孕产相关主要环节的服务产出设立医疗服务价格项目。 2. 本价格项目表所称的“基本物耗”指原则上限于不应或不必要与医疗服务项目分割的易耗品，包括但不限于各类消杀灭菌用品、储存用品、清洁用品、个人防护用品、垃圾处理用品、阴道扩张器、冲洗液、润滑剂、棉球、棉签、纱布（垫）、护（尿）垫、手术巾（单）、治疗巾（单）、中单、治疗护理盘（包）、手术包、注射器、滑石粉、防渗漏垫、标签、可复用的操作器具、冲洗工具。基本物耗成本计入项目价格，不另行收费。除基本物耗以外的其他耗材，按照实际采购价格零差率销售。 3. 本价格项目表中所称的计价单位“胎/次”，指每胎每次。 4. 涉及“复杂”“特殊”等内涵未尽的表述，除立项价格项目表中已明确的情形外，医院实践中按照“特殊”“复杂”情形计费的，应以国家级技术规范、临床价格项目表或专家共识中的明确定性为前提。 5. 本价格项目表价格构成中所称的“穿刺”为主项操作涉及的必要穿刺技术。
A2: 序号 | B2: 编码 | C2: 项目名称 | D2: 服务产出 | E2: 价格构成 | F2: 医保支付类别 | G2: 计价单位 | H2: 价格（元） | K2: 计价说明
H3: 三类医院 | I3: 二类医院 | J3: 一类医院
B4: 311202 | C4: 产科孕产系统
A5: 1 | B5: 013112020010000 | C5: 产前常规检查 | D5: 产前对孕妇进行的规范检查、遗传等咨询解答及有关健康指导。 | E5: 所定价格涵盖推算孕周、测量孕妇体重、宫高、腹围、血压及听胎心、孕期触诊，以及判断胎位状态、胎儿是否符合孕周等孕期检查、分娩前评估和健康指导步骤所需的人力资源和基本物质资源消耗。 | F5: 甲 | G5: 次 | H5: 17 | J5: 市定价 | K5: 指在门诊/急诊期间对孕妇进行的常规检查及健康指导，在住院期间对孕/产妇实施价格构成中所列的医疗服务事项，不再单独计费，例如国家卫生健康委制定发布技术规范中所列的“多普勒胎心计数”。
A6: 2 | B6: 013112020020000 | C6: 胎心监测 | D6: 监测胎儿心率及宫缩压力波形实时变化，达到评估胎儿宫内情况的目的。 | E6: 所定价格涵盖定位、固定探头、监测、出具报告等所需的人力资源和基本物质资源消耗。 | F6: 甲 | G6: 胎/次 | H6: 26 | J6: 市定价 | K6: 监测的时间要求对照国家卫生健康委《全国医疗服务项目技术规范（2023年版）》相关内容。
A7: 3 | B7: 013112020030000 | C7: 胎心监测（远程） | D7: 远程监测胎儿心率及宫缩压力波形实时变化，达到产妇离院状态下评估胎儿宫内情况的目的。 | E7: 所定价格涵盖定位、固定探头、监测、出具报告等所需的人力资源和基本物质资源消耗。 | F7: 丙 | G7: 日 | H7: 55 | J7: 市定价
A8: 4 | B8: 013112020040000 | C8: 羊膜腔穿刺 | D8: 经羊膜腔获取检测样本，用于产前诊断。 | E8: 所定价格涵盖定位、消毒、穿刺、取样、观察等羊膜腔穿刺所有必要操作所需人力资源和基本物质资源消耗。 | F8: 甲 | G8: 胎/次 | H8: 195 | J8: 市定价
A9: 5 | B9: 013112020040100 | C9: 羊膜腔穿刺-羊膜腔穿刺注药（扩展） | F9: 甲 | G9: 胎/次 | H9: 195 | J9: 市定价
A10: 6 | B10: 013112020050000 | C10: 绒毛取材 | D10: 穿刺获取胎盘绒毛样本。 | E10: 所定价格涵盖定位、消毒、穿刺、取材等绒毛取材所有必要操作所需的人力资源和基本物质资源消耗。 | F10: 丙 | G10: 胎/次 | H10: 553 | J10: 市定价
A11: 7 | B11: 013112020060000 | C11: 胎儿内镜检查 | D11: 经内镜观察宫内胎儿及胎盘情况。 | E11: 所定价格涵盖定位、内镜置入、观察、撤除等，必要时取样等操作所需的人力资源和基本物质资源消耗。 | F11: 丙 | G11: 胎/次 | H11: 449 | J11: 市定价
A12: 8 | B12: 013112020070000 | C12: 催引产 | D12: 通过各种方式促宫颈成熟，以促发临产。 | E12: 所定价格涵盖促宫颈成熟等所有必要操作所需的人力资源和基本物质资源消耗。 | F12: 甲 | G12: 日 | H12: 207 | J12: 市定价 | K12: 指自然日，不足一个自然日按一个自然日计。
A13: 9 | B13: 013112020080000 | C13: 产程管理 | D13: 临产后，进入待产室至第二产程前或阴道试产，对产妇的产程进展进行管理。 | E13: 所定价格涵盖观察产妇生命体征、宫缩及宫口扩张情况、监测胎心、判断产程进展、记录产程过程，给予相应的安抚、指导，根据需要采取干预措施，必要时行人工破膜等所需的人力资源和基本物质资源消耗。 | F13: 甲 | G13: 次 | H13: 208 | J13: 市定价 | K13: 第二产程是指从宫口开全至胎儿娩出。
A14: 10 | B14: 013112020090000 | C14: 分娩镇痛 | D14: 采用麻醉镇痛，以起到减轻产妇分娩过程疼痛，提高分娩质量及舒适度，保证孕产安全的作用。 | E14: 所定价格涵盖评估、建立通路、摆放体位、穿刺、置管、剂量验证、观察、注药、氧饱和度监测、装置连接、参数设定、评分、记录、分析病情，必要时调整剂量、撤除装置等所需的人力资源和基本物质资源消耗。 | F14: 甲 | G14: 小时 | H14: 600 | J14: 市定价 | K14: 以2小时为基础计费，超过2小时每增加1小时加收200元，总价最高不超过2000元。
A15: 11 | B15: 013112020100000 | C15: 导乐分娩 | D15: 由专业人员给予孕妇导乐相关知识讲解及陪伴，进行合理用力及分娩配合指导。 | E15: 应用呼吸减痛、分娩球、腰骶按摩、自由体位等非药物方法减轻分娩疼痛、协助产程进展，给予产妇生活照护和陪伴，在导乐过程中随时观察产程进展等所需的人力资源和基本物质资源消耗。 | F15: 丙 | G15: 次 | H15: 市场调节价 | J15: 市定价
A16: 12 | B16: 013112020110000 | C16: 亲情陪产 | D16: 产妇在孕产过程中，由医务人员指导家属进入产房陪同孕产，直至胎儿娩出。 | E16: 陪产过程中所需的基本物质资源消耗。 | F16: 丙 | G16: 次 | H16: 市场调节价 | J16: 市定价
A17: 13 | B17: 013112020120000 | C17: 胎儿外倒转 | D17: 纠正异常胎位（臀位、横位），创造顺产条件。 | E17: 所定价格涵盖评估、胎位矫正、包扎固定、术后孕妇观察等胎儿外倒转所有必要操作所需的人力资源和基本物质资源消耗。 | F17: 甲 | G17: 次 | H17: 263 | J17: 市定价
A18: 14 | B18: 013112020130000 | C18: 产时宫外治疗 | D18: 在生产过程中对有呼吸道梗阻和胸部疾病的胎儿进行处理，达到安全生产的目的。 | E18: 所定价格涵盖消毒、气管插管/气管切开、采取措施避免胎盘过早剥离、胎儿手术等必要操作所需的人力资源和基本物质资源消耗。 | F18: 丙 | G18: 胎/次 | H18: 1700 | J18: 市定价
A19: 15 | B19: 013112020140000 | C19: 胎儿宫内输血 | D19: 在宫腔内对胎儿进行输血治疗。 | E19: 所定价格涵盖穿刺、抽血、输血等胎儿宫内输血所有必要操作所需的人力资源和基本物质资源消耗。 | F19: 丙 | G19: 胎/次 | H19: 1600 | J19: 市定价
A20: 16 | B20: 013112020150000 | C20: 胎盘血管交通支凝固治疗 | D20: 在宫腔内利用各种能量源对胎儿的胎盘血管交通支进行凝固治疗。 | E20: 所定价格涵盖穿刺、内镜置入、观察、凝结胎盘血管交通支、撤除等胎盘血管交通支凝固治疗所有必要操作所需的人力资源和基本物质资源消耗。 | F20: 丙 | G20: 胎/次 | H20: 市场调节价 | J20: 市定价
A21: 17 | B21: 013112020160000 | C21: 羊水调节 | D21: 经羊膜腔穿刺对羊水进行抽吸、引流、灌注、置换，达到维持胎儿生长环境稳定的目的。 | E21: 所定价格涵盖定位、消毒、穿刺、抽吸/灌注、放置引流管等羊水调节所有必要操作所需人力资源和基本物质资源消耗。 | F21: 乙 | G21: 次 | H21: 496 | J21: 市定价
A22: 18 | B22: 013112020170000 | C22: 子宫压迫止血 | D22: 经药物等保守治疗无效，需要压迫止血，达到止血目的。 | E22: 所定价格涵盖扩张宫口、探查宫腔并清宫、填塞宫腔或缝合、压迫止血，必要时材料取出等所需的人力资源和基本物质资源消耗。 | F22: 甲 | G22: 次 | H22: 235 | J22: 市定价
A23: 19 | B23: 013112020180000 | C23: 脐静脉穿刺 | D23: 经羊膜腔获取胎儿脐静脉血。 | E23: 所定价格涵盖定位、消毒、穿刺、抽血等脐静脉穿刺所有必要操作所需的人力资源和基本物质资源消耗。 | F23: 甲 | G23: 胎/次 | H23: 253 | J23: 市定价
A24: 20 | B24: 013112020190000 | C24: 药物减胎 | D24: 因孕妇要求或医学指征，通过药物终止多胎妊娠中某一或两个（及以上）胎儿的发育。 | E24: 所定价格涵盖消毒、穿刺、注药等药物减胎所有必要操作所需的人力资源和基本物质资源消耗。 | F24: 丙 | G24: 胎/次 | H24: 1580 | J24: 市定价
A25: 21 | B25: 013112020200000 | C25: 中期引产 | D25: 孕中期通过药物等方式终止胎儿发育，促宫颈成熟达到临产状态。 | E25: 所定价格涵盖消毒、促宫颈成熟、胎儿处理等中期引产所有必要操作所需的人力资源和基本物质资源消耗。 | F25: 甲 | G25: 胎/次 | H25: 252 | J25: 市定价 | K25: 孕期“14周- 27周+ 6”孕周的适用
A26: 22 | B26: 013112020210000 | C26: 晚期引产 | D26: 孕晚期通过药物等方式终止胎儿发育，促宫颈成熟达到临产状态。 | E26: 所定价格涵盖消毒、促宫颈成熟、胎儿处理等晚期引产所有必要操作所需的人力资源和基本物质资源消耗。 | F26: 甲 | G26: 胎/次 | H26: 252 | J26: 市定价 | K26: 孕期超过“27周+ 6” 孕周的适用
A27: 23 | B27: 013112020220000 | C27: 死胎接生 | D27: 死胎娩出及处理全过程，不含尸体处理。 | E27: 所定价格涵盖消毒、协助娩出、胎盘处置，必要时使用器械助产等死胎接生所有必要操作所需的人力资源和基本物质资源消耗。 | F27: 甲 | G27: 胎/次 | H27: 751 | J27: 市定价
B28: 3314 | C28: 14.产科手术与操作
A29: 24 | B29: 013314000010000 | C29: 阴道分娩（常规） | D29: 阴道分娩接生及新生儿处理的全过程处置。 | E29: 所定价格涵盖自第二产程开始至第四产程结束期间常规经阴道分娩的全过程和必要操作，包括对产妇的密切观察、生产指导、干预措施，协助胎儿娩出、胎盘娩出，对脐带、胎盘、胎膜的检查处理，对产道的检查、会阴侧切、缝合及裂伤修补（1-2度），母婴观察、处理、评分及记录等所需的人力资源和基本物质资源消耗。 | F29: 甲 | G29: 胎/次 | H29: 1520 | I29: 1368 | J29: 市定价
A30: 25 | B30: 013314000010001 | C30: 阴道分娩（常规）-会阴裂伤修补（限3-4度）（加收） | F30: 甲 | G30: 胎/次 | H30: 420 | J30: 市定价
A31: 26 | B31: 013314000010002 | C31: 阴道分娩（常规）-宫颈裂伤修补（加收） | F31: 甲 | G31: 胎/次 | H31: 263 | J31: 市定价
A32: 27 | B32: 013314000020000 | C32: 阴道分娩（复杂） | D32: 产妇或胎儿存在情况复杂、风险较高等情况，经阴道分娩接生及新生儿处理的全过程处置。 | E32: 所定价格涵盖自第二产程开始至第四产程结束期间复杂情况经阴道分娩的全过程和必要操作，包括对产妇的密切观察、生产指导、干预措施，协助胎儿娩出、胎盘娩出，对脐带、胎盘、胎膜的检查处理，对产道的检查、会阴侧切、缝合及裂伤修补（1-2度），母婴观察、处理、评分及记录等所需的人力资源和基本物质资源消耗。 | F32: 甲 | G32: 胎/次 | H32: 2766 | I32: 2489 | J32: 市定价 | K32: “阴道分娩（复杂）”是指：产妇或胎儿存在瘢痕子宫、巨大儿、胎儿臀位、肩难产等显著增加阴道分娩难度及风险的情况，或生产过程中医务人员采用胎位旋转、臀位助产、器械助产、手取胎盘等特殊措施的情况。
A33: 28 | B33: 013314000020001 | C33: 阴道分娩（复杂）-会阴裂伤修补（限3-4度）（加收） | F33: 甲 | G33: 胎/次 | H33: 420 | J33: 市定价
A34: 29 | B34: 013314000020002 | C34: 阴道分娩（复杂）-宫颈裂伤修补（加收） | F34: 甲 | G34: 胎/次 | H34: 263 | J34: 市定价
A35: 30 | B35: 013314000030000 | C35: 剖宫产（常规） | D35: 产妇难产或不适于阴道分娩，通过手术方式分娩接生及新生儿处理的全过程处置。 | E35: 所定价格涵盖常规情况通过手术娩出胎儿的全过程和必要操作，包括切开子宫、娩出胎儿、胎盘处理、清理缝合、止血包扎处理等手术全过程，新生儿的观察、处理、评分及记录等所需的人力资源和基本物质资源消耗。 | F35: 甲 | G35: 胎/次 | H35: 2030 | I35: 1827 | J35: 市定价
A36: 31 | B36: 013314000030001 | C36: 剖宫产（常规）-阴道分娩转剖宫产（加收） | F36: 甲 | G36: 胎/次 | H36: 190 | J36: 市定价
A37: 32 | B37: 013314000040000 | C37: 剖宫产（复杂） | D37: 产妇难产或不适于阴道分娩，且产妇或胎儿存在情况复杂、风险较高等情况，通过手术方式分娩接生及新生儿处理的全过程处置。 | E37: 所定价格涵盖复杂情况通过手术娩出胎儿的全过程和必要操作，包括切开子宫、娩出胎儿、胎盘处理、清理缝合、止血包扎处理等手术全过程，新生儿的观察、处理、评分及记录等所需的人力资源和基本物质资源消耗。 | F37: 甲 | G37: 胎/次 | H37: 2328 | I37: 2095 | J37: 市定价 | K37: “剖宫产（复杂）”是指：产妇或胎儿存在前置胎盘、胎盘植入、凝血功能异常、子宫肌瘤（4-5cm以上）、瘢痕子宫、胎儿横位、胎儿臀位、产程中剖宫产、腹膜外妊娠等显著增加剖宫产实施难度及风险的情况。
A38: 33 | B38: 013314000040001 | C38: 剖宫产（复杂）-阴道分娩转剖宫产（加收） | F38: 甲 | G38: 胎/次 | H38: 190 | J38: 市定价
A39: 34 | B39: 013314000050000 | C39: 宫颈环扎术（常规） | D39: 对宫颈机能不全的治疗，达到延长孕周，维持胎儿存活目的。 | E39: 所定价格涵盖消毒、宫颈固定、缝合、拆线，必要时胎膜复位等宫颈环扎术所有必要操作所需的人力资源和基本物质资源消耗。 | F39: 乙 | G39: 次 | H39: 825 | I39: 743 | J39: 市定价
A40: 35 | B40: 013314000060000 | C40: 宫颈环扎术（特殊） | D40: 对宫口扩张3cm以上等特殊情况的紧急环扎治疗，达到延长孕周，维持胎儿存活目的。 | E40: 所定价格涵盖消毒、宫颈固定、缝合、拆线，必要时胎膜复位等宫颈环扎术所有必要操作所需的人力资源和基本物质资源消耗。 | F40: 乙 | G40: 次 | H40: 1070 | I40: 963 | J40: 市定价
A41: 36 | B41: 013314000060001 | C41: 宫颈环扎术（特殊）-内镜下辅助操作（加收） | F41: 乙 | G41: 次 | J41: 市定价 | K41: 按主项的30%加收
A42: 37 | B42: 013314000070000 | C42: 院外分娩产后处置 | D42: 产妇于院外娩出胎儿后，在院内对产妇和新生儿进行的产后处理。 | E42: 所定价格涵盖第三产程开始的脐带和胎盘处理，会阴裂伤修补（1-2度）、侧切及缝合、胎儿娩出后母婴观察等院外分娩产后处置所有必要操作所需的人力资源和基本物质资源消耗。 | F42: 甲 | G42: 次 | H42: 411 | I42: 370 | J42: 市定价
A43: 38 | B43: 013314000070001 | C43: 院外分娩产后处置-会阴裂伤修补（限3-4度）（加收） | F43: 甲 | G43: 次 | H43: 420 | J43: 市定价
A44: 39 | B44: 013314000070002 | C44: 院外分娩产后处置-宫颈裂伤修补（加收） | F44: 甲 | G44: 次 | H44: 263 | J44: 市定价
A45: 40 | B45: 013314000080000 | C45: 手术减胎 | D45: 因孕妇要求或医学指征，通过手术终止多胎妊娠中某一或两个（及以上）胎儿的发育。 | E45: 所定价格涵盖消毒、确认位置、穿刺、使用电凝、激光、射频等各种方式进行减胎所需的人力资源和基本物质资源消耗。 | F45: 丙 | G45: 胎/次 | H45: 1580 | I45: 1422 | J45: 市定价

Sheet 血液及血液成分
B1: 血液及血液成分
A2: 序号 | B2: 收费 项目 编码 | C2: 收费项目名称 | D2: 国家医疗服务项目代码 | E2: 国家医疗服务项目名称 | F2: 收费项目等级 | G2: 计价单位 | H2: 供应价格（元） | I2: 说明
B3: 1204-6 | C3: 血液及血液成分
A4: 1 | B4: 1204-6-1 | C4: 全血 | D4: 005101020010000 | E4: 滤白全血 | F4: 乙 | G4: 单位 | H4: 220
A5: 2 | B5: 1204-6-1-1 | C5: 全血 | D5: 005101020010000 | E5: 滤白全血 | F5: 乙 | G5: 10ml | H5: 11
A6: 3 | B6: 1204-6-2 | C6: 洗涤红细胞 | D6: 005101010040000 | E6: 洗涤红细胞 | F6: 乙 | G6: 单位 | H6: 260 | I6: 0.5单位按50％收取
A7: 4 | B7: 1204-6-3 | C7: 去白细胞红细胞 | D7: 005101010020000 | E7: 滤白红细胞 | F7: 乙 | G7: 单位 | H7: 240 | I7: 0.5单位按50％收取
A8: 5 | B8: 1204-6-4 | C8: 悬浮红细胞 | D8: 003108000060200 | E8: 白细胞除滤（悬浮红细胞） | F8: 乙 | G8: 单位 | H8: 210 | I8: 0.5单位按50％收取
A9: 6 | B9: 1204-6-5 | C9: 浓缩红细胞 | D9: 005101010010000 | E9: 浓缩红细胞 | F9: 乙 | G9: 单位 | H9: 180 | I9: 0.5单位按50％收取
A10: 7 | B10: 1204-6-6 | C10: 血小板、白细胞 | D10: 005101030040000 | E10: 冷冻机采血小板 | F10: 乙 | G10: 单位 | H10: 100
A11: 8 | B11: 1204-6-7 | C11: 冷沉淀凝血因子 | D11: 005101030040000 | E11: 冷冻机采血小板 | F11: 乙 | G11: 单位 | H11: 180
A12: 9 | B12: 1204-6-8 | C12: 新鲜冰冻血浆 | D12: 005101040020000 | E12: 新鲜冰冻血浆 | F12: 乙 | G12: 10ml | H12: 4 | I12: 包括普通冰冻血浆
A13: 10 | B13: 1204-6-9 | C13: 单采血小板 | D13: 005101030020000 | E13: 机采血小板 | F13: 乙 | G13: 治疗量 | H13: 1400 | I13: 包括冰冻血小板\每治疗量指≥2.5*1011个血小板
A14: 11 | B14: 1204-6-10 | C14: 冰冻红细胞（异体血） | D14: 005101010050000 | E14: 冰冻红细胞 | F14: 乙 | G14: 单位 | H14: 880 | I14: 0.5单位按50％收取
A15: 12 | B15: 1204-6-11 | C15: 冰冻红细胞（自体血） | D15: 005101010050000 | E15: 冰冻红细胞 | F15: 乙 | G15: 单位 | H15: 440 | I15: 0.5单位按50％收取
A16: 13 | B16: 1204-6-12 | C16: 悬浮少白细胞的红细胞 | D16: 005101010030000 | E16: 红细胞悬液 | F16: 乙 | G16: 单位 | H16: 260 | I16: 0.5单位按50％收取
A17: 14 | B17: 1204-6-13 | C17: 浓缩少白细胞的红细胞 | D17: 005101010010000 | E17: 浓缩红细胞 | F17: 乙 | G17: 单位 | H17: 240 | I17: 0.5单位按50％收取
A18: 15 | B18: 1204-6-14 | C18: 单采少白细胞的血小板 | D18: 005101030010000 | E18: 手工分离浓缩血小板 | F18: 乙 | G18: 治疗量 | H18: 1400 | I18: （每治疗量指≥2.5*1011个血小板）
A19: 16 | B19: 1204-6-15 | C19: 洗涤单采血小板 | D19: 005101030010000 | E19: 手工分离浓缩血小板 | F19: 乙 | G19: 治疗量 | H19: 1500 | I19: （每治疗量指≥2.5*1011个血小板）
A20: 17 | B20: 1204-6-16 | C20: 单采粒细胞 | D20: 005101040010000 | E20: 新鲜液体血浆 | F20: 乙 | G20: 治疗量 | H20: 2500 | I20: （每治疗量指≥2.5*1010个中性粒细胞）
A21: 18 | B21: 1204-6-17 | C21: RH阴性全血 | D21: 005101020030000 | E21: Rh阴性全血 | F21: 乙 | G21: 单位 | H21: 440
A22: 19 | B22: 1204-6-17-1 | C22: RH阴性全血 | D22: 005101020030000 | E22: Rh阴性全血 | F22: 乙 | G22: 10ml | H22: 22
A23: 20 | B23: 1204-6-18 | C23: RH阴性悬浮红细胞 | D23: 005101010070000 | E23: RH阴性悬浮红细胞 | F23: 乙 | G23: 单位 | H23: 420 | I23: 0.5单位按50％收取。
A24: 21 | B24: 1204-6-19 | C24: RH阴性浓缩红细胞 | D24: 005101010070000 | E24: RH阴性悬浮红细胞 | F24: 乙 | G24: 单位 | H24: 380 | I24: 0.5单位按50％收取
A25: 22 | B25: 1204-6-20 | C25: RH阴性冰冻血浆 | D25: 005101040030000 | E25: 普通冰冻血浆 | F25: 乙 | G25: 10ml | H25: 6
A26: 23 | B26: 1204-6-21 | C26: 病毒灭活血浆 | D26: 005101040010000 | E26: 新鲜液体血浆 | F26: 乙 | G26: 100ml | H26: 100 | I26: 含滤材。
A27: 24 | B27: 1204-6-21-1 | C27: 病毒灭活血浆 | D27: 005101040040000 | E27: 滤白病毒灭活冰冻血浆 | F27: 乙 | G27: 10ml | H27: 10
A28: 25 | B28: 1204-6-22 | C28: 机采去淋巴细胞 | D28: 005101020010000 | E28: 滤白全血 | F28: 乙 | G28: 人*次 | H28: 1500 | I28: 含滤材
A29: 26 | B29: 1204-6-23 | C29: 造血干细胞冷冻保存 | D29: 003108000160000 | E29: 骨髓或外周血干细胞冷冻保存 | F29: 乙 | G29: 人*次 | H29: 1300 | I29: 每天加收20元,超过30天减半收取
A30: 27 | B30: 1204-6-24 | C30: 外周血干细胞采集 | D30: 001204000060100 | E30: 静脉输液(输血) | F30: 乙 | G30: 人*次 | H30: 2500
A31: 28 | B31: 1204-6-25 | C31: 自体血采集及4。C保存 | D31: 003108000040000 | E31: 采自体血及保存 | F31: 乙 | G31: 天 | H31: 10
A32: 29 | B32: 1204-6-26 | C32: 去病毒冷沉淀凝血因子 | D32: 005101030040000 | E32: 冷冻机采血小板 | F32: 乙 | G32: 单位 | H32: 280
A33: 30 | B33: 1204-6-27 | C33: RH阴性洗涤红细胞 | D33: 005101010040000 | E33: 洗涤红细胞 | F33: 乙 | G33: 单位 | H33: 512.6 | I33: 0.5单位按50%收取
A34: 31 | B34: 1204-6-28 | C34: RH阴性悬浮少白细胞红细胞 | D34: 005101010070000 | E34: RH阴性悬浮红细胞 | F34: 乙 | G34: 单位 | H34: 503.8 | I34: 0.5单位按50%收取
A35: 32 | B35: 1204-6-29 | C35: RH阴性冰冻、解冻去甘油红细胞 | D35: 005101010060000 | E35: 冰冻解冻去甘油红细胞 | F35: 乙 | G35: 单位/袋 | H35: 1380
A36: 33 | B36: 1204-6-30 | C36: 血液分袋 | D36: 001204000060100 | E36: 静脉输液(输血) | F36: 乙 | G36: 袋 | H36: 19.5 | I36: 用于婴幼儿临床治疗性输血收取

Sheet 口腔种植
A1: 说明： 1. 本价格项目表按照口腔种植类医疗服务主要环节的服务产出设立价格项目。 2. 本价格项目表所指植入体为种植体、基台等植入牙床、包裹在牙龈内的医用耗材，置入体是指种植牙冠、义齿等安置在口腔内、暴露在牙龈之外，不与人体组织直接结合的医用耗材。 3. 本价格项目表“价格构成”指制定项目价格应涵盖的各类资源消耗，用于确定计价单元的边界，不应作为临床技术标准理解，不是医疗服务实际操作方式、路径、步骤、程序的强制性要求。医疗机构提供服务时，“价格构成”的个别要素因患者个体差异可以不发生的，除另有政策规定外，允许医疗机构收费适用相应的项目和价格政策。 4. 本价格项目表中“基本物耗”指原则上限于不应或不必要与医疗服务项目分割的易耗品，包括但不限于各类消杀用品、储存用品、清洁用品、个人防护用品、垃圾处理用品、试戴材料、铸造包埋材、义齿清洁材料、牙科分离剂、模型材料、蜡型材料、车针、排龈材料、菌斑指示剂、义齿稳固剂、印模材料、咬合记录材料、咬合检查材料、研磨抛光材料、冲洗液、润滑剂、灌洗液、棉球、棉签、纱布（垫）、护垫、衬垫、手术巾（单）、治疗巾（单）、治疗护理盘(包）、注射器、压舌板、滑石粉、防渗漏垫、标签、操作器具、冲洗工具。基本物耗成本计入项目价格，不另行收费。除基本物耗以外的其他耗材，按照实际采购价格零差率销售。 5. 医疗机构应对本院施治的口腔内牙齿缺失植入体、置入体进行保质保修，保修范围内出现损坏，医疗机构应免费进行修理、再制作，不得向患者收取费用。 6. 本价格项目表所列的口腔医学3D项目，是指为口腔种植手术方案设计、导航定位等提供辅助的服务。医疗机构自行制作牙冠所进行的3D扫描设计、打印切削，以及翻模精修、烧结上釉、上色调改等具体操作，作为成本要素计入种植牙牙冠价格，不再将上述牙冠加工制作的具体操作步骤作为医疗服务价格项目向患者收费。
A8: 序号 | B8: 编码 | C8: 项目名称 | D8: 国家医疗服务项目代码 | E8: 国家医疗服务项目名称 | F8: 服务产出 | G8: 价格构成 | H8: 医保支付类别 | I8: 计价单位 | J8: 价格 （元） | K8: 计价说明
A9: 1 | B9: 013306090010000 | C9: 种植体植入费（单颗） | D9: 013306090010000 | E9: 种植体植入费（单颗） | F9: 实现口腔单颗种植体植入。 | G9: 涵盖方案设计、术前准备，备洞，种植体植入，二期手术，术后处理，手术复查等步骤人力资源和基本物资消耗。 | H9: 丙 | I9: 牙位 | J9: 市定价
A10: 2 | B10: 013306090010001 | C10: 种植体植入费（单颗）-种植体即刻种植（加收） | D10: 013306090010001 | E10: 种植体植入费（单颗）-种植体即刻种植（加收） | F10: 指拔牙或牙齿缺失当日完成种植体植入。 | H10: 丙 | I10: 牙位 | K10: 按主项的30%加收
A11: 3 | B11: 013306090010002 | C11: 种植体植入费（单颗）-颅颌面种植体植入（加收） | D11: 013306090010002 | E11: 种植体植入费（单颗）-颅颌面种植体植入（加收） | H11: 丙 | I11: 牙位 | K11: 按主项的40%加收
A12: 4 | B12: 013306090020000 | C12: 种植体植入费（全牙弓） | D12: 013306090020000 | E12: 种植体植入费（全牙弓） | F12: 对范围超过一个象限以上的连续牙齿缺失进行种植体的植入以实现桥式修复。 | G12: 涵盖方案设计、术前准备，备洞，种植体植入，二期手术，术后处理，手术复查等步骤人力资源和基本物资消耗。 | H12: 丙 | I12: 例 | J12: 市定价 | K12: 上下颌分别进行桥式修复的，分别计价收费
A13: 5 | B13: 013306090020001 | C13: 种植体植入费（全牙弓）-种植体即刻种植（加收） | D13: 013306090020001 | E13: 种植体植入费（全牙弓）-种植体即刻种植（加收） | F13: 指拔牙或牙齿缺失当日完成种植体植入。 | H13: 丙 | I13: 例 | K13: 按主项的30%加收
A14: 6 | B14: 013306090020002 | C14: 种植体植入费（全牙弓）-颅颌面种植体植入（加收） | D14: 013306090020002 | E14: 种植体植入费（全牙弓）-颅颌面种植体植入（加收） | H14: 丙 | I14: 例 | K14: 按主项的40%加收
A15: 7 | B15: 013306090020003 | C15: 种植体植入费（全牙弓）-种植体倾斜植入（加收） | D15: 013306090020003 | E15: 种植体植入费（全牙弓）-种植体倾斜植入（加收） | H15: 丙 | I15: 例 | K15: 按主项的30%加收
A16: 8 | B16: 013105170010000 | C16: 种植牙冠修复置入费（单颗） | D16: 013105170010000 | E16: 种植牙冠修复置入费（单颗） | F16: 实现种植体上部固定义齿的修复置入。 | G16: 涵盖方案设计、印模制取、颌位确定、位置转移、模型制作、试排牙、戴入、调改、宣教等人力资源和基本物资消耗。 | H16: 丙 | I16: 牙位 | J16: 市定价
A17: 9 | B17: 013105170010001 | C17: 种植牙冠修复置入费（单颗）-即刻修复置入（加收） | D17: 013105170010001 | E17: 种植牙冠修复置入费（单颗）-即刻修复置入（加收） | F17: 指种植体植入后1周以内完成牙冠置入。 | H17: 丙 | I17: 牙位 | K17: 按主项的30%加收
A18: 10 | B18: 013105170010002 | C18: 种植牙冠修复置入费（单颗）-临时冠修复置入（减收） | D18: 013105170010002 | E18: 种植牙冠修复置入费（单颗）-临时冠修复置入（减收） | H18: 丙 | I18: 牙位 | K18: 按主项的30%减收
A19: 11 | B19: 013105170020000 | C19: 种植牙冠修复置入费（连续冠桥修复） | D19: 013105170020000 | E19: 种植牙冠修复置入费（连续冠桥修复） | F19: 实现种植体上部不超过一个象限的连续固定义齿的修复置入。 | G19: 涵盖方案设计、印模制取、颌位确定、位置转移、模型制作、试排牙、戴入、调改、宣教等人力资源和基本物资消耗。 | H19: 丙 | I19: 牙位 | J19: 市定价
A20: 12 | B20: 013105170020001 | C20: 种植牙冠修复置入费（连续冠桥修复）-即刻修复置入（加收） | D20: 013105170020001 | E20: 种植牙冠修复置入费（连续冠桥修复）-即刻修复置入（加收） | F20: 指种植体植入后1周以内完成牙冠置入。 | H20: 丙 | I20: 牙位 | K20: 按主项的30%加收
A21: 13 | B21: 013105170020002 | C21: 种植牙冠修复置入费（连续冠桥修复）-临时冠修复置入（减收） | D21: 013105170020002 | E21: 种植牙冠修复置入费（连续冠桥修复）-临时冠修复置入（减收） | H21: 丙 | I21: 牙位 | K21: 按主项的30%减收
A22: 14 | B22: 013105170030000 | C22: 种植牙冠修复置入费（固定咬合重建） | D22: 013105170030000 | E22: 种植牙冠修复置入费（固定咬合重建） | F22: 实现对咬合支持丧失、半口牙齿缺失或全口牙齿缺失的种植体上部固定义齿的修复置入。 | G22: 涵盖方案设计、印模制取、颌位确定、位置转移、模型制作、试排牙、戴入、调改、宣教等人力资源和基本物资消耗。 | H22: 丙 | I22: 件 | J22: 市定价
A23: 15 | B23: 013105170030001 | C23: 种植牙冠修复置入费（固定咬合重建）-即刻修复置入（加收） | D23: 013105170030001 | E23: 种植牙冠修复置入费（固定咬合重建）-即刻修复置入（加收） | F23: 指种植体植入后1周以内完成牙冠置入。 | H23: 丙 | I23: 件 | K23: 按主项的30%加收
A24: 16 | B24: 013105230010000 | C24: 种植可摘修复置入费 | D24: 013105230010000 | E24: 种植可摘修复置入费 | F24: 实现种植体上部可摘修复体的置入。 | G24: 涵盖方案设计、印模制取、颌位确定、位置转移、试排牙、模型制作、戴入、调改、宣教等人力资源和基本物资消耗。 | H24: 丙 | I24: 件 | J24: 市定价
A25: 17 | B25: 013105230010001 | C25: 种植可摘修复置入费-即刻修复置入（加收） | D25: 013105230010001 | E25: 种植可摘修复置入费-即刻修复置入（加收） | F25: 指种植体植入后1周以内完成牙冠置入。 | H25: 丙 | I25: 件 | K25: 按主项的30%加收
A26: 18 | B26: 013306090030000 | C26: 口腔内植骨费（简单） | D26: 013306090030000 | E26: 口腔内植骨费（简单） | F26: 用手术方式，对轻度牙槽嵴萎缩骨量增加，达到可种植条件。 | G26: 涵盖方案设计、术前准备、手术入路，组织切开，植骨，关闭缝合受植区等手术步骤及术后复查处置等人力资源和基本物资消耗。 | H26: 丙 | I26: 牙位 | J26: 市定价
A27: 19 | B27: 013306090040000 | C27: 口腔内植骨费（一般） | D27: 013306090040000 | E27: 口腔内植骨费（一般） | F27: 通过手术方式，对中度牙槽嵴萎缩骨量增加，达到可种植条件。 | G27: 涵盖方案设计、术前准备、手术入路，组织切开，骨劈开/骨挤压，植骨，关闭缝合受植区等手术步骤及术后复查处置等人力资源和基本物资消耗。 | H27: 丙 | I27: 牙位 | J27: 市定价
A28: 20 | B28: 013306090050000 | C28: 口腔内植骨费（复杂） | D28: 013306090050000 | E28: 口腔内植骨费（复杂） | F28: 通过手术方式，对重度牙槽嵴萎缩或上颌窦底骨量增加，达到可种植条件。 | G28: 涵盖方案设计、术前准备、手术入路，组织切开，自体骨移植、植骨，关闭缝合受植区等手术步骤及术后复查处置等人力资源和基本物资消耗。 | H28: 丙 | I28: 牙位 | J28: 市定价
A29: 21 | B29: 013306090050001 | C29: 口腔内植骨费（复杂）-上颌窦囊肿摘除（加收） | D29: 013306090050001 | E29: 口腔内植骨费（复杂）-上颌窦囊肿摘除（加收） | H29: 丙 | I29: 牙位 | K29: 按主项的30%加收
A30: 22 | B30: 013306090050002 | C30: 口腔内植骨费（复杂）-口腔以外其他部位取骨（加收） | D30: 013306090050002 | E30: 口腔内植骨费（复杂）-口腔以外其他部位取骨（加收） | H30: 丙 | I30: 牙位 | K30: 按主项的30%加收
A31: 23 | B31: 013306090060000 | C31: 种植体周软组织移植费 | D31: 013306090060000 | E31: 种植体周软组织移植费 | F31: 通过局部软组织移植，改善治疗部位及周围软组织状况，达到治疗所需软组织条件。 | G31: 涵盖方案设计、术前准备、切开、翻瓣、供软组织制备、组织固定、缝合及处置等手术步骤人力资源和基本物资消耗。 | H31: 丙 | I31: 牙位 | J31: 市定价
A32: 24 | B32: 013306090070000 | C32: 种植体取出费 | D32: 013306090070000 | E32: 种植体取出费 | F32: 拆除患者口腔内已植入且无法继续使用的种植体。 | G32: 涵盖种植体拆除操作步骤的人力资源和基本物资消耗。 | H32: 丙 | I32: 牙位 | J32: 市定价
A33: 25 | B33: 013105190010000 | C33: 种植牙冠修理费 | D33: 013105190010000 | E33: 种植牙冠修理费 | F33: 对产品保质保修条件外，种植牙冠脱落、崩瓷、嵌食、断裂等机械性或器质性损坏进行修理，恢复正常使用。 | G33: 涵盖种植修复置入体的检查、拆卸、修补、置入等人力资源和基本物资消耗。 | H33: 丙 | I33: 牙位 | J33: 市定价
A34: 26 | B34: 013105170040000 | C34: 医学3D建模（口腔） | D34: 013105170040000 | E34: 医学3D建模（口腔） | F34: 利用医学影像检查等手段获得患者特定部位的真实信息。通过数字技术构建的虚拟3D模型、真实再现口腔及颌面特定部位的形态，能够颌面特定部位的形态，能够满足疾病诊断、手术规划、治疗及导板设计的需要。 | G34: 涵盖数字化扫描、建模、存储、传输，装置设计等步骤的人力资源和基本物资消耗。 | H34: 丙 | I34: 例 | J34: 市定价
A35: 27 | B35: 013105230020000 | C35: 医学3D模型打印（口腔） | D35: 013105230020000 | E35: 医学3D模型打印（口腔） | F35: 将虚拟3D模型打印或切削制作成仅用于口腔疾病诊断、手术规划、治疗及导板设计的实体模型。 | G35: 涵盖3D打印或切削制作的人力资源和基本物资消耗。 | H35: 丙 | I35: 件 | J35: 市定价 | K35: 单颗常规种植确需应用时，按7%收取。
A36: 28 | B36: 013105230030000 | C36: 医学3D导板打印（口腔） | D36: 013105230030000 | E36: 医学3D导板打印（口腔） | F36: 将虚拟3D模型打印或切削制作成用于治疗部位、确保植（置）入物精准到达和处理预定位置的实物模板或手术操作对治疗部位进行精确处理。 | G36: 涵盖3D打印或切削制作的人力资源和基本物资消耗。 | H36: 丙 | I36: 件 | J36: 市定价 | K36: 单颗常规种植确需应用时，按7%收取。

Sheet 中医类项目
A1: 说明： 1. 本价格项目表所列“外治”、“灸法”、“拔罐”、“推拿”项目，指中医行业主管部门允许开展，以治疗患者相应症状为目的的中医临床治疗服务。 2. 本价格项目表所称“价格构成”，指项目价格应涵盖的各类资源消耗，用于确定计价单元的边界，不应作为临床技术标准理解，不是实际操作方式、路径、步骤、程序的强制性要求，所列“设备投入”包括但不限于操作设备、器具及固定资产投入。 3. 本价格项目表所称基本物耗是指原则上限于不应或不必要与医疗服务项目分割的易耗品，属于医疗服务价格项目应当使用的、市场价格和使用数量相对稳定的医用耗材，包括但不限于各类消杀用品、储存用品、清洁用品、个人防护用品、防烫伤所需用品、针（刀）器具、刮匙、垃圾处理用品、冲洗液、润滑剂、灌洗液、棉球、棉签、纱布（垫）、治疗巾（单）、标签、操作器具、罐具、包裹单（袋）、药线、药捻、腕带、护垫、衬垫、手术巾（单）、治疗护理盘（包）、注射器、压舌板、防渗漏垫、冲洗工具、备皮工具等。基本物耗成本计入项目价格，不另行收费。除基本物耗以外的其他耗材，按实际采购价格零差率收费销售。 4. 本价格项目表所称的“深层”，指达皮下脂肪组织。 5. 本价格项目表所称的“穴位”，指中医行业主管部门相关技术规范确定的人体点区部位。 6. 本价格项目表所列“推拿”项目，指以治疗各部位疾病为目的的情况。如医务人员在对头部疾病实施推拿治疗时，涉及对人体肩、颈、足等多个部位推拿，仅可按一次计费。 7. 本价格项目表“隔物灸”所称的“间隔物”包括但不限于新鲜老姜、大蒜、附子饼、盐、其他中药等，同一次治疗用几种间隔物不叠加收费。 8. 本价格项目表“施灸制品”包括但不限于艾条、艾炷、艾箱、艾绒、热敏灸条、雷火针灸条、太乙神针灸条、药灸条等。 说明：（中医针法类） 1.本价格项目表所称的“基本物耗”，指原则上限于不应或不必要与医疗服务项目分割的易耗品，属于医疗服务价格项目应当使用的，包括但不限于针具、耳豆（含磁珠）、埋线（针）用品、治疗用蜂等生物活体以及各类消杀用品、储存用品、清洁用品、个人防护用品、垃圾处理用品、敷料、棉球、棉签、治疗巾（单）、治疗护理盘（包）、注射器、压舌板、防渗漏垫、尿垫、中单、标签、操作器具、备皮工具、包裹单（袋）等。基本物耗成本计入项目价格，不另行收费。除基本物耗以外的其他耗材，按照实际采购价格零差率收费销售。 2.本价格项目表所称的“选针”指针刺前准备，选择类别、材质、型号规格适宜的针具，根据患者的体质、体形、年龄、病情和腧穴部位等，选用适合针具施治，不再对材质、类别等进行区别计费；“进针”指将针具刺入体内的方法，在操作上一般通过循按经脉，揣按穴位等预备方法，然后将针由浅入深地刺入预定的深度，不再区分针具刺入的深浅度分别立项或分别制定收费标准；“行针”指将针刺刺入腧穴后，为了使之得气、调节针感以及进行补泻等而实施的各种手法，如提插捻转、循法、弹法、刮法、摇法、飞法、震颤法等；“留针”指将针具刺入腧穴并施行手法后，将针留置于腧穴内一定时间的方法；“出针”指行针完毕后，将针拔出的操作方法。 3.本价格项目表所称的“特殊针具”，指国家卫生健康委制定发布技术规范收录的，长度、直径、形制、用法显著区别于毫针的其他针具，如芒针等。“特殊手法”指国家卫生健康委制定发布技术规范单列的特色针刺手法，以及其他传承有序、列入地市级及以上非物质文化遗产的针法技术。 4.本价格项目表所称的“特殊穴位”，指具有一定危险性穴位，包括睛明、承泣、球后、风府、风池、哑门、人迎、天突、冲门、长强、会阴、八髎、金津、玉液及位于胸胁、颈项、背部的腧穴。“特殊部位”指未列入传统中医腧穴范畴，中医针法治疗有效，具有一定危险性的特殊部位。常规针法治疗或特殊针法治疗中涉及特殊穴位的，可在收取“常规针法”或“特殊针法”费用的基础上，同时收取“特殊穴位针法”的费用。 5.本价格项目表所称的“仪器辅助操作”，指医师实施常规针法、特殊针具针法、特殊手法针法时，利用仪器使针具产生振动、电流、温度变化等，辅助完成针刺操作或者强化针刺效果。 6.本价格项目表计价单位中的“次•日”，指完成一次完整的针刺过程，不以进针数量计费，每日收费一次。 说明：（中医骨伤类） 1.本价格项目表所称“基本物耗”指原则上限于不应或不必要与医疗服务项目分割的易耗品，包括但不限于各类消杀灭菌用品、标签、储存用品、清洁用品、个人防护用品、垃圾处理用品、冲洗液、润滑剂、棉球、棉签、纱布（垫）、护（尿）垫、手术巾（单）、治疗巾（单）、中单、治疗护理盘（包）、手术包、注射器、防渗漏垫、悬吊巾、压垫、棉垫、可复用的操作器具、各种针具刀具等。基本物耗成本计入项目价格，不另行收费。除基本物耗以外的其他耗材，按照实际采购价格零差率另行收费。 2.“每关节”指单个大关节（肩、肘、腕、髋、膝、踝）、颈椎、胸椎、腰椎、单侧手掌部关节、单侧足部关节、单侧颞颌关节、单侧肩锁关节、胸锁关节。 说明：（中医特殊疗法类） 本价格项目表所称“基本物耗”指原则上限于不应或不必要与医疗服务项目分割的易耗品，包括但不限于各类消杀灭菌用品、标签、储存用品、清洁用品、个人防护用品、垃圾处理用品、冲洗液、润滑剂、棉球、棉签、纱布（垫）、护（尿）垫、手术巾（单）、治疗巾（单）、中单、治疗护理盘（包）、手术包、注射器、防渗漏垫、悬吊巾、压垫、棉垫、可复用的操作器具、各种针具刀具等。基本物耗成本计入项目价格，不另行收费。除基本物耗以外的其他耗材，按照实际采购价格零差率另行收费。
A2: 序号 | B2: 编码 | C2: 项目名称 | D2: 服务产出 | E2: 价格构成 | F2: 医保支付类别 | G2: 计价单位 | H2: 价格 | I2: 计价说明
B3: 41 | C3: （一）中医外治 | I3: 6周岁及以下儿童加收
A4: 1 | B4: 014100000010000 | C4: 中药贴敷 | D4: 由医务人员使用贴敷制品敷贴于体表特定部位或穴位，通过药物或物理作用，以发挥促进气血调和、阴阳平衡等各类作用。 | E4: 所定价格涵盖确定穴位，局部清洁，贴敷材料准备（含掺药、封包、冷热处理等），应用药物贴敷，处理用物所需的人力资源和基本物质资源消耗，含设备投入及维护成本。 | F4: 甲 | G4: 次 | H4: 市定价
A5: 2 | B5: 014100000010001 | C5: 中药贴敷-中药硬膏贴敷（加收） | F5: 甲 | G5: 次 | H5: 市定价
A6: 3 | B6: 014100000010002 | C6: 中药贴敷-中药贴敷（大）（加收） | D6: 指面积∈（5cm×5cm,10cm×10cm] | F6: 乙 | G6: 次 | H6: 市定价
A7: 4 | B7: 014100000010003 | C7: 中药贴敷-中药贴敷（特大）（加收） | D7: 指面积∈（10cm×10cm,∞） | F7: 乙 | G7: 次 | H7: 市定价
A8: 5 | B8: 014100000010100 | C8: 中药贴敷-中药热奄包（扩展） | F8: 甲 | G8: 次 | H8: 市定价
A9: 6 | B9: 014100000010200 | C9: 中药贴敷-特殊材料贴敷（扩展） | D9: 特殊材料贴敷指包括但不限于耳贴、纳米、红外等功能性材料贴敷。 | F9: 甲 | G9: 次 | H9: 市定价
A10: 7 | B10: 014100000020000 | C10: 中药吹粉 | D10: 由医务人员将中药研粉吹至病变部位，以发挥促进消肿止痛等各类作用。 | E10: 所定价格涵盖局部清洁，调配药粉，吹粉，处理用物所需的人力资源和基本物质资源消耗，含设备投入及维护成本。 | F10: 甲 | G10: 次 | H10: 市定价
A11: 8 | B11: 014100000030000 | C11: 中药烫熨 | D11: 由医务人员将调配药物加热后置于患者体表特定部位或穴位，进行移动敷熨，以发挥促进散寒止痛、消肿祛瘀等各类作用。 | E11: 所定价格涵盖局部清洁，药物调配，移动敷熨，处理用物所需的人力资源和基本物质资源消耗，含设备投入及维护成本。 | F11: 乙 | G11: 次 | H11: 市定价
A12: 9 | B12: 014100000030001 | C12: 中药烫熨-中药烫熨（特大）（加收） | D12: 指面积∈（10cm×10cm,∞） | F12: 丙 | G12: 次 | H12: 市定价
A13: 10 | B13: 014100000040000 | C13: 中药泡洗 | D13: 由医务人员协助或指导患者，行全身或局部体位浸泡或淋洗，完成中药泡洗，以发挥促进消肿、止痛、生肌等各类作用。 | E13: 所定价格涵盖局部清洁，药物调配，协助或指导，监测生命体征，观察药液温度等处理用物所需的人力资源和基本物质资源消耗，含设备投入及维护成本。 | F13: 丙 | G13: 次 | H13: 市定价 | I13: 每日限收费2次
A14: 11 | B14: 014100000050000 | C14: 中药灌洗 | D14: 由医务人员将配制好的中药灌注并留置于人体腔道或窦道中，以发挥促进疏通散瘀、去腐生肌等各类作用。 | E14: 所定价格涵盖局部清洁消毒，药物调配，材料准备，处理用物所需的人力资源和基本物质资源消耗，含设备投入及维护成本。 | F14: 甲 | G14: 次 | H14: 市定价
A15: 12 | B15: 014100000060000 | C15: 中药溻渍 | D15: 由医务人员将调配药物通过敷料的形式调温后湿敷于患处，以发挥治疗和促进药物吸收等各类作用。 | E15: 所定价格涵盖局部清洁，药物调配、蒸煮准备、溻渍治疗处理用物所需的人力资源和基本物质资源消耗，含设备投入及维护成本。 | F15: 甲 | G15: 次 | H15: 市定价
A16: 13 | B16: 014100000060001 | C16: 中药溻渍-中药溻渍（特大）（加收） | D16: 指面积∈（10cm×10cm,∞） | F16: 甲 | G16: 次 | H16: 市定价
A17: 14 | B17: 014100000070000 | C17: 中药涂擦 | D17: 由医务人员将调配药物，制成水剂或膏剂或油剂等剂型的外用药物，直接涂擦于患者体表特定部位或穴位，以发挥促进活血化瘀、消炎止痛等各类作用。 | E17: 所定价格涵盖局部清洁，药物调配，各类手法涂擦，处理用物所需的人力资源和基本物质资源消耗，含设备投入及维护成本。 | F17: 甲 | G17: 次 | H17: 市定价
A18: 15 | B18: 014100000070001 | C18: 中药涂擦-中药涂擦（特大）（加收） | D18: 指面积∈（10cm×10cm,∞） | F18: 甲 | G18: 次 | H18: 市定价
A19: 16 | B19: 014100000080000 | C19: 中医熏洗 | D19: 由医务人员选用制备好的药卷、药香或其他材料，点燃后直接用烟熏烤或蒸汽的形式，作用在患者身体某特定部位，以发挥疏通经络、促进药物吸收等各类作用。 | E19: 所定价格涵盖局部清洁，药物调配，熏（蒸）药，处理用物所需的人力资源和基本物质资源消耗，含设备投入及维护成本。 | F19: 乙 | G19: 次 | H19: 市定价 | I19: 每日限收费2次
A20: 17 | B20: 014100000090000 | C20: 中药腐蚀 | D20: 由医务人员选用具有一定腐蚀作用的药物，敷涂患处，以蚀去恶肉、赘生物、肿物等，实现局部病变祛除，促使新肉生长。 | E20: 所定价格涵盖局部消毒，药物调配，腐蚀，包扎，处理用物所需的人力资源和基本物质资源消耗，含设备投入及维护成本。 | F20: 甲 | G20: 腐蚀位点/次 | H20: 市定价
A21: 18 | B21: 014100000100000 | C21: 中药化腐清疮 | D21: 由医务人员将化腐药物敷施于疮面，达到去腐生肌，促进疮面愈合的作用。 | E21: 所定价格涵盖药物调配，局部消毒，皮肤表层创面清理、敷药、包扎，处理用物所需的人力资源和基本物质资源消耗，含设备投入及维护成本。 | F21: 甲 | G21: 疮面/次 | H21: 市定价
A22: 19 | B22: 014100000100001 | C22: 中药化腐清疮-深层化腐清疮（加收） | F22: 乙 | G22: 疮面/次 | H22: 市定价
A23: 20 | B23: 014100000110000 | C23: 中医锐性清疮 | D23: 由医务人员使用包括但不限于刀、剪、刮勺、钳等器械清除创面，发挥去腐生肌、促进疮面愈合的作用。 | E23: 所定价格涵盖药物调配，局部消毒，皮肤表层创面清理、使用器械清疮、敷药、包扎，处理用物所需的人力资源和基本物质资源消耗，含设备投入及维护成本。 | F23: 丙 | G23: 疮面/次 | H23: 市定价
A24: 21 | B24: 014100000120000 | C24: 中医窦道（切开）搔爬 | D24: 完成窦道（切开）搔爬，促进窦道闭合。 | E24: 所定价格涵盖局部消毒，探查浅表窦道，必要时切开，搔爬，处理用物所需的人力资源和基本物质资源消耗，含设备投入及维护成本。 | F24: 乙 | G24: 每窦道/次 | H24: 市定价
A25: 22 | B25: 014100000120001 | C25: 中医窦道（切开）搔爬-深层搔爬（加收） | F25: 乙 | G25: 每窦道/次 | H25: 市定价
A26: 23 | B26: 014100000120002 | C26: 中医窦道（切开）搔爬-耳前窦道（加收） | F26: 乙 | G26: 每窦道/次 | H26: 市定价
A27: 24 | B27: 014100000130000 | C27: 中医挑治 | D27: 由医务人员使用针具，在特定部位或穴位上刺入、挑拨，以发挥调理气血、疏通经络、解除瘀滞等各类作用。 | E27: 所定价格涵盖确定部位，局部消毒，挑治，处理创口所需的人力资源和基本物质资源消耗，含设备投入及维护成本。 | F27: 甲 | G27: 挑治部位/次 | H27: 市定价
A28: 25 | B28: 014100000140000 | C28: 中医割治 | D28: 由医务人员选择部位或穴位，使用操作器具完成切割，以发挥促进经络疏通、毒邪外泄、缓解病痛等各类作用。 | E28: 所定价格涵盖确定部位，局部消毒，切割、包扎创口、处理用物所需的人力资源和基本物质资源消耗，含设备投入及维护成本。 | F28: 甲 | G28: 次 | H28: 市定价
A29: 26 | B29: 014100000150000 | C29: 中医穴位放血治疗 | D29: 由医务人员辨证使用器具刺（划）破特定穴位或部位，放出适量血液，以发挥促进活血祛瘀、排毒止痛等各类作用。 | E29: 所定价格涵盖使用各种工具，局部消毒，确定部位，放血，处理创口所需的人力资源和基本物质资源消耗，含设备投入及维护成本。 | F29: 甲 | G29: 次 | H29: 市定价
A30: 27 | B30: 014100000150001 | C30: 中医穴位放血治疗-甲床放血（加收） | F30: 甲 | G30: 每甲 | H30: 市定价
A31: 28 | B31: 014100000150002 | C31: 中医穴位放血治疗-刺络放血（加收） | F31: 乙 | G31: 次 | H31: 市定价
A32: 29 | B32: 014100000160000 | C32: 中医药线引流 | D32: 由医务人员使用不同材料加药品制作成线状物，插入引流口中，达到祛腐引流，促进疮口愈合的作用。 | E32: 所定价格涵盖引流物制作、药物调配，局部消毒，疮口清理、放置引流物、必要时切开，局部包扎、处理用物所需的人力资源和基本物质资源消耗，含设备投入及维护成本。 | F32: 甲 | G32: 每引流口/次 | H32: 市定价
A33: 30 | B33: 014100000170000 | C33: 中医刮痧 | D33: 由医务人员通过刮痧器具和相应的手法，在体表进行反复刮动、摩擦，从发挥促进活血透痧等各类作用。 | E33: 所定价格涵盖局部消毒，确定部位、刮拭、清洁，处理用物所需的人力资源和基本物质资源消耗，含设备投入及维护成本。 | F33: 甲 | G33: 次 | H33: 市定价
A34: 31 | B34: 014100000180000 | C34: 砭石疗法 | D34: 由医务人员使用砭石等同类功能的器具，通过各类手法作用在人体各部位，以发挥促进疏通经络、活血理气等各类作用。 | E34: 所定价格涵盖局部消毒，确定部位、运用点、压、揉、推、刮、擦等各类手法、清洁，处理用物所需的人力资源和基本物质资源消耗，含设备投入及维护成本。 | F34: 丙 | G34: 次 | H34: 市定价
B35: 42 | C35: （二）针法
A36: 32 | B36: 014200000010000 | C36: 常规针法 | D36: 由主治及以下医师根据病情选穴，通过基本手法和辅助手法，以毫针治疗疾病，促进疏通经络，调理脏腑，扶正祛邪。 | E36: 所定价格涵盖穴位确定、消毒、选针、进针、行针、留针、出针、必要时行仪器辅助操作等过程中所需的人力资源和基本物质资源消耗，含设备投入及维护成本。 | F36: 甲 | G36: 次•日 | H36: 市定价 | I36: 同时采用了常规针法、特殊针具针法、特殊手法针法中的两项或者三项，按收费标准最高的服务项目计费，不叠加计费。
A37: 33 | B37: 014200000010001 | C37: 常规针法-儿童（加收） | F37: 甲 | G37: 次•日 | H37: 市定价 | I37: 6周岁及以下儿童加收
A38: 34 | B38: 014200000010011 | C38: 常规针法-主任医师（加收） | F38: 甲 | G38: 次•日 | H38: 市定价
A39: 35 | B39: 014200000010012 | C39: 常规针法-副主任医师（加收） | F39: 甲 | G39: 次•日 | H39: 市定价
A40: 36 | B40: 014200000020000 | C40: 特殊针具针法 | D40: 由主治及以下医师根据病情选穴，通过基本手法和辅助手法，以特殊针具治疗疾病，促进疏通经络，调理脏腑，扶正祛邪。 | E40: 所定价格涵盖穴位确定、消毒、选针、进针、行针、留针、出针、必要时行仪器辅助操作等过程中所需的人力资源和基本物质资源消耗，含设备投入及维护成本。 | F40: 甲 | G40: 次•日 | H40: 市定价 | I40: 同时采用了常规针法、特殊针具针法、特殊手法针法中的两项或者三项，按收费标准最高的服务项目计费，不叠加计费。
A41: 37 | B41: 014200000020001 | C41: 特殊针具针法-儿童（加收） | F41: 甲 | G41: 次•日 | H41: 市定价 | I41: 6周岁及以下儿童加收
A42: 38 | B42: 014200000020011 | C42: 特殊针具针法-主任医师（加收） | F42: 甲 | G42: 次•日 | H42: 市定价
A43: 39 | B43: 014200000020012 | C43: 特殊针具针法-副主任医师（加收） | F43: 甲 | G43: 次•日 | H43: 市定价
A44: 40 | B44: 014200000030000 | C44: 特殊手法针法 | D44: 由主治及以下医师根据病情，采取特殊开穴方法或通过毫针特殊手法，治疗疾病，促进疏通经络，调理脏腑，扶正祛邪。 | E44: 所定价格涵盖穴位确定、消毒、选针、进针、行针、留针、出针、必要时行仪器辅助操作等过程中所需的人力资源和基本物质资源消耗，含设备投入及维护成本。 | F44: 乙 | G44: 次•日 | H44: 市定价 | I44: 同时采用了常规针法、特殊针具针法、特殊手法针法中的两项或者三项，按收费标准最高的服务项目计费，不叠加计费。
A45: 41 | B45: 014200000030001 | C45: 特殊手法针法-儿童（加收） | F45: 乙 | G45: 次•日 | H45: 市定价 | I45: 6周岁及以下儿童加收
A46: 42 | B46: 014200000030011 | C46: 特殊手法针法-主任医师（加收） | F46: 乙 | G46: 次•日 | H46: 市定价
A47: 43 | B47: 014200000030012 | C47: 特殊手法针法-副主任医师（加收） | F47: 乙 | G47: 次•日 | H47: 市定价
A48: 44 | B48: 014200000040000 | C48: 特殊穴位（部位）针法 | D48: 由主治及以下医师根据病情选穴，采用毫针进行特殊穴位的刺激，治疗疾病，促进疏通经络，调理脏腑，扶正祛邪。 | E48: 所定价格涵盖部位确定、消毒、选针、进针、行针、留针、出针、必要时行仪器辅助操作等过程中所需的人力资源和基本物质资源消耗，含设备投入及维护成本。 | F48: 甲 | G48: 穴位 | H48: 市定价
A49: 45 | B49: 014200000040001 | C49: 特殊穴位（部位）针法-儿童（加收） | F49: 甲 | G49: 穴位 | H49: 市定价 | I49: 6周岁及以下儿童加收
A50: 46 | B50: 014200000040011 | C50: 特殊穴位（部位）针法-主任医师（加收） | F50: 甲 | G50: 穴位 | H50: 市定价
A51: 47 | B51: 014200000040012 | C51: 特殊穴位（部位）针法-副主任医师（加收） | F51: 甲 | G51: 穴位 | H51: 市定价
A52: 48 | B52: 014200000050000 | C52: 仪器针法 | D52: 由医师根据病情，选择适宜的仪器，通过各类仪器产生电、热、冷、磁、振动、光等各类效应替代针具治疗疾病，促进疏通经络，调理脏腑，扶正祛邪。 | E52: 所定价格涵盖部位确定、消毒、选针、进针、行针、留针、出针等过程中所需的人力资源和基本物质资源消耗，含设备投入及维护成本。 | F52: 乙 | G52: 次•日 | H52: 市定价 | I52: 指应用仪器产生的电、热、冷、磁、振动、光等各类效应替代针具完成针法操作的针刺治疗
A53: 49 | B53: 014200000050001 | C53: 仪器针法-儿童（加收） | F53: 乙 | G53: 次•日 | H53: 市定价 | I53: 6周岁及以下儿童加收
A54: 50 | B54: 014200000060000 | C54: 体表针法 | D54: 由主治及以下医师根据病情选穴，通过非锐性针具施于体表，配合手法治疗各系统疾病，促进疏通经络，调理脏腑，扶正祛邪。 | E54: 所定价格涵盖部位确定、选针、体表施治等过程中所需的人力资源和基本物质资源消耗，含设备投入及维护成本。 | F54: 甲 | G54: 次•日 | H54: 市定价
A55: 51 | B55: 014200000060001 | C55: 体表针法-儿童（加收） | F55: 甲 | G55: 次•日 | H55: 市定价 | I55: 6周岁及以下儿童加收
A56: 52 | B56: 014200000060011 | C56: 体表针法-主任医师（加收） | F56: 甲 | G56: 次•日 | H56: 市定价
A57: 53 | B57: 014200000060012 | C57: 体表针法-副主任医师（加收） | F57: 甲 | G57: 次•日 | H57: 市定价
A58: 54 | B58: 014200000070000 | C58: 活体生物针法 | D58: 由医师根据病情选穴，通过各类活体生物，配合手法，作用于人体，促进疏通经络，调理脏腑，扶正祛邪。 | E58: 所定价格涵盖部位确定、消毒、活体生物施治等过程中所需的人力资源和基本物质资源消耗。 | F58: 丙 | G58: 次•日 | H58: 市定价
A59: 55 | B59: 014200000070001 | C59: 活体生物针法-儿童（加收） | F59: 丙 | G59: 次•日 | H59: 市定价 | I59: 6周岁及以下儿童加收
A60: 56 | B60: 014200000080000 | C60: 穴位埋入 | D60: 由医师根据病情选穴，将相关医用耗材埋入体内，促进疏通经络，气血调和，补虚泻实。 | E60: 所定价格涵盖穴位确定、消毒、埋入，处理创口用物所需的人力资源和基本物质资源消耗。 | F60: 丙 | G60: 穴位 | H60: 市定价
A61: 57 | B61: 014200000080001 | C61: 穴位埋入-儿童（加收） | F61: 丙 | G61: 穴位 | H61: 市定价 | I61: 6周岁及以下儿童加收
A62: 58 | B62: 014200000090000 | C62: 穴位注射 | D62: 由医师根据病情选穴，配合手法，进行穴位注射，促进疏通经络，调理脏腑，扶正祛邪。 | E62: 所定价格涵盖穴位确定、消毒、注射、取针、局部处理等过程中所需的人力资源和基本物质资源消耗。 | F62: 甲 | G62: 穴位 | H62: 市定价
A63: 59 | B63: 014200000090001 | C63: 穴位注射-儿童（加收） | F63: 甲 | G63: 穴位 | H63: 市定价 | I63: 6周岁及以下儿童加收
A64: 60 | B64: 014200000090100 | C64: 穴位注射-中医自血疗法（扩展） | D64: 由医师根据病情选穴，配合手法，中医自血疗法，促进疏通经络，调理脏腑，扶正祛邪。 | E64: 所定价格涵盖穴位确定、消毒、注射、取针、局部处理等过程中所需的人力资源和基本物质资源消耗。 | F64: 甲 | G64: 穴位 | H64: 市定价 | I64: 指医务人员根据病情选穴，取患者自体血液，并通过穴位或肌肉组织注回患者自身体内，含取血、注射等操作。
A65: 61 | B65: 014200000100000 | C65: 耳穴疗法 | D65: 由医务人员根据病情在耳穴表面，通过贴敷颗粒物（如药物或磁珠等），配合适度的手法，促进疏通经络，调理脏腑，扶正祛邪。 | E65: 所定价格涵盖穴位确定、消毒、贴敷、按压等过程中所需的人力资源和基本物质资源消耗。 | F65: 甲 | G65: 单耳 | H65: 市定价
A66: 62 | B66: 014200000100001 | C66: 耳穴疗法-儿童（加收） | F66: 甲 | G66: 单耳 | H66: 市定价 | I66: 6周岁及以下儿童加收
B67: 43 | C67: （三）中医骨伤
A68: 63 | B68: 014300000010000 | C68: 手法整复术（关节脱位） | D68: 通过手法（或辅助器械）使脱位或紊乱关节复位。 | E68: 所定价格涵盖摆位、整复、包扎、必要时固定等步骤，以及必要时使用辅助器械所需的人力资源和基本物质资源消耗。 | F68: 甲 | G68: 每关节 | H68: 市定价
A69: 64 | B69: 014300000010001 | C69: 手法整复术（关节脱位）-儿童（加收） | F69: 甲 | G69: 每关节 | H69: 市定价 | I69: 6周岁及以下儿童加收
A70: 65 | B70: 014300000020000 | C70: 手法整复术（复杂关节脱位） | D70: 通过手法（或辅助器械）使脱位复杂关节复位。 | E70: 所定价格涵盖摆位、整复、包扎、必要时固定等步骤，以及必要时使用辅助器械所需的人力资源和基本物质资源消耗。 | F70: 甲 | G70: 每关节 | H70: 市定价 | I70: “复杂关节脱位”指寰枢椎、髋关节、骨盆等关节脱位以及陈旧性脱位。
A71: 66 | B71: 014300000020001 | C71: 手法整复术（复杂关节脱位）-儿童（加收） | F71: 甲 | G71: 每关节 | H71: 市定价 | I71: 6周岁及以下儿童加收
A72: 67 | B72: 014300000030000 | C72: 手法整复术（骨伤） | D72: 通过正骨手法（或辅助器械）使骨折或韧带损伤复位。 | E72: 所定价格涵盖摆位、整复、包扎、必要时固定等步骤，以及必要时使用辅助器械所需的人力资源和基本物质资源消耗。 | F72: 甲 | G72: 每处骨折 | H72: 市定价
A73: 68 | B73: 014300000030001 | C73: 手法整复术（骨伤）-儿童（加收） | F73: 甲 | G73: 每处骨折 | H73: 市定价 | I73: 6周岁及以下儿童加收
A74: 69 | B74: 014300000040000 | C74: 手法整复术（复杂骨伤） | D74: 通过正骨手法（或辅助器械）使复杂骨折或韧带损伤复位。 | E74: 所定价格涵盖摆位、整复、包扎、必要时固定等步骤，以及必要时使用辅助器械所需的人力资源和基本物质资源消耗。 | F74: 甲 | G74: 每处骨折 | H74: 市定价 | I74: “复杂骨伤”指脊柱、骨盆、关节内等骨折以及陈旧性、粉碎性骨折。
A75: 70 | B75: 014300000040001 | C75: 手法整复术（复杂骨伤）-儿童（加收） | F75: 甲 | G75: 每处骨折 | H75: 市定价 | I75: 6周岁及以下儿童加收
A76: 71 | B76: 014300000050000 | C76: 小夹板固定术 | D76: 通过小夹板等各种外固定方式对骨折部位进行包扎固定。 | E76: 所定价格涵盖摆位、固定等步骤所需的人力资源和基本物质资源消耗。 | F76: 甲 | G76: 部位 | H76: 市定价
A77: 72 | B77: 014300000050001 | C77: 小夹板固定术-儿童（加收） | F77: 甲 | G77: 部位 | H77: 市定价 | I77: 6周岁及以下儿童加收
A78: 73 | B78: 014300000060000 | C78: 小夹板调整术 | D78: 根据患者复诊情况对小夹板等外固定装置进行调整。 | E78: 所定价格涵盖观察、调整等步骤所需的人力资源和基本物质资源消耗。 | F78: 甲 | G78: 部位 | H78: 市定价
A79: 74 | B79: 014300000060001 | C79: 小夹板调整术-儿童（加收） | F79: 甲 | G79: 部位 | H79: 市定价 | I79: 6周岁及以下儿童加收
A80: 75 | B80: 014300000070000 | C80: 中医复位内固定术 | D80: 使用各种针具、钉具，以内固定方式复位固定骨折部位。 | E80: 所定价格涵盖摆位、消毒、进针、牵拉复位、撬拨、包扎固定等步骤所需的人力资源和基本物质资源消耗。 | F80: 甲 | G80: 每处骨折 | H80: 市定价
A81: 76 | B81: 014300000070001 | C81: 中医复位内固定术-儿童（加收） | F81: 甲 | G81: 每处骨折 | H81: 市定价 | I81: 6周岁及以下儿童加收
A82: 77 | B82: 014300000080000 | C82: 手法松解术 | D82: 通过理筋、松筋、弹拨等手法疏通经络、松解粘连、滑利关节。 | E82: 所定价格涵盖摆位、手法疏通等步骤，以及必要时使用辅助器械所需的人力资源和基本物质资源消耗。 | F82: 甲 | G82: 次 | H82: 市定价 | I82: 不与同部位中医推拿同时收费。
A83: 78 | B83: 014300000080001 | C83: 手法松解术-儿童（加收） | F83: 甲 | G83: 次 | H83: 市定价 | I83: 6周岁及以下儿童加收
A84: 79 | B84: 014300000090000 | C84: 手法挤压术 | D84: 通过抚触挤压腱鞘囊肿，使囊肿破裂。 | E84: 所定价格涵盖定位、抚触、挤压等步骤所需的人力资源和基本物质资源消耗。 | F84: 甲 | G84: 次 | H84: 市定价
A85: 80 | B85: 014300000090001 | C85: 手法挤压术-儿童（加收） | F85: 甲 | G85: 次 | H85: 市定价 | I85: 6周岁及以下儿童加收
B86: 44 | C86: （四）灸法
A87: 81 | B87: 014400000010000 | C87: 悬空灸 | D87: 由医务人员将施灸制品与皮肤保持一定距离，通过温和的药力和热力进行治疗，促进疏通经络，调和阴阳，扶正祛邪，达到治疗疾病的目的。 | E87: 所定价格涵盖施灸制品制备，点燃，穴位确定，固定或调节距离，熏烤，控制温度，处理用物等所需的人力资源和基本物质资源消耗。 | F87: 甲 | G87: 次 | H87: 市定价 | I87: 6周岁及以下儿童加收
A88: 82 | B88: 014400000010100 | C88: 悬空灸-雷火灸（太乙神针）（扩展） | F88: 乙 | G88: 次 | H88: 市定价
A89: 83 | B89: 014400000020000 | C89: 直接灸 | D89: 由医务人员将施灸制品直接作用于皮肤，通过温和的药力和热力进行治疗，促进疏通经络，调和阴阳，扶正祛邪，达到治疗疾病的目的。 | E89: 所定价格涵盖施灸制品制备，点燃，穴位确定，皮肤消毒，点触、拍打、熨法等方式所需的人力资源和基本物质资源消耗。 | F89: 甲 | G89: 次 | H89: 市定价 | I89: 6周岁及以下儿童加收
A90: 84 | B90: 014400000030000 | C90: 隔物灸 | D90: 由医务人员将施灸制品通过间隔各类物品实施灸法，通过温和的药力和热力进行治疗，促进疏通经络，调和阴阳，扶正祛邪，达到治疗疾病的目的。 | E90: 所定价格涵盖间隔物和施灸制品的制备，摆放，点燃，施灸等所需的人力资源和基本物质资源消耗。 | F90: 甲 | G90: 次 | H90: 市定价 | I90: 6周岁及以下儿童加收
A91: 85 | B91: 014400000040000 | C91: 铺灸 | D91: 由医务人员将施灸制品对胸腹部、腰背部等平铺灸饼实施灸法，通过温和的药力和热力进行治疗，促进疏通经络，调和阴阳，扶正祛邪，达到治疗疾病的目的。 | E91: 所定价格涵盖灸饼和施灸制品制备，撒药粉，平铺，放置，点燃，施灸等所需的人力资源和基本物质资源消耗。 | F91: 丙 | G91: 次 | H91: 市定价 | I91: 6周岁及以下儿童加收
A92: 86 | B92: 014400000040002 | C92: 铺灸-（督灸（火龙灸））（加收） | F92: 乙 | G92: 次 | H92: 市定价
A93: 87 | B93: 014400000050000 | C93: 中医拔罐 | D93: 由医务人员以罐（火罐、电火罐、着罐、磁疗罐、真空拔罐、电罐）为工具，利用各类方式方法使之吸附于体表的固定部位进行治疗，促进通经活络，行气活血，祛风散寒。 | E93: 所定价格可以涵盖清洁，罐具吸附，观察，撤罐，处理用物所需的人力资源和基本物质资源消耗。 | F93: 甲 | G93: 次 | H93: 市定价
A94: 88 | B94: 014400000050001 | C94: 中医拔罐-药物罐（加收） | F94: 甲 | G94: 次 | H94: 市定价
A95: 89 | B95: 014400000050002 | C95: 中医拔罐-水罐（加收） | F95: 甲 | G95: 次 | H95: 市定价
A96: 90 | B96: 014400000060000 | C96: 中医走罐 | D96: 由医务人员以罐为工具，利用各类方式方法使之吸附于体表的固定部位游走滑动进行治疗，促进通经活络。 | E96: 所定价格可以涵盖清洁，涂抹润滑剂，罐具吸附并反复滑动，处理用物所需的人力资源和基本物质资源消耗。 | F96: 甲 | G96: 次 | H96: 市定价
A97: 91 | B97: 014400000060100 | C97: 中医走罐-平衡罐（扩展） | F97: 丙 | G97: 次 | H97: 市定价
A98: 92 | B98: 014400000070000 | C98: 中医闪罐 | D98: 由医务人员以罐为工具，利用各类方式方法使之吸附于体表的固定部位，通过反复拔、起，使皮肤反复的紧、松进行治疗，促进通经活络。 | E98: 所定价格可以涵盖清洁，罐具吸附并反复拔、起，处理用物所需的人力资源和基本物质资源消耗。 | F98: 甲 | G98: 次 | H98: 市定价
B99: 45 | C99: （五）推拿疗法
A100: 93 | B100: 014500000010000 | C100: 头面部疾病推拿 | D100: 由医务人员遵循经络、穴位，通过各类手法和力道治疗头面部疾病，起到疏通经络、理筋整复的作用。 | E100: 所定价格涵盖应用各类推拿手法或辅助器械，完成操作所需的人力资源和基本物质资源消耗。 | F100: 甲 | G100: 次 | H100: 市定价 | I100: 6周岁及以下儿童加收
A101: 94 | B101: 014500000020000 | C101: 颈部疾病推拿 | D101: 由医务人员遵循经络、穴位，通过各类手法和力道治疗颈部疾病，起到疏通经络、理筋整复的作用。 | E101: 所定价格涵盖应用各类推拿手法或辅助器械，完成操作所需的人力资源和基本物质资源消耗。 | F101: 甲 | G101: 次 | H101: 市定价 | I101: 6周岁及以下儿童加收
A102: 95 | B102: 014500000030000 | C102: 脊柱部位疾病推拿 | D102: 由医务人员遵循经络、穴位，通过各类手法和力道治疗脊柱部位疾病，起到疏通经络、理筋整复的作用。 | E102: 所定价格涵盖应用各类推拿手法或辅助器械，完成操作所需的人力资源和基本物质资源消耗。 | F102: 乙 | G102: 次 | H102: 市定价 | I102: 6周岁及以下儿童加收
A103: 96 | B103: 014500000030001 | C103: 脊柱部位疾病推拿-寰枢关节推拿（加收） | F103: 乙 | G103: 次 | H103: 市定价
A104: 97 | B104: 014500000040000 | C104: 肩部疾病推拿 | D104: 由医务人员遵循经络、穴位，通过各类手法和力道治疗肩周炎部疾病，起到疏通经络、理筋整复的作用。 | E104: 所定价格涵盖应用各类推拿手法或辅助器械，完成操作所需的人力资源和基本物质资源消耗。 | F104: 甲 | G104: 单侧 | H104: 市定价 | I104: 6周岁及以下儿童加收
A105: 98 | B105: 014500000050000 | C105: 背部疾病推拿 | D105: 由医务人员遵循经络、穴位，通过各类手法和力道治疗背部疾病，起到疏通经络、理筋整复的作用。 | E105: 所定价格涵盖应用各类推拿手法或辅助器械，完成操作所需的人力资源和基本物质资源消耗。 | F105: 乙 | G105: 次 | H105: 市定价 | I105: 6周岁及以下儿童加收
A106: 99 | B106: 014500000060000 | C106: 腰部疾病推拿 | D106: 由医务人员遵循经络、穴位，通过各类手法和力道治疗腰部疾病，起到疏通经络、理筋整复的作用。 | E106: 所定价格涵盖应用各类推拿手法或辅助器械，完成操作所需的人力资源和基本物质资源消耗。 | F106: 甲 | G106: 次 | H106: 市定价 | I106: 6周岁及以下儿童加收
A107: 100 | B107: 014500000070000 | C107: 髋骶部疾病推拿 | D107: 由医务人员遵循经络、穴位，通过各类手法和力道治疗髋骶部疾病，以起到疏通经络、理筋整复的作用。 | E107: 所定价格涵盖应用各类推拿手法或特殊推拿技术或辅助器械，审证求因、确定病位、动静结合、精准施治所需的人力资源和基本物质资源消耗。 | F107: 甲 | G107: 次 | H107: 市定价 | I107: 6周岁及以下儿童加收
A108: 101 | B108: 014500000080000 | C108: 四肢部位疾病推拿 | D108: 由医务人员遵循经络、穴位，通过各类手法和力道治疗四肢部位疾病，起到疏通经络、理筋整复的作用。 | E108: 所定价格涵盖应用各类推拿手法或辅助器械，完成操作所需的人力资源和基本物质资源消耗。 | F108: 甲 | G108: 单肢 | H108: 市定价 | I108: 6周岁及以下儿童加收
A109: 102 | B109: 014500000090000 | C109: 脏腑疾病推拿 | D109: 由医务人员遵循经络、穴位，通过各类手法和力道治疗脏腑疾病，起到疏通经络、理筋整复的作用。 | E109: 所定价格涵盖应用各类推拿手法或辅助器械，完成操作所需的人力资源和基本物质资源消耗。 | F109: 丙 | G109: 次 | H109: 市定价 | I109: 6周岁及以下儿童加收
A110: 103 | B110: 014500000100000 | C110: 乳房疾病推拿 | D110: 由医务人员遵循经络、穴位，通过各类手法和力道治疗产后乳房疾病，以起到疏通经络、理筋整复的作用。 | E110: 所定价格涵盖应用各类推拿手法或特殊推拿技术或辅助器械，审证求因、确定病位、动静结合、精准施治所需的人力资源和基本物质资源消耗。 | F110: 丙 | G110: 单侧 | H110: 市定价
A111: 104 | B111: 014500000110000 | C111: 中枢神经系统疾病推拿 | D111: 由医务人员遵循经络、穴位，通过各类手法和力道治疗中枢神经系统疾病，以起到疏通经络、理筋整复的作用。 | E111: 所定价格涵盖应用各类推拿手法或辅助器械，完成操作所需的人力资源和基本物质资源消耗。 | F111: 甲 | G111: 次 | H111: 市定价 | I111: 6周岁及以下儿童加收
B112: 46 | C112: （六）中医特殊疗法
A113: 105 | B113: 014600000010000 | C113: 针刀（钩活）疗法 | D113: 使用针刀、铍针、刃针等各种针刀具，对病变组织松解剥离，起到缓解症状或治疗疾病的作用。 | E113: 所定价格涵盖定位、穿刺、剥离、包扎等人力资源和基本物质资源消耗。 | F113: 乙 | G113: 部位 | H113: 市定价
A114: 106 | B114: 014600000010001 | C114: 针刀（钩活）疗法-脊柱针刀疗法（加收） | D114: 使用针刀、铍针、刃针等各种针刀具，对脊柱病变组织松解剥离，起到缓解症状或治疗疾病的作用。 | F114: 乙 | G114: 部位 | H114: 市定价
A115: 107 | B115: 014600000020000 | C115: 点穴疗法 | D115: 通过对穴位或局部点压施术，起到缓解症状或治疗疾病的作用。 | E115: 所定价格涵盖定位、施压等人力资源和基本物质资源消耗。 | F115: 甲 | G115: 次 | H115: 市定价
A116: 108 | B116: 014600000030000 | C116: 中医烙法 | D116: 通过烙具烙烫病变部位，起到缓解症状或治疗疾病的作用。 | E116: 所定价格涵盖定位、消毒、烙烫等人力资源和基本物质资源消耗。 | F116: 甲 | G116: 次 | H116: 市定价
A117: 109 | B117: 014600000030001 | C117: 中医烙法-儿童（加收） | F117: 甲 | G117: 次 | H117: 市定价 | I117: 6周岁及以下儿童加收
A118: 110 | B118: 014600000040000 | C118: 白内障针拨术 | D118: 通过拨障针摘除晶状体混浊部分。 | E118: 所定价格涵盖散瞳、消毒、开睑、切口、拨障针拨断晶状体悬韧带、晶体压入玻璃体腔、出针、闭合切口、包扎等人力资源和基本物质资源消耗。 | F118: 甲 | G118: 单眼 | H118: 市定价
A119: 111 | B119: 014600000050000 | C119: 足底反射疗法 | D119: 通过手法对足部反射区进行刺激，起到缓解症状或治疗疾病的作用。 | E119: 所定价格涵盖泡洗、定位、穴位刺激等人力资源和基本物质资源消耗。 | F119: 丙 | G119: 次 | H119: 市定价 | I119: 不与中医推拿同时收费。
A120: 112 | B120: 014600000060000 | C120: 红皮病清消治疗 | D120: 针对红皮病病变部位进行清创处理、中药外敷，起到促进皮损愈合的作用。 | E120: 所定价格涵盖消毒、清创、敷药、包扎等人力资源和基本物质资源消耗。 | F120: 甲 | G120: 次 | H120: 市定价

Sheet 辅助生殖
A1: 说明： 1.本价格项目表以辅助生殖为重点、按照主要环节的服务产出设立价格项目，所列项目仅限卫生健康部门批准的开展人类辅助生殖技术的医疗机构执行。 2.本价格项目表所指组织/体液/细胞，主要指卵母细胞（极体）、胚胎、囊胚、精液、精子等与辅助生殖相关。 3.本价格项目表所称“价格构成”，指项目价格应涵盖的各类资源消耗，用于确定计价单元的边界，不应作为临床技术标准理解，不是手术实际操作方式、路径、步骤、程序的强制性要求。 4.本价格项目表所称“基本物耗”指原则上限于不应或不必要与医疗服务项目分割的易耗品，包括但不限于各类消杀用品、储存用品、清洁用品、个人防护用品、垃圾处理用品、培养液、冷冻保护液、冷冻液、解冻液、辅助生殖用液、试管、载杆载体辅助生殖器皿及装置、冲洗液、润滑剂、灌洗液、棉球、棉签、纱布（垫）、护垫、衬垫、手术巾（单）、治疗巾（单）、治疗护理盘(包）、注射器、滑石粉、防渗漏垫、标签、可复用的操作器具、冲洗工具。基本物耗成本计入项目价格，不另行收费。除基本物耗以外的其他耗材，按照实际采购价格零差率销售。 5.本价格项目表所列“穿刺”为主项操作涉及的必要穿刺技术。
A2: 序号 | B2: 编码 | C2: 项目名称 | D2: 服务产出 | E2: 价格构成 | F2: 医保支付类别 | G2: 限定支付 | H2: 先行自付 | I2: 计价单位 | J2: 价格（元） | M2: 计价说明
J3: 三类医院 | K3: 二类医院 | L3: 一类医院
C4: 辅助生殖
A5: 1 | B5: 013112010010000 | C5: 取卵术 | D5: 通过临床技术操作获得卵母细胞。 | E5: 所定价格涵盖穿刺、取卵、卵泡冲洗、计数、评估过程中的人力资源和基本物质消耗。含取卵针。不含超声引导。 | F5: 甲 | G5: ≤3次 | I5: 次 | J5: 2500 | L5: 市定价
A6: 2 | B6: 013112010010001 | C6: 取卵术-内镜下操作(加收) | D6: 包括但不限于腹腔镜、宫腔镜、胸腔镜、纤支镜、食管镜、纵隔镜、胃镜、肠镜、胆道镜、胰管镜、肾盂镜、膀胱镜、输尿管镜、阴道镜、关节镜、耳内镜、鼻内镜、气管镜、喉镜等各类内镜使用操作。 | F6: 丙 | M6: 按主项的30%加收
A7: 3 | B7: 013112010020000 | C7: 胚胎培养 | D7: 在培养箱中将精卵采取体外结合形式进行培养。 | E7: 所定价格涵盖受精、培养、观察、评估等获得胚胎过程中的人力资源和基本物质消耗。 | F7: 乙 | G7: ≤3次 | H7: 10% | I7: 次 | J7: 4500 | L7: 市定价
A8: 4 | B8: 013112010020001 | C8: 胚胎培养-囊胚培养(加收) | F8: 乙 | G8: ≤3次 | H8: 10% | M8: 按主项的30%加收
A9: 5 | B9: 013112010030000 | C9: 组织/体液/细胞冷冻（辅助生殖） | D9: 将辅助生殖相关组织、体液、细胞进行冷冻。 | E9: 所定价格涵盖将辅助生殖相关组织、体液、细胞转移至冷冻载体，冷冻及解冻复苏过程中的人力资源和基本物质消耗。不含胚胎、囊胚的解冻操作。 | F9: 丙 | I9: 管·次 | J9: 2000 | L9: 市定价 | M9: “组织/体液/细胞冷冻（辅助生殖）”每管每次（管·次）价格含冷冻当天起保存2个月的费用，不足2月按2月计费。冻存结束前只收取一次。“管”指包括但不限于用于装载辅助生殖组织、体液或细胞所需的试管、载杆等载体。
A10: 6 | B10: 013112010040000 | C10: 组织/体液/细胞冷冻续存（辅助生殖） | D10: 将冷冻后的辅助生殖相关组织、体液、细胞持续冻存。 | E10: 所定价格涵盖将冷冻后的辅助生殖相关组织、体液、细胞持续冻存至解冻复苏前或约定截止保存时间，期间的人力资源和基本物质消耗。不含胚胎、囊胚的解冻操作。 | F10: 丙 | I10: 管·月 | J10: 150 | L10: 市定价 | M10: 辅助生殖相关组织、体液、细胞冷冻后保存超过2月的，按每管每月（管·月）收取续存费用，不足1月按1月计费；不得重复收取“组织/体液/细胞冷冻（辅助生殖）”费用。“管”指包括但不限于用于装载辅助生殖组织、体液或细胞所需的试管、载杆等载体。
A11: 7 | B11: 013112010050000 | C11: 胚胎移植 | D11: 将胚胎移送至患者宫腔内。 | E11: 所定价格涵盖胚胎评估、移送至患者宫腔内过程中所需的人力资源和基本物质消耗。 | F11: 乙 | H11: 10% | I11: 次 | J11: 2300 | L11: 市定价
A12: 8 | B12: 013112010050001 | C12: 胚胎移植-冻融胚胎(加收) | D12: 指解冻复苏的胚胎或囊胚。 | F12: 乙 | H12: 10% | J12: 1800 | L12: 市定价
A13: 9 | B13: 013112010060000 | C13: 未成熟卵体外成熟培养 | D13: 将通过临床操作获取的未成熟卵进行体外培养。 | E13: 所定价格涵盖未成熟卵处理、培养、观察、评估、激活过程中所需的人力资源和基本物质消耗。 | F13: 丙 | I13: 次 | J13: 3500 | L13: 市定价
A14: 10 | B14: 013112010070000 | C14: 胚胎辅助孵化 | D14: 将胚胎通过物理或化学的方法，将透明带制造一处缺损或裂隙，提高着床成功率。 | E14: 所定价格涵盖筛选、调试、透明带处理、记录过程中所需的人力资源和基本物质消耗。 | F14: 丙 | I14: 次 | J14: 1200 | L14: 市定价
A15: 11 | B15: 013112010080000 | C15: 组织、细胞活检（辅助生殖） | D15: 在囊胚/卵裂期胚胎/卵母细胞等辅助生殖相关的组织、细胞上分离出检测标本。 | E15: 所定价格涵盖通过筛选、评估、透明带处理，吸取分离标本过程中所需的人力资源和基本物质消耗。 | F15: 乙 | G15: 注解：组织、细胞活检（辅助生殖）限制：1. 夫妻一方为单基因疾病患者或双方是同一单基因病的携带者，曾孕育或具有生育致畸、致残、致死的单基因病患儿高风险的夫妻；2. 夫妻一方或双方携带染色体结构异常，包括相互易位、罗氏易位、倒位、复杂易位、致病性微缺失或致病性微重复等；3. ≤3次。 | H15: 10% | I15: 每个胚胎（卵） | J15: 1500 | L15: 市定价
A16: 12 | B16: 013112010090000 | C16: 人工授精 | D16: 通过临床操作将精液注入患者宫腔内。 | E16: 所定价格涵盖精液注入、观察等过程中所需的人力资源和基本物质消耗。 | F16: 甲 | I16: 次 | J16: 500 | L16: 市定价
A17: 13 | B17: 013112010090100 | C17: 人工授精-阴道（宫颈）内人工授精(扩展) | F17: 甲 | J17: 500 | L17: 市定价
A18: 14 | B18: 013111000010000 | C18: 精子优选处理 | D18: 通过实验室手段从精液中筛选优质精子。 | E18: 所定价格涵盖精液采集、分析、处理、筛选、评估过程中所需的人力资源和基本物质消耗。 | F18: 甲 | I18: 次 | J18: 750 | L18: 市定价
A19: 15 | B19: 013111000020000 | C19: 取精术 | D19: 通过手术方式获取精子。 | E19: 所定价格涵盖穿刺、分离、获取精子评估过程中的人力资源和基本物质消耗。 | F19: 甲 | I19: 次 | J19: 950 | L19: 市定价
A20: 16 | B20: 013111000020001 | C20: 取精术-显微镜下操作(加收) | D20: 指在显微镜下完成切开睾丸/附睾获取精子的操作过程。 | F20: 乙 | H20: 10% | J20: 4000 | L20: 市定价
A21: 17 | B21: 013112010100000 | C21: 单精子注射 | D21: 将优选处理后精子注射进卵母细胞，促进形成胚胎。 | E21: 所定价格涵盖将精子制动、吸入，注入卵母细胞胞浆等过程中的人力资源和基本物质资源消耗。 | F21: 乙 | G21: ≤3次 | H21: 10% | I21: 卵·次 | J21: 2800 | L21: 市定价 | M21: 从第2卵开始，每卵按10%收取，总价最多不超过6720元。
A22: 18 | B22: 013112010100001 | C22: 单精子注射-卵子激活(加收) | F22: 乙 | G22: ≤3次 | H22: 10% | M22: 按主项的30%加收

Sheet 护理类
A1: 说明： 1.本价格项目表以护理为重点，按照分级护理、专科护理、专项护理分类设立价格项目。 2.本价格项目表所称“基本物质资源消耗”，指原则上限于不应或不必要与医疗服务项目分割的易耗品，包括但不限于各类消毒用品、储存用品、清洁用品、个人防护用品、标签、垃圾处理用品、冲洗液、润滑剂、压舌板、滑石粉、治疗巾（单）、棉球、棉签、纱布（垫）、普通绷带、固定带、治疗护理盘（包）、注射器、护（尿）垫、中单、冲洗工具、备皮工具、牙垫等。基本物质资源消耗成本计入项目价格，不另行收费。除基本物质资源消耗以外的其他耗材，按照实际采购价格零差率销售。 3.本价格项目表中的“分级护理”含一般传染病护理，纳入价格构成中，不再单独计费。 4.本价格项目表中的“分级护理”中的评估，包括但不限于压疮风险评估、跌倒/坠床风险评估、静脉血栓风险评估、日常生活能力评定、疼痛综合评定、营养风险筛查、呛咳风险评估等相关护理评估，已纳入价格构成，不作为临床量表单独立项，不额外计入收费。 5.本价格项目表中，对“互联网+护理服务”不单设医疗服务价格项目，按照“上门服务费+护理项目价格”的方式计费。 6.本价格项目表中，“管·日”指每日每管，即按照每日实际护理管路数量计费。如一名患者既行尿管护理又行胃肠减压管路护理，可按照“引流管护理”×2的方式计费，并在医嘱中体现的，医疗机构可自行在收费单据中备注，方便患方理解。 7.除本价格项目表有特殊规定不能同时收取外，专科护理可以与分级护理、专项护理同时收取。 8.以“日”为计价单位的护理项目，按计入不计出的办法计算，即入院当天计算，出院当天不计算，当天入院当天出院的按一天计算。按“小时”计价的，不足20分钟（含20分钟），不计费，超过20分钟不足40分钟（含40分钟），按半小时计算，超过40分钟不足60分钟的，按一小时计算。
A2: 序号 | B2: 编码 | C2: 项目名称 | D2: 服务产出 | E2: 价格构成 | F2: 医保支付类别 | G2: 计价单位 | H2: 价格（元） | K2: 计价说明
H3: 三类医院 | I3: 二类医院 | J3: 一类医院
B4: 13 | C4: （三）护理
B5: 1301 | C5: 1.分级护理
A6: 1 | B6: 011301000010000 | C6: 特级护理 | D6: 指为病情危重，随时可能发生病情变化需要进行监护、抢救的患者；各种复杂或大手术后、严重创伤或大面积烧伤的患者提供的相关护理。 | E6: 所定价格涵盖观察病情及生命体征、制定护理措施、根据医嘱正确实施治疗用药、评估、评定、记出入量、书写护理记录、辅助实施生活护理、口腔护理、皮肤清洁、会阴护理、肛周护理、叩背护理、眼部护理、心理护理、给予患者舒适和功能体位、预防并发症、实施床旁交接班、健康指导等所需的人力资源和基本物质资源消耗。不含其他专项护理。 | F6: 乙 | G6: 日 | H6: 160 | J6: 市定价
A7: 2 | B7: 011301000010001 | C7: 特级护理-儿童（加收） | F7: 乙 | G7: 日 | K7: 6周岁及以下儿童按主项的30%加收
A8: 3 | B8: 011301000020000 | C8: Ⅰ级护理 | D8: 指为病情趋向稳定的重症患者；病情不稳定或随时可能发生变化的患者；手术后或者治疗期间需要严格卧床的患者；自理能力重度依赖的患者提供的相关护理。 | E8: 所定价格涵盖观察病情及生命体征、制定护理措施、根据医嘱正确实施治疗用药、评估、评定、记出入量、书写护理记录、辅助实施生活护理、口腔护理、皮肤清洁、会阴护理、肛周护理、叩背护理、眼部护理、心理护理、给予患者舒适和功能体位、预防并发症、实施床旁交接班、健康指导等所需的人力资源和基本物质资源消耗。不含其他专项护理。 | F8: 甲 | G8: 日 | H8: 65 | J8: 市定价
A9: 4 | B9: 011301000020001 | C9: Ⅰ级护理-儿童（加收） | F9: 甲 | G9: 日 | K9: 6周岁及以下儿童按主项的30%加收
A10: 5 | B10: 011301000030000 | C10: Ⅱ级护理 | D10: 指病情趋于稳定或未明确诊断前，仍需观察，且自理能力轻度依赖的患者；病情稳定，仍需卧床，且自理能力轻度依赖的患者；病情稳定或处于康复期，且自理能力中度依赖的患者提供的相关护理。 | E10: 所定价格涵盖观察病情及生命体征、根据医嘱正确实施治疗用药、评估、评定、辅助实施生活护理、书写护理记录，皮肤清洁、心理护理、健康指导等所需的人力资源和基本物质资源消耗。不含专项护理。 | F10: 甲 | G10: 日 | H10: 30 | J10: 市定价
A11: 6 | B11: 011301000040000 | C11: Ⅲ级护理 | D11: 指病情稳定或处于康复期，且自理能力轻度依赖或无依赖的患者提供的相关护理。 | E11: 所定价格涵盖观察病情及生命体征、根据医嘱正确实施治疗用药、评估、评定、书写护理记录、心理护理、健康指导等所需的人力资源和基本物质资源消耗。不含专项护理。 | F11: 甲 | G11: 日 | H11: 22 | J11: 市定价
B12: 1302 | C12: 2.专科护理
A13: 7 | B13: 011302000010000 | C13: 急诊留观护理 | D13: 指为需留在急诊进行观察的患者提供的相关护理。 | E13: 所定价格涵盖观察病情及生命体征、制定护理措施、根据医嘱正确实施治疗用药、评估、评定、书写护理记录、辅助实施生活护理、口腔护理、皮肤清洁、会阴护理、肛周护理、叩背护理、眼部护理、心理护理、预防并发症、实施床旁交接班、健康指导等所需的人力资源和基本物质资源消耗。不含其他专项护理。 | F13: 甲 | G13: 日 | H13: 40 | I13: 36 | J13: 市定价 | K13: 当天转住院的，急诊留观与分级护理费用不得同时收取。
A14: 8 | B14: 011302000020000 | C14: 重症监护护理 | D14: 指在重症监护病房内，护理人员为重症监护患者提供的相关护理。 | E14: 所定价格涵盖密切观察病情及生命体征、根据医嘱正确实施治疗用药、评估患者状态、评定相关指标、记出入量、随时配合抢救、及时书写护理记录、喂食、翻身、洗漱、并发症预防等全方位实施生活护理、口腔护理、皮肤护理、会阴护理、肛周护理、心理护理、健康指导等所需的人力资源和基本物质资源消耗。不含其他专项护理。 | F14: 乙 | G14: 小时 | H14: 12 | I14: 11 | J14: 市定价 | K14: 1.指在重症监护病房内实施的护理操作，不可与分级护理同时收费，可以与严密隔离护理/保护性隔离护理同时收费，不包含监测项目费用。2.转入重症监护病房后按“小时”收取重症监护护理费用，转入普通病房后，当日可按“日”收取分级护理费用。
A15: 9 | B15: 011302000020001 | C15: 重症监护护理-儿童（加收） | F15: 乙 | G15: 小时 | K15: 6周岁及以下儿童按主项的30%加收
A16: 10 | B16: 011302000030000 | C16: 精神病人护理 | D16: 指对精神病患者提供的护理。 | E16: 所定价格涵盖密切巡视患者、观察患者情绪变化、并对患者提供适宜的照顾、采取预防意外事件发生的措施、做好健康教育指导等所需的人力资源和基本物质资源消耗。 | F16: 乙 | G16: 日 | H16: 33 | I16: 30 | J16: 市定价
A17: 11 | B17: 011302000040000 | C17: 严密隔离护理 | D17: 指对甲类、乙类传染病患者在严密隔离条件下提供的护理。 | E17: 所定价格涵盖穿戴个人防护用品、标识、患者排出物消毒处理、生活垃圾及医疗垃圾处理、消毒及细菌采样等所需的人力资源和基本物质资源消耗。 | F17: 乙 | G17: 日 | H17: 55 | I17: 50 | J17: 市定价 | K17: 严密隔离护理条件参照《全国医疗服务项目技术规范（2023年版）》。
A18: 12 | B18: 011302000040001 | C18: 严密隔离护理-儿童（加收） | F18: 乙 | G18: 日 | K18: 6周岁及以下儿童按主项的30%加收
A19: 13 | B19: 011302000050000 | C19: 保护性隔离护理 | D19: 指对抵抗力低、极易感染患者在保护性隔离条件下的护理。 | E19: 所定价格涵盖观察病情及生命体征、评估、评定、防护用品、消毒清洁及细菌采样等所需的人力资源和基本物质资源消耗。 | F19: 丙 | G19: 日 | H19: 33 | I19: 30 | J19: 市定价 | K19: 保护性隔离条件参照《全国医疗服务项目技术规范（2023年版）》。
A20: 14 | B20: 011302000050001 | C20: 保护性隔离护理-儿童（加收） | F20: 丙 | G20: 日 | K20: 6周岁及以下儿童按主项的30%加收
A21: 15 | B21: 011302000060000 | C21: 新生儿护理 | D21: 指对从胎儿娩出、脐带结扎后至28天的婴儿进行的相关护理。 | E21: 所定价格涵盖喂养、更换尿布、臀部护理、脐部残端护理、称体重、观察皮肤、洗浴、抚触、更换衣物被服、肛管排气、口腔护理、皮肤护理、会阴护理、肛周护理等所需的人力资源和基本物质资源消耗。不含其他专项护理。 | F21: 乙 | G21: 日 | H21: 78 | I21: 70 | J21: 市定价 | K21: 不与分级护理同时收取。
A22: 16 | B22: 011302000070000 | C22: 早产儿护理 | D22: 指对出生时胎龄小于37周，纠正胎龄至44周的早产儿进行的相关护理。 | E22: 所定价格涵盖评估病情、核对医嘱、胎龄，监护呼吸、体温、心率变化及各器官功能的成熟情况、体位管理、喂养、更换尿布、臀部护理、脐部残端护理、肛管排气、口腔护理、皮肤护理、会阴护理、肛周护理等所需的人力资源和基本物质资源消耗。不含其他专项护理。 | F22: 乙 | G22: 日 | H22: 90 | I22: 81 | J22: 市定价 | K22: 不与分级护理、重症监护护理同时收取。
B23: 1303 | C23: 3.专项护理
A24: 17 | B24: 011303000010000 | C24: 口腔护理 | D24: 指为高热、鼻饲、不能经口进食、人工气道等患者进行的口腔清洁护理。 | E24: 所定价格涵盖评估病情、核对信息、检查口腔、按口腔护理操作流程清洁口腔、观察生命体征、给予健康宣教及心理护理等所需的人力资源和基本物质资源消耗。 | F24: 丙 | G24: 次 | H24: 8 | I24: 7.2 | J24: 市定价 | K24: 已包含在特级护理、Ⅰ级护理、急诊留观护理及重症监护护理价格构成中，不得重复收取此项收费；在为患者提供Ⅱ级护理、Ⅲ级护理，且同时提供本专项护理的，可按“次”据实收费。
A25: 18 | B25: 011303000020000 | C25: 会阴护理 | D25: 指为泌尿生殖系统感染、大小便失禁、会阴部皮肤破损、留置导尿、产后及各种会阴部术后的患者进行的会阴清洁护理。 | E25: 所定价格涵盖评估病情、核对信息、排空膀胱、擦洗或冲洗会阴、尿管，处理用物，给予做好健康教育及心理护理等所需的人力资源和基本物质资源消耗。 | F25: 丙 | G25: 次 | H25: 15 | I25: 14 | J25: 市定价 | K25: 已包含在特级护理、Ⅰ级护理、急诊留观护理及重症监护护理价格构成中，不得重复收取此项收费；在为患者提供Ⅱ级护理、Ⅲ级护理，且同时提供本专项护理的，可按“次”据实收费。
A26: 19 | B26: 011303000030000 | C26: 肛周护理 | D26: 指为肛周脓肿、大便失禁等患者进行的肛周护理。 | E26: 所定价格涵盖核对信息、准备、观察肛周皮肤黏膜、清洁，涂药或湿敷等所需的人力资源和基本物质资源消耗。 | F26: 丙 | G26: 次 | H26: 15 | I26: 14 | J26: 市定价 | K26: 已包含在特级护理、Ⅰ级护理、急诊留观护理及重症监护护理价格构成中，不得重复收取此项收费；在为患者提供Ⅱ级护理、Ⅲ级护理，且同时提供本专项护理的，可按“次”据实收费。
A27: 20 | B27: 011303000040000 | C27: 置管护理（深静脉/动脉） | D27: 对深静脉置管/动脉置管管路实施维护，使管路维持正常功能。 | E27: 所定价格涵盖导管状态评估、管路疏通、封管，必要时更换输液接头等所需的人力资源和基本物质资源消耗。不含创口换药。 | F27: 乙 | G27: 管·日 | H27: 11 | I27: 9.9 | J27: 市定价 | K27: 1.深静脉置管包括中心静脉导管（CVC）、经外周静脉置入的中心静脉导管（PICC）、输液港（PORT）等。2.外周静脉置管护理含在注射费价格构成中，不单独计费。
A28: 21 | B28: 011303000050000 | C28: 气管插管护理 | D28: 对气管插管实施维护，维持正常通气功能。 | E28: 所定价格涵盖监测并记录导管深度与气囊压力、气道给药及气囊管理、清理导管污物、更换牙垫及固定物，必要时行撤机拔管前评估（含人工气囊压力测定及连续测定、自主呼吸试验、气囊漏气试验、咳嗽风流速试验）等所需的人力资源和基本物质资源消耗。不含吸痰。 | F28: 乙 | G28: 日 | H28: 60 | I28: 54 | J28: 市定价
A29: 22 | B29: 011303000060000 | C29: 气管切开护理 | D29: 对气管切开套管（含经皮气切插管）实施维护，维持正常通气功能。 | E29: 所定价格涵盖观察气切周围皮肤、套管取出清洁并消毒或更换套管、更换敷料及固定物，必要时行气道给药等所需的人力资源和基本物质资源消耗。不含吸痰。 | F29: 乙 | G29: 日 | H29: 60 | I29: 54 | J29: 市定价 | K29: 更换套管是置管的延伸服务，按照医生医嘱更换套管，单独收取耗材费用。
A30: 23 | B30: 011303000070000 | C30: 引流管护理 | D30: 对各种引流管路（含尿管、胃肠减压管路等）实施维护，保持引流通畅。 | E30: 所定价格涵盖观察引流液性状及记量、检查引流管位置并固定、冲洗、更换引流袋等所需的人力资源和基本物质资源消耗。不含创口换药。 | F30: 甲 | G30: 管·日 | H30: 8 | I30: 7.2 | J30: 市定价
A31: 24 | B31: 011303000070001 | C31: 引流管护理-闭式引流护理（加收） | F31: 甲 | G31: 管·日 | H31: 8 | I31: 7.2 | J31: 市定价
A32: 25 | B32: 011303000080000 | C32: 肠内营养输注护理 | D32: 指经鼻胃/肠管、造瘘等途径灌注药物或要素饮食的患者的护理。 | E32: 所定价格涵盖患者肠内营养期间，评估病情、固定/冲洗管路、观察管路和患者腹部体征及排泄情况、心理护理、健康教育等所需的人力资源和基本物质资源消耗。不含创口换药。 | F32: 丙 | G32: 日 | H32: 8 | I32: 7.2 | J32: 市定价
A33: 26 | B33: 011303000090000 | C33: 造口/造瘘护理 | D33: 指对造口/造瘘实施维护，维持患者排泄通畅的护理。 | E33: 所定价格涵盖造口评估、观察排泄物/分泌物性状、清洁造口及周围皮肤、定期更换造口装置、心理护理、造口/造瘘护理健康指导等所需的人力资源和基本物质资源消耗。不含创口换药。 | F33: 乙 | G33: 每造口/每造瘘·日 | H33: 10 | I33: 9 | J33: 市定价
A34: 27 | B34: 011303000100000 | C34: 压力性损伤护理 | D34: 指对有压力性损伤风险或已出现压力性损伤患者，实施预防或护理。 | E34: 所定价格涵盖评估患者病情及配合程度、评估压疮分级和危险因素、协助患者取适当体位、采用敷料等支撑面减压保护、定时翻身、协助患者恢复舒适体位、处理用物、记录、健康教育及心理护理。必要时进行创面抗感染、渗液管理和周围皮肤保护等所需的人力资源和基本物质资源消耗。不含换药。 | F34: 丙 | G34: 日 | H34: 18 | I34: 16 | J34: 市定价
A35: 28 | B35: 011303000110000 | C35: 免陪照护服务 | D35: 指公立医疗机构提供的服务事项，指在没有家属和护工参与的情况下，完全由护士、护理员承担患者全部生活护理。 | E35: 所定价格涵盖生活照顾等所需的人力资源和基本物质资源消耗。 | F35: 丙 | G35: 日 | H35: 125 | J35: 市定价 | K35: 1.指在特级护理、I级护理服务的基础上同时开展免陪照护服务的，可在特级护理、I级护理收费的同时，加收该项目收费；2.免陪照护患者家庭根据自身需要自行雇佣护理员，通过市场化解决，不属于医疗服务价格项目管理范畴。3.在符合卫生健康部门服务规范要求的试点医疗机构执行。

Sheet 临床量表评估类
A1: 说明： 1.本价格项目表所称“临床量表评估”，涵盖西医和中医的各个临床专业，评估目的是为临床诊断、辅助诊断或治疗效果评价提供支持，评估内容包括但不限于对个体的压力、生活、应激事件；情感反应、行为模式；各项大脑及神经功能、认知功能；生活功能、社会功能、家庭功能、环境适应能力、生命质量、生理机能、营养状态、智力发育及临床诊疗等，不包括以临床试验、流行病学调查、长期随访、科学研究为目的的评估。 2.本价格项目表所称的临床量表是指卫生行业主管部门相关技术规范等准许使用的临床量表，以“得出评估结论”作为一个完整计价单元，医疗机构为得出准确结论需要应用1份或若干份量表的，按照评估条目的总数分档计费。 3.本价格项目表所称“甲类评估”，是指评估条目总数∈（0,20]的临床量表评估；“乙类评估”，是指评估条目总数∈（20,40]的临床量表评估；“丙类评估”，是指评估条目总数∈（40,100]的临床量表评估；“丁类评估”，是指评估条目总数∈（100,∞）的临床量表评估。 4.本价格项目表所称“评估条目”是指临床评估量表中规范列出、需要作答的具体问题。评估条目属于选项式的，按1条评估条目计算，评估条目属于论述、记忆、描述等非选项式的，按2条评估条目计算。 5.本价格项目表所称“基本物质消耗”，包括但不限于临床量表的工本费，以及临床量表、评估设备及评估软件的版权、开发、购买等的成本。 6.本价格项目表所称“儿童评估”，指以6周岁及以下儿童为对象进行的临床量表评估。此类情形下，实际是否有专业评估人员协助，均按“他评”及对应的分档标准计价。
A2: 序号 | B2: 编码 | C2: 项目名称 | D2: 服务产出 | E2: 价格构成 | F2: 医保支付类别 | G2: 计价单位 | H2: 价格（元） | K2: 计价说明
H3: 三类医院 | I3: 二类医院 | J3: 一类医院
C4: 量表
A5: 1 | B5: 011102010010000 | C5: 临床量表评估（自评） | D5: 基于患者自主完成的临床量表，对患者生理或心理的功能状态形成评估结论。 | E5: 所定价格涵盖完成自评所需的人力资源和基本物质资源消耗。 | F5: 乙 | G5: 次·日 | H5: 16 | J5: 市定价 | K5: 不同学科且不重复的临床量表评估可分别计价。
A6: 2 | B6: 011102010010001 | C6: 临床量表评估（自评）-乙类评估（加收） | F6: 乙 | G6: 次·日 | H6: 5.0 | J6: 市定价
A7: 3 | B7: 011102010010002 | C7: 临床量表评估（自评）-丙类评估（加收） | F7: 乙 | G7: 次·日 | H7: 14 | J7: 市定价
A8: 4 | B8: 011102010010003 | C8: 临床量表评估（自评）-丁类评估（加收） | F8: 乙 | G8: 次·日 | H8: 25 | J8: 市定价
A9: 5 | B9: 011102010010100 | C9: 临床量表评估（自评）-应用人工智能辅助的自评（扩展） | F9: 乙 | G9: 次·日 | H9: 16 | J9: 市定价
A10: 6 | B10: 011102010020000 | C10: 临床量表评估（他评） | D10: 基于专业评估人员协助患者完成的临床量表，对患者生理或心理的功能状态形成评估结论。 | E10: 所定价格涵盖完成甲类评估所需的人力资源和基本物质资源消耗。 | F10: 乙 | G10: 次·日 | H10: 32 | J10: 市定价 | K10: 不同学科且不重复的临床量表评估可分别计价。
A11: 7 | B11: 011102010020001 | C11: 临床量表评估（他评）-乙类评估（加收） | F11: 乙 | G11: 次·日 | H11: 10 | J11: 市定价
A12: 8 | B12: 011102010020002 | C12: 临床量表评估（他评）-丙类评估（加收） | F12: 乙 | G12: 次·日 | H12: 28 | J12: 市定价
A13: 9 | B13: 011102010020003 | C13: 临床量表评估（他评）-丁类评估（加收） | F13: 乙 | G13: 次·日 | H13: 50 | J13: 市定价
A14: 10 | B14: 011102010020100 | C14: 临床量表评估（他评）-应用人工智能辅助的他评（扩展） | F14: 乙 | G14: 次·日 | H14: 32 | J14: 市定价
A15: 11 | B15: 011102010020200 | C15: 临床量表评估（他评）-儿童评估（扩展） | F15: 乙 | G15: 次·日 | H15: 32 | J15: 市定价

Sheet 器官移植环节手术
A1: 说明: 1.本价格项目表所列项目仅限取得卫生健康部门相关资质的医疗机构执行。 2.本价格项目表所称“移植”是指移植医院将供体器官或组织植入受体；所称“切取”是指合法进行的活体捐献中，移植医院从供体体内取得相应的器官或组织。 3.本价格项目表所称的基本物耗，原则上限于不应或不必要与医疗服务项目分割的易耗品，如碘酒、酒精、消毒液、冲洗液、棉花、纱布、普通敷料、帽子、口罩、鞋套、袜套、手套、手术衣、绷带、床垫、各种护垫、各种衬垫、手术巾、治疗巾、普通注射器、压舌板、滑石粉等。基本物耗成本计入项目价格，不另行收费。除基本物耗以外的其他耗材，按照实际采购价格零差率销售。 4.手术过程中的具体操作步骤，不另行立项收费；术前术后指导、手术方案设计等亦在手术价格项目的定价中体现，不另行立项及收费。 5.本价格项目表所称的“异种器官”，指不摘自人体的器官，包括但不限于动物器官，机械器官，以及3D打印等技术人工制造的器官。 6.合法的活体器官捐献指符合《人体器官捐献和移植条例》相关条款规定的情形。
A2: 序号 | B2: 编码 | C2: 项目名称 | D2: 服务产出 | E2: 价格构成 | F2: 医保支付类别 | G2: 计价单位 | H2: 价格（元） | K2: 计价说明
H3: 三类医院 | I3: 二类医院 | J3: 一类医院
C4: 器官移植手术
A5: 1 | B5: 013317000010000 | C5: 心脏移植术 | D5: 异体同种心脏移植，实现患者原位心脏切除和供体心脏植入 | E5: 所定价格涵盖患者原位心脏切除、供体心脏术前或术中整复、供体心脏植入，以及切开、吻合、关闭、缝合等手术步骤的人力资源和基本物质资源消耗。 | F5: 乙 | G5: 次 | H5: 24500 | I5: 22050 | J5: 市定价
A6: 2 | B6: 013317000010001 | C6: 心脏移植术-儿童手术(加收) | F6: 乙 | G6: 次 | K6: 6周岁及以下儿童按主项的30%加收
A7: 3 | B7: 013317000010100 | C7: 心脏移植术-异种器官(扩展) | F7: 乙 | G7: 次 | H7: 24500 | I7: 22050 | J7: 市定价
A8: 4 | B8: 013317000010200 | C8: 心脏移植术-异位移植(扩展) | F8: 乙 | G8: 次 | H8: 24500 | I8: 22050 | J8: 市定价
A9: 5 | B9: 013317000020000 | C9: 肝脏移植术 | D9: 异体同种肝脏(全肝)移植，实现患者原位肝脏切除和供体肝脏植入。 | E9: 所定价格涵盖患者原位肝脏切除、供体肝脏术前或术中整复、供体肝脏植入，以及切开、吻合、关闭、缝合等手术步骤的人力资源和基本物质资源消耗。 | F9: 乙 | G9: 次 | H9: 34000 | I9: 30600 | J9: 市定价
A10: 6 | B10: 013317000020001 | C10: 肝脏移植术-儿童手术(加收) | F10: 乙 | G10: 次 | K10: 6周岁及以下儿童按主项的30%加收
A11: 7 | B11: 013317000020002 | C11: 肝脏移植术-部分肝脏(器官段)移植(加收) | F11: 乙 | G11: 次 | K11: 按主项的40%加收
A12: 8 | B12: 013317000020100 | C12: 肝脏移植术-异种器官(扩展) | F12: 乙 | G12: 次 | H12: 34000 | I12: 30600 | J12: 市定价
A13: 9 | B13: 013317000030000 | C13: 肺脏移植术 | D13: 异体同种肺脏(单侧)移植，实现患者原位肺脏切除和供体肺脏植入 | E13: 所定价格涵盖患者原位肺脏切除、供体肺脏术前或术中整复、供体肺脏植入，以及切开、吻合、关闭、缝合等手术步骤的人力资源和基本物质资源消耗。 | F13: 乙 | G13: 次 | H13: 19807 | I13: 17826 | J13: 市定价
A14: 10 | B14: 013317000030001 | C14: 肺脏移植术-儿童手术(加收) | F14: 乙 | G14: 次 | K14: 6周岁及以下儿童按主项的30%加收
A15: 11 | B15: 013317000030002 | C15: 肺脏移植术-部分肺脏(器官段)移植(加收) | F15: 乙 | G15: 次 | K15: 按主项的40%加收
A16: 12 | B16: 013317000030100 | C16: 肺脏移植术-异种器官(扩展) | F16: 乙 | G16: 次 | H16: 19807 | I16: 17826 | J16: 市定价
A17: 13 | B17: 013317000040000 | C17: 肾脏移植术 | D17: 异体同种肾脏(单侧)移植，实现供体肾脏植入 | E17: 所定价格涵盖供体肾脏术前或术中整复、患者原位肾脏处理、供体肾脏植入，以及切开、吻合、关闭、缝合等手术步骤的人力资源和基本物质资源消耗。 | F17: 乙 | G17: 次 | H17: 9500 | I17: 8550 | J17: 市定价
A18: 14 | B18: 013317000040001 | C18: 肾脏移植术-儿童手术(加收) | F18: 乙 | G18: 次 | K18: 6周岁及以下儿童按主项的30%加收
A19: 15 | B19: 013317000040100 | C19: 肾脏移植术-异种器官(扩展) | F19: 乙 | G19: 次 | H19: 9500 | I19: 8550 | J19: 市定价
A20: 16 | B20: 013317000050000 | C20: 小肠移植术 | D20: 异体同种小肠(器官段)移植，实现患者原位小肠切除和供体小肠植入 | E20: 所定价格涵盖患者原位小肠切除、供体小肠术前或术中整复、供体小肠植入，以及切开、吻合、关闭、缝合等手术步骤的人力资源和基本物质资源消耗。 | F20: 乙 | G20: 次 | H20: 7200 | I20: 6480 | J20: 市定价
A21: 17 | B21: 013317000050001 | C21: 小肠移植术-儿童手术(加收) | F21: 乙 | G21: 次 | K21: 6周岁及以下儿童按主项的30%加收
A22: 18 | B22: 013317000050100 | C22: 小肠移植术-异种器官(扩展) | F22: 乙 | G22: 次 | H22: 7200 | I22: 6480 | J22: 市定价
A23: 19 | B23: 013317000060000 | C23: 胰腺移植术 | D23: 异体同种胰腺移植，实现供体胰腺植入 | E23: 所定价格涵盖供体胰腺术前或术中整复、患者原位胰腺处理、供体胰腺植入，以及切开、吻合、关闭、缝合等手术步骤的人力资源和基本物质资源消耗。 | F23: 乙 | G23: 次 | H23: 20250 | I23: 18225 | J23: 市定价
A24: 20 | B24: 013317000060001 | C24: 胰腺移植术-儿童手术(加收) | F24: 乙 | G24: 次 | K24: 6周岁及以下儿童按主项的30%加收
A25: 21 | B25: 013317000060100 | C25: 胰腺移植术-异种器官(扩展) | F25: 乙 | G25: 次 | H25: 20250 | I25: 18225 | J25: 市定价
A26: 22 | B26: 013317000070000 | C26: 角膜移植术 | D26: 异体同种角膜(单侧)移植，实现患者原位角膜切除和供体角膜植入 | E26: 所定价格涵盖患者原位角膜切除、供体角膜术前或术中整复、供体角膜植入，以及切开、吻合、关闭、缝合等手术步骤的人力资源和基本物质资源消耗。 | F26: 乙 | G26: 次 | H26: 4190 | I26: 3771 | J26: 市定价
A27: 23 | B27: 013317000070001 | C27: 角膜移植术-儿童手术(加收) | F27: 乙 | G27: 次 | K27: 6周岁及以下儿童按主项的30%加收
A28: 24 | B28: 013317000070100 | C28: 角膜移植术-异种组织(扩展) | F28: 乙 | G28: 次 | H28: 4190 | I28: 3771 | J28: 市定价
A29: 25 | B29: 013317000080000 | C29: 供肝切取术 | D29: 活体供者肝脏(器官段)切取 | E29: 所定价格涵盖活体供者肝脏切取，以及切开、吻合、关闭、缝合等手术步骤的人力资源和基本物质资源消耗。 | F29: 乙 | G29: 次 | H29: 5000 | I29: 4500 | J29: 市定价 | K29: 仅限于合法进行的活体器官捐献
A30: 26 | B30: 013317000090000 | C30: 供肺切取术 | D30: 活体供者肺脏(器官段)切取 | E30: 所定价格涵盖活体供者肺脏切取，以及切开、吻合、关闭、缝合等手术步骤的人力资源和基本物质资源消耗。 | F30: 乙 | G30: 次 | H30: 4800 | I30: 4320 | J30: 市定价 | K30: 仅限于合法进行的活体器官捐献
A31: 27 | B31: 013317000100000 | C31: 供肾切取术 | D31: 活体供者肾脏(单侧)切取 | E31: 所定价格涵盖活体供者肾脏切取，以及切开、吻合、关闭、缝合等手术步骤的人力资源和基本物质资源消耗。 | F31: 乙 | G31: 次 | H31: 4100 | I31: 3690 | J31: 市定价 | K31: 仅限于合法进行的活体器官捐献
A32: 28 | B32: 013317000110000 | C32: 供小肠切取术 | D32: 活体供者小肠(器官段)切取 | E32: 所定价格涵盖活体供者小肠切取，以及切开、吻合、关闭、缝合等手术步骤的人力资源和基本物质资源消耗。 | F32: 乙 | G32: 次 | H32: 3300 | I32: 2970 | J32: 市定价 | K32: 仅限于合法进行的活体器官捐献
A33: 29 | B33: 013317000120000 | C33: 供胰腺切取术 | D33: 活体供者胰腺(器官段)切取 | E33: 所定价格涵盖活体供者胰腺切取，以及切开、吻合、关闭、缝合等手术步骤的人力资源和基本物质资源消耗。 | F33: 乙 | G33: 次 | H33: 3750 | I33: 3375 | J33: 市定价 | K33: 仅限于合法进行的活体器官捐献

Sheet 呼吸系统类
A1: 说明： 1. 本价格项目表以呼吸系统为重点，按照呼吸相关主要环节的服务产出设立医疗服务价格项目。 2. 本价格项目表所称的“基本物耗”指原则上限于不应或不必要与医疗服务项目分割的易耗品，包括但不限于各类消毒用品、储存用品、清洁用品、个人防护用品、标签、垃圾处理用品、治疗巾（单）、棉球、棉签、纱布（垫）、治疗护理盘（包）、普通注射器、护（尿）垫、备皮工具、吹嘴、鼻夹、一次性雾化吸入器、可复用操作器具、软件（版权、开发、购买）成本等。基本物质资源消耗成本计入项目价格，不另行收费。除基本物质资源消耗以外的其他耗材，按照实际采购价格零差率销售。 3. 本价格项目表中的“无创”指：无需切开皮肤或其他组织，经过自然腔道，利用无创方式进行的操作。不包括取出过程中因异物形状、位置或质地等因素导致的损伤、擦伤等情况。 4. 本价格项目表中“不含内镜检查”的价格项目，如需使用相关内镜可收取内镜检查费用。 5. 本价格项目表中开放手术与经内镜手术执行相同的价格标准，内镜辅助操作不再另行收费。双侧器官同时实行相同手术，另一侧器官手术按50%计费。
A2: 序号 | B2: 编码 | C2: 项目名称 | D2: 服务产出 | E2: 价格构成 | F2: 医保支付类别 | G2: 计价单位 | H2: 价格（元） | K2: 计价说明
H3: 三类医院 | I3: 二类医院 | J3: 一类医院
B4: 2407 | C4: 7.呼吸系统
A5: 1 | B5: 012407000010000 | C5: 肺容积检查费 | D5: 通过各种方式测量肺容纳的气体量。 | E5: 所定价格涵盖设备准备、仪器测定、撤除、处理用物、出具报告等步骤所需的人力资源和基本物质资源消耗。 | F5: 甲 | G5: 次 | H5: 39 | J5: 市定价
A6: 2 | B6: 012407000020000 | C6: 肺通气功能检查费 | D6: 通过各种方式测量肺与外界环境之间的气体交换情况。 | E6: 所定价格涵盖设备准备、仪器测定、撤除、处理用物、出具报告等步骤所需的人力资源和基本物质资源消耗。 | F6: 甲 | G6: 次 | H6: 138 | J6: 市定价 | K6: 支气管舒张试验按两次肺通气功能检查费收取。
A7: 3 | B7: 012407000020001 | C7: 肺通气功能检查费-儿童（加收） | F7: 甲 | G7: 次 | K7: 6周岁及以下儿童按主项的30%加收
A8: 4 | B8: 012407000020011 | C8: 肺通气功能检查费-简易肺功能检查（减收） | F8: 甲 | G8: 次 | K8: 按主项的50%减收
A9: 5 | B9: 012407000030000 | C9: 支气管激发试验检查费 | D9: 通过各种刺激方式评估气道反应性。 | E9: 所定价格涵盖设备准备、仪器测定、撤除、处理用物、出具报告等步骤所需的人力资源和基本物质资源消耗。 | F9: 甲 | G9: 次 | H9: 100 | J9: 市定价
A10: 6 | B10: 012407000040000 | C10: 肺弥散功能检查费 | D10: 通过各种方式测量肺泡与肺毛细血管血液之间的气体交换情况。 | E10: 所定价格涵盖设备准备、仪器测定、撤除、处理用物、出具报告等步骤所需的人力资源和基本物质资源消耗。 | F10: 甲 | G10: 次 | H10: 50 | J10: 市定价
A11: 7 | B11: 012407000050000 | C11: 呼吸阻力检查费 | D11: 通过各种方式测量气道内单位流量所产生的压力差。 | E11: 所定价格涵盖设备准备、仪器测定、撤除、处理用物、出具报告等步骤所需的人力资源和基本物质资源消耗。 | F11: 甲 | G11: 次 | H11: 130 | J11: 市定价
A12: 8 | B12: 012407000060000 | C12: 运动心肺功能检查费 | D12: 通过在运动状态下监测心肺功能指标，判断心脏、肺脏和循环系统之间的相互作用与贮备能力。 | E12: 所定价格涵盖设备准备、仪器测定、撤除、处理用物、出具报告等步骤所需的人力资源和基本物质资源消耗。 | F12: 乙 | G12: 次 | H12: 260 | J12: 市定价
A13: 9 | B13: 012407000070000 | C13: 肺阻抗血流图检查费 | D13: 通过测量肺部血流的物理性质和速度，检查肺部是否存在阻力增加。 | E13: 所定价格涵盖设备准备、仪器测定、撤除、处理用物、出具报告等步骤所需的人力资源和基本物质资源消耗。 | F13: 甲 | G13: 次 | H13: 59 | J13: 市定价
A14: 10 | B14: 012407000080000 | C14: 肺电阻抗成像检查费 | D14: 通过检查呼吸周期中胸部电阻抗变化，检查肺部通气、血流等指标的变化。 | E14: 所定价格涵盖设备准备、仪器测定、撤除、处理用物、出具报告等步骤所需的人力资源和基本物质资源消耗。 | F14: 丙 | G14: 次 | H14: 160 | J14: 市定价
A15: 11 | B15: 012407000090000 | C15: 呼吸肌功能检查费 | D15: 通过测量气道压力和流量变化等指标评估患者呼吸肌力量。 | E15: 所定价格涵盖设备准备、仪器测定、撤除、处理用物、出具报告等步骤所需的人力资源和基本物质资源消耗。 | F15: 甲 | G15: 次 | H15: 52 | J15: 市定价
A16: 12 | B16: 012407000100000 | C16: 膈肌功能检查费 | D16: 通过电活动或压力测定，评估患者膈肌功能。 | E16: 所定价格涵盖设备准备、仪器测定、撤除、处理用物、出具报告等步骤所需的人力资源和基本物质资源消耗。 | F16: 甲 | G16: 次 | H16: 52 | J16: 市定价
A17: 13 | B17: 012407000110000 | C17: 睡眠呼吸监测费 | D17: 对睡眠状态下患者呼吸行为状态、呼吸功能进行监测，同步观察患者必要的生命体征及电生理指标。 | E17: 所定价格涵盖设备准备、仪器测定、撤除、处理用物、出具报告等步骤所需的人力资源和基本物质资源消耗。 | F17: 乙 | G17: 次 | H17: 300 | J17: 市定价 | K17: 不得同时收取心电、脑电、肌电、眼动、呼吸监测和血氧饱和度测定费用。
A18: 14 | B18: 012407000110001 | C18: 睡眠呼吸监测费-便携睡眠呼吸监测（减收） | F18: 乙 | G18: 次 | K18: 按主项的80%减收
A19: 15 | B19: 012407000120000 | C19: 经皮氧分压/二氧化碳监测费 | D19: 通过经皮测定方法，持续测定氧分压和/或二氧化碳。 | E19: 所定价格涵盖设备准备、仪器测定、撤除、处理用物等步骤所需的人力资源和基本物质资源消耗。 | F19: 乙 | G19: 小时 | H19: 50 | J19: 市定价 | K19: 从第2小时起每小时按项目价格的50%收取，每次最多按3小时计费。
A20: 16 | B20: 012407000130000 | C20: 支气管镜检查费（常规内镜） | D20: 通过支气管镜观察和诊断支气管、气管、气管壁或肺部等部位的疾病。 | E20: 所定价格涵盖设备准备、体位摆放、入镜、观察、图像采集、撤镜、处理用物、出具报告等步骤所需的人力资源和基本物质资源消耗。 | F20: 乙 | G20: 次 | H20: 297 | J20: 市定价
A21: 17 | B21: 012407000130001 | C21: 支气管镜检查费（常规内镜）-特殊光源检查（加收） | F21: 乙 | K21: 按主项的20%加收。“特殊光源”指：荧光、窄谱光源。
A22: 18 | B22: 012407000140000 | C22: 支气管镜检查费（超声内镜） | D22: 通过超声支气管镜观察和诊断支气管、气管、气管壁、气管腔外或肺部等部位的疾病。 | E22: 所定价格涵盖设备准备、体位摆放、入镜、观察、图像采集、撤镜、处理用物、出具报告等步骤所需的人力资源和基本物质资源消耗。 | F22: 乙 | G22: 次 | H22: 655 | J22: 市定价
A23: 19 | B23: 012407000150000 | C23: 支气管镜检查费（共聚焦激光显微内镜） | D23: 通过共聚焦激光显微支气管镜观察和诊断支气管、气管、气管壁或肺部等部位的疾病。 | E23: 所定价格涵盖设备准备、体位摆放、入镜、观察、图像采集、撤镜、处理用物、出具报告等步骤所需的人力资源和基本物质资源消耗。 | F23: 丙 | G23: 次 | H23: 695 | J23: 市定价
A24: 20 | B24: 012407000160000 | C24: 肺叶通气功能检查费 | D24: 通过无创方式置入球囊导管，评估支气管通气情况。 | E24: 所定价格涵盖设备准备、体位摆放、导管置入、球囊充气、数据采集、设备撤除、处理用物人力资源、设备运转成本与基本物质资源消耗。 | F24: 丙 | G24: 次 | H24: 594 | J24: 市定价
A25: 21 | B25: 012407000170000 | C25: 纵隔镜探查费 | D25: 通过纵隔镜观察和诊断纵隔、支气管、气管、胸腺、食管、淋巴结或肺部等部位的疾病。 | E25: 所定价格涵盖设备准备、体位摆放、切开、入镜、观察、撤镜、缝合、关闭、处理用物等手术步骤所需的人力资源和基本物质资源消耗。 | F25: 乙 | G25: 次 | H25: 520 | J25: 市定价
B26: 3106 | C26: 6.呼吸系统
A27: 22 | B27: 013106000010000 | C27: 体外膈肌起搏治疗费 | D27: 通过电刺激，诱导膈肌主动收缩。 | E27: 所定价格涵盖设备准备、连接电极、起搏治疗、撤除、处理用物等步骤所需的人力资源和基本物质资源消耗。 | F27: 甲 | G27: 次 | H27: 20 | J27: 市定价
A28: 23 | B28: 013106000020000 | C28: 一氧化氮吸入治疗费 | D28: 通过吸入一氧化氮进行治疗。 | E28: 所定价格涵盖设备准备、气体调节、吸入治疗、调节、监测、处理用物等步骤所需的人力资源、设备运转成本消耗与基本物质资源消耗。 | F28: 丙 | G28: 小时 | H28: 75 | J28: 市定价
A29: 24 | B29: 013106000030000 | C29: 雾化吸入治疗费 | D29: 通过各种方式吸入气雾或气溶胶颗粒进行治疗。 | E29: 所定价格涵盖设备准备、成分制备、连接、调节、吸入、观察、记录、处理用物等所需的人力资源和基本物质资源消耗。 | F29: 甲 | G29: 次 | H29: 26 | J29: 市定价 | K29: 多种药物确需分开雾化吸入的可分别计价收费。
A30: 25 | B30: 013106000040000 | C30: 全肺灌洗治疗费 | D30: 通过对单侧肺部进行全肺灌洗，清除大面积肺泡中的异物、分泌物和其他沉积物，不含气管插管费、内镜检查费。 | E30: 所定价格涵盖患者评估准备、灌洗、观察监测、撤除、处理用物等步骤所需的人力资源、设备运转成本消耗与基本物质资源消耗。 | F30: 乙 | G30: 单侧 | H30: 1292 | J30: 市定价
A31: 26 | B31: 013106000050000 | C31: 支气管肺泡灌洗费 | D31: 通过无创方式清除特定肺段肺泡内异物、分泌物和其他沉积物或采集样本，不含内镜检查费。 | E31: 所定价格涵盖设备准备、镜下治疗、处理用物等步骤所需的人力资源、设备运转成本消耗与基本物质资源消耗。 | F31: 乙 | G31: 次 | H31: 129 | J31: 市定价 | K31: “次”指每个肺段。
A32: 27 | B32: 013106000060000 | C32: 支气管镜治疗费（常规） | D32: 通过支气管镜进行滴药、冲洗、吸痰等常规治疗，不含内镜检查费。 | E32: 所定价格涵盖设备准备、镜下治疗、处理用物等步骤所需的人力资源、设备运转成本消耗与基本物质资源消耗。 | F32: 乙 | G32: 次 | H32: 166 | J32: 市定价
A33: 28 | B33: 013106000070000 | C33: 支气管镜治疗费（特殊） | D33: 通过支气管镜进行封堵、套圈、注药、球囊扩张，以及射频、微波、激光、凝固、冷冻、电凝、脉冲、光动力等各种特殊治疗，不含内镜检查费。 | E33: 所定价格涵盖设备准备、镜下治疗、处理用物等步骤所需的人力资源、设备运转成本消耗与基本物质资源消耗。 | F33: 乙 | G33: 次 | H33: 216 | J33: 市定价
B34: 3307 | C34: 7.呼吸系统
A35: 29 | B35: 013307000010000 | C35: 气道支架置入费 | D35: 通过无创方式置入气道支架，不含内镜检查费。 | E35: 所定价格涵盖患者评估准备、导丝引导、支架置入、必要时球囊扩张、处理用物等步骤所需的人力资源、设备运转成本消耗与基本物质资源消耗。 | F35: 乙 | G35: 次 | H35: 2400 | I35: 2160 | J35: 市定价
A36: 30 | B36: 013307000010001 | C36: 气道支架置入费-儿童（加收） | F36: 乙 | G36: 次 | K36: 6周岁及以下儿童按主项的30%加收
A37: 31 | B37: 013307000020000 | C37: 气道支架取出费 | D37: 通过无创方式取出气道支架，不含内镜检查费。 | E37: 所定价格涵盖患者评估准备、支架取出、处理用物等步骤所需的人力资源、设备运转成本消耗与基本物质资源消耗。 | F37: 乙 | G37: 次 | H37: 2400 | I37: 2160 | J37: 市定价
A38: 32 | B38: 013307000020001 | C38: 气道支架取出费-儿童（加收） | F38: 乙 | G38: 次 | K38: 6周岁及以下儿童按主项的30%加收
A39: 33 | B39: 013307000030000 | C39: 无创气管食管瘘修补费 | D39: 通过无创方式对气管和食管之间的异常连接进行修补，不含内镜检查费。 | E39: 所定价格涵盖设备准备、体位摆放、观察、气管食管瘘修补、撤镜、处理用物等步骤所需的人力资源、设备运转成本消耗与基本物质资源消耗。 | F39: 乙 | G39: 次 | H39: 2000 | I39: 1800 | J39: 市定价
A40: 34 | B40: 013307000030001 | C40: 无创气管食管瘘修补费-儿童（加收） | F40: 乙 | G40: 次 | K40: 6周岁及以下儿童按主项的30%加收
A41: 35 | B41: 013307000040000 | C41: 无创气管病变切除费 | D41: 通过无创方式对气管病变切除，不含内镜检查费。 | E41: 所定价格涵盖设备准备、体位摆放、观察、肿物切除、撤镜、处理用物等步骤所需的人力资源、设备运转成本消耗与基本物质资源消耗。 | F41: 乙 | G41: 次 | H41: 2000 | I41: 1800 | J41: 市定价
A42: 36 | B42: 013307000040001 | C42: 无创气管病变切除费-儿童（加收） | F42: 乙 | G42: 次 | K42: 6周岁及以下儿童按主项的30%加收
A43: 37 | B43: 013307000050000 | C43: 无创肺减容费 | D43: 通过无创方式减少肺容积，包括但不限于置入活瓣、热蒸汽消融等方式，不含内镜检查费。 | E43: 所定价格涵盖设备准备、患者准备、镜下置入活瓣或热蒸汽消融、处理用物等步骤所需的人力资源、设备运转成本消耗与基本物质资源消耗。 | F43: 乙 | G43: 次 | H43: 1900 | I43: 1710 | J43: 市定价
A44: 38 | B44: 013307000050001 | C44: 无创肺减容费-儿童（加收） | F44: 乙 | G44: 次 | K44: 6周岁及以下儿童按主项的30%加收
A45: 39 | B45: 013307000060000 | C45: 无创气管异物取出费 | D45: 通过无创方式取出气管异物，不含内镜检查费。 | E45: 所定价格涵盖设备准备、体位摆放、观察、异物取出、撤镜、处理用物等步骤所需的人力资源、设备运转成本消耗与基本物质资源消耗。 | F45: 乙 | G45: 次 | H45: 500 | I45: 450 | J45: 市定价
A46: 40 | B46: 013307000060001 | C46: 无创气管异物取出费-儿童（加收） | F46: 乙 | G46: 次 | K46: 6周岁及以下儿童按主项的30%加收
A47: 41 | B47: 013307000070000 | C47: 气管成形费 | D47: 通过手术切除部分气管，并行气管重建或修复。 | E47: 所定价格涵盖手术计划、术区准备、消毒、切除、重建、缝合、处理用物等步骤所需的人力资源和基本物质资源消耗。 | F47: 甲 | G47: 次 | H47: 5300 | I47: 4770 | J47: 市定价
A48: 42 | B48: 013307000070001 | C48: 气管成形费-儿童（加收） | F48: 甲 | G48: 次 | K48: 6周岁及以下儿童按主项的30%加收
A49: 43 | B49: 013307000080000 | C49: 气管隆突成形费 | D49: 通过手术切除部分气管隆突，并行气管隆突重建。 | E49: 所定价格涵盖手术计划、术区准备、消毒、切除、重建、缝合、处理用物等步骤所需的人力资源和基本物质资源消耗。 | F49: 甲 | G49: 次 | H49: 5300 | I49: 4770 | J49: 市定价
A50: 44 | B50: 013307000080001 | C50: 气管隆突成形费-儿童（加收） | F50: 甲 | G50: 次 | K50: 6周岁及以下儿童按主项的30%加收
A51: 45 | B51: 013307000090000 | C51: 气管食管瘘修补费（常规） | D51: 通过手术修补气管食管瘘口。 | E51: 所定价格涵盖手术计划、术区准备、消毒、修补、缝合、处理用物等步骤所需的人力资源和基本物质资源消耗。 | F51: 甲 | G51: 次 | H51: 2300 | I51: 2070 | J51: 市定价
A52: 46 | B52: 013307000090001 | C52: 气管食管瘘修补费（常规）-儿童（加收） | F52: 甲 | G52: 次 | K52: 6周岁及以下儿童按主项的30%加收
A53: 47 | B53: 013307000100000 | C53: 气管食管瘘修补费（复杂） | D53: 通过手术修补复杂情况的气管食管瘘口。 | E53: 所定价格涵盖手术计划、术区准备、消毒、修补、缝合、处理用物等步骤所需的人力资源和基本物质资源消耗。 | F53: 甲 | G53: 次 | H53: 3000 | I53: 2700 | J53: 市定价 | K53: 本项目中的“复杂”指：术中进行大网膜填充、皮瓣填充的情况。
A54: 48 | B54: 013307000100001 | C54: 气管食管瘘修补费（复杂）-儿童（加收） | F54: 甲 | G54: 次 | K54: 6周岁及以下儿童按主项的30%加收
A55: 49 | B55: 013307000110000 | C55: 气管病变切除费 | D55: 通过手术切除气管病变。 | E55: 所定价格涵盖手术计划、术区准备、消毒、切开、切除、缝合、处理用物等步骤所需的人力资源和基本物质资源消耗。 | F55: 甲 | G55: 次 | H55: 2000 | I55: 1800 | J55: 市定价
A56: 50 | B56: 013307000110001 | C56: 气管病变切除费-儿童（加收） | F56: 甲 | G56: 次 | K56: 6周岁及以下儿童按主项的30%加收
A57: 51 | B57: 013307000120000 | C57: 气管隆突病变切除费 | D57: 通过手术切除气管隆凸病变。 | E57: 所定价格涵盖手术计划、术区准备、消毒、切开、切除、缝合、处理用物等步骤所需的人力资源和基本物质资源消耗。 | F57: 甲 | G57: 次 | H57: 2000 | I57: 1800 | J57: 市定价
A58: 52 | B58: 013307000120001 | C58: 气管隆突病变切除费-儿童（加收） | F58: 甲 | G58: 次 | K58: 6周岁及以下儿童按主项的30%加收
A59: 53 | B59: 013307000130000 | C59: 胸腔探查费 | D59: 通过手术探查胸腔，含止血。 | E59: 所定价格涵盖手术计划、术区准备、消毒、切开、探查、缝合、处理用物，必要时止血等手术步骤的人力资源和基本物质资源消耗。 | F59: 乙 | G59: 次 | H59: 1700 | I59: 1530 | J59: 市定价 | K59: 不与同部位其他手术同时收取。
A60: 54 | B60: 013307000130001 | C60: 胸腔探查费-儿童（加收） | F60: 乙 | G60: 次 | K60: 6周岁及以下儿童按主项的30%加收
A61: 55 | B61: 013307000140000 | C61: 胸腔病变切除费 | D61: 通过手术切除胸腔病变。 | E61: 所定价格涵盖手术计划、术区准备、消毒、切除、缝合、处理用物等手术步骤的人力资源和基本物质资源消耗。 | F61: 乙 | G61: 次 | H61: 3700 | I61: 3330 | J61: 市定价 | K61: 本项目中的“胸腔”指：膈肌、胸膜。
A62: 56 | B62: 013307000140001 | C62: 胸腔病变切除费-儿童（加收） | F62: 乙 | G62: 次 | K62: 6周岁及以下儿童按主项的30%加收
A63: 57 | B63: 013307000150000 | C63: 非解剖性肺部分切除费 | D63: 不按照肺叶或肺段的解剖结构，通过手术切除单侧局部肺组织。 | E63: 所定价格涵盖手术计划、术区准备、消毒、切开、切除、缝合、处理用物等步骤所需的人力资源和基本物质资源消耗。 | F63: 乙 | G63: 单侧 | H63: 4200 | I63: 3780 | J63: 市定价
A64: 58 | B64: 013307000150001 | C64: 非解剖性肺部分切除费-儿童（加收） | F64: 乙 | G64: 单侧 | K64: 6周岁及以下儿童按主项的30%加收
A65: 59 | B65: 013307000160000 | C65: 肺叶切除费（常规） | D65: 通过手术切除单侧肺叶。 | E65: 所定价格涵盖手术计划、术区准备、消毒、切开、切除、缝合、处理用物等步骤所需的人力资源和基本物质资源消耗。 | F65: 甲 | G65: 单侧 | H65: 6000 | I65: 5400 | J65: 市定价
A66: 60 | B66: 013307000160001 | C66: 肺叶切除费（常规）-儿童（加收） | F66: 甲 | G66: 单侧 | K66: 6周岁及以下儿童按主项的30%加收
A67: 61 | B67: 013307000170000 | C67: 肺叶切除费（复杂） | D67: 通过手术切除复杂情况单侧肺叶。 | E67: 所定价格涵盖手术计划、术区准备、消毒、切开、切除、缝合、处理用物等步骤所需的人力资源和基本物质资源消耗。 | F67: 甲 | G67: 单侧 | H67: 7800 | I67: 7020 | J67: 市定价 | K67: 本项目中的“复杂”指：袖状肺叶切除、复合肺叶切除、术中进行血管成形的情况。
A68: 62 | B68: 013307000170001 | C68: 肺叶切除费（复杂）-儿童（加收） | F68: 甲 | G68: 单侧 | K68: 6周岁及以下儿童按主项的30%加收
A69: 63 | B69: 013307000180000 | C69: 肺段切除费（常规） | D69: 通过手术切除单侧肺段。 | E69: 所定价格涵盖手术计划、术区准备、消毒、切开、切除、缝合、处理用物等步骤所需的人力资源和基本物质资源消耗。 | F69: 甲 | G69: 单侧 | H69: 6700 | I69: 6030 | J69: 市定价
A70: 64 | B70: 013307000180001 | C70: 肺段切除费（常规）-儿童（加收） | F70: 甲 | G70: 单侧 | K70: 6周岁及以下儿童按主项的30%加收
A71: 65 | B71: 013307000190000 | C71: 肺段切除费（复杂） | D71: 通过手术切除复杂情况单侧肺段。 | E71: 所定价格涵盖手术计划、术区准备、消毒、切开、切除、缝合、处理用物等步骤所需的人力资源和基本物质资源消耗。 | F71: 甲 | G71: 单侧 | H71: 7800 | I71: 7020 | J71: 市定价 | K71: 本项目中的“复杂”指：上叶前段切除、下叶基底段切除、联合肺段切除、亚段支气管切除的情况。
A72: 66 | B72: 013307000190001 | C72: 肺段切除费（复杂）-儿童（加收） | F72: 甲 | G72: 单侧 | K72: 6周岁及以下儿童按主项的30%加收
A73: 67 | B73: 013307000200000 | C73: 全肺切除费（常规） | D73: 通过手术切除全肺。 | E73: 所定价格涵盖手术计划、术区准备、消毒、切开、切除、缝合、处理用物等步骤所需的人力资源和基本物质资源消耗。 | F73: 甲 | G73: 单侧 | H73: 6200 | I73: 5580 | J73: 市定价
A74: 68 | B74: 013307000200001 | C74: 全肺切除费（常规）-儿童（加收） | F74: 甲 | G74: 单侧 | K74: 6周岁及以下儿童按主项的30%加收
A75: 69 | B75: 013307000210000 | C75: 全肺切除费（复杂） | D75: 通过手术切除复杂情况全肺。 | E75: 所定价格涵盖手术计划、术区准备、消毒、切开、切除、缝合、处理用物等步骤所需的人力资源和基本物质资源消耗。 | F75: 甲 | G75: 单侧 | H75: 6700 | I75: 6030 | J75: 市定价 | K75: 本项目中的“复杂”指：心包内切除、部分心房切除、胸膜外全肺切除的情况。
A76: 70 | B76: 013307000210001 | C76: 全肺切除费（复杂）-儿童（加收） | F76: 甲 | G76: 单侧 | K76: 6周岁及以下儿童按主项的30%加收
A77: 71 | B77: 013307000220000 | C77: 肺修补费 | D77: 通过手术修补肺组织缺损。 | E77: 所定价格涵盖手术计划、术区准备、消毒、切开、修补、缝合、处理用物等步骤所需的人力资源和基本物质资源消耗。 | F77: 乙 | G77: 单侧 | H77: 4600 | I77: 4140 | J77: 市定价
A78: 72 | B78: 013307000220001 | C78: 肺修补费-儿童（加收） | F78: 乙 | G78: 单侧 | K78: 6周岁及以下儿童按主项的30%加收
A79: 73 | B79: 013307000230000 | C79: 胸腺病变切除费 | D79: 通过手术切除胸腺病变。 | E79: 所定价格涵盖手术计划、术区准备、消毒、切开、切除、缝合、处理用物等步骤所需的人力资源和基本物质资源消耗。 | F79: 甲 | G79: 次 | H79: 5000 | I79: 4500 | J79: 市定价
A80: 74 | B80: 013307000230001 | C80: 胸腺病变切除费-儿童（加收） | F80: 甲 | G80: 次 | K80: 6周岁及以下儿童按主项的30%加收
A81: 75 | B81: 013307000240000 | C81: 胸壁病变切除费 | D81: 通过手术切除胸壁结核、术后瘘、胸壁肿瘤等病变。 | E81: 所定价格涵盖手术计划、术区准备、消毒、切开、切除、缝合、处理用物，必要时修复等步骤所需的人力资源和基本物质资源消耗。 | F81: 甲 | G81: 次 | H81: 2900 | I81: 2610 | J81: 市定价
A82: 76 | B82: 013307000240001 | C82: 胸壁病变切除费-儿童（加收） | F82: 甲 | G82: 次 | K82: 6周岁及以下儿童按主项的30%加收
A83: 77 | B83: 013307000250000 | C83: 胸壁缺损修复费（常规） | D83: 通过手术修复胸壁缺损。 | E83: 所定价格涵盖手术计划、术区准备、消毒、切开、修复、缝合、处理用物，必要时固定等步骤所需的人力资源和基本物质资源消耗。 | F83: 甲 | G83: 次 | H83: 1800 | I83: 1620 | J83: 市定价
A84: 78 | B84: 013307000250001 | C84: 胸壁缺损修复费（常规）-儿童（加收） | F84: 甲 | G84: 次 | K84: 6周岁及以下儿童按主项的30%加收
A85: 79 | B85: 013307000260000 | C85: 胸壁缺损修复费（复杂） | D85: 通过手术修复复杂胸壁缺损。 | E85: 所定价格涵盖手术计划、术区准备、消毒、切开、修复、缝合、处理用物，必要时固定等步骤所需的人力资源和基本物质资源消耗。 | F85: 甲 | G85: 次 | H85: 2300 | I85: 2070 | J85: 市定价 | K85: 本项目中的“复杂”指：胸壁穿透伤修复、术中进行肌皮瓣填充的情况。
A86: 80 | B86: 013307000260001 | C86: 胸壁缺损修复费（复杂）-儿童（加收） | F86: 甲 | G86: 次 | K86: 6周岁及以下儿童按主项的30%加收
A87: 81 | B87: 013307000270000 | C87: 胸廓成形费（常规） | D87: 通过手术重建胸廓。 | E87: 所定价格涵盖手术计划、术区准备、消毒、切开、成形、缝合、处理用物等步骤所需的人力资源和基本物质资源消耗。 | F87: 甲 | G87: 次 | H87: 2900 | I87: 2610 | J87: 市定价 | K87: 不与“胸壁缺损修复费”同时收取。
A88: 82 | B88: 013307000270001 | C88: 胸廓成形费（常规）-儿童（加收） | F88: 甲 | G88: 次 | K88: 6周岁及以下儿童按主项的30%加收
A89: 83 | B89: 013307000280000 | C89: 胸廓成形费（复杂） | D89: 通过手术重建复杂情况胸廓。 | E89: 所定价格涵盖手术计划、术区准备、消毒、切开、成形、缝合、处理用物等步骤所需的人力资源和基本物质资源消耗。 | F89: 乙 | G89: 次 | H89: 3700 | I89: 3330 | J89: 市定价 | K89: 1、本项目中的“复杂”指：先天性或后天性胸廓畸形矫正的情况。2、不与“胸壁缺损修复费”同时收取。
A90: 84 | B90: 013307000280001 | C90: 胸廓成形费（复杂）-儿童（加收） | F90: 乙 | G90: 次 | K90: 6周岁及以下儿童按主项的30%加收
A91: 85 | B91: 013307000290000 | C91: 脓胸廓清费（常规） | D91: 通过手术清除脓胸并引流。 | E91: 所定价格涵盖手术计划、术区准备、消毒、切开、清除引流、缝合、处理用物等步骤所需的人力资源和基本物质资源消耗。 | F91: 甲 | G91: 次 | H91: 2800 | I91: 2520 | J91: 市定价
A92: 86 | B92: 013307000290001 | C92: 脓胸廓清费（常规）-儿童（加收） | F92: 甲 | G92: 次 | K92: 6周岁及以下儿童按主项的30%加收
A93: 87 | B93: 013307000300000 | C93: 脓胸廓清费（复杂） | D93: 通过手术清除复杂情况脓胸并引流。 | E93: 所定价格涵盖手术计划、术区准备、消毒、切开、脓胸清除引流、缝合、处理用物等步骤所需的人力资源和基本物质资源消耗。 | F93: 甲 | G93: 次 | H93: 4400 | I93: 3960 | J93: 市定价 | K93: 本项目中的“复杂”指：术中进行大网膜填充、皮瓣填充的情况。
A94: 88 | B94: 013307000300001 | C94: 脓胸廓清费（复杂）-儿童（加收） | F94: 甲 | G94: 次 | K94: 6周岁及以下儿童按主项的30%加收
A95: 89 | B95: 013307000310000 | C95: 胸膜剥脱费 | D95: 通过手术剥脱胸膜。 | E95: 所定价格涵盖手术计划、术区准备、消毒、切开、剥脱、缝合、处理用物等步骤所需的人力资源和基本物质资源消耗。 | F95: 甲 | G95: 次 | H95: 2700 | I95: 2430 | J95: 市定价
A96: 90 | B96: 013307000310001 | C96: 胸膜剥脱费-儿童（加收） | F96: 甲 | G96: 次 | K96: 6周岁及以下儿童按主项的30%加收
A97: 91 | B97: 013307000320000 | C97: 胸膜固定费 | D97: 通过手术固定脏层胸膜与壁层胸膜。 | E97: 所定价格涵盖手术计划、术区准备、消毒、切开，固定、缝合、处理用物等步骤所需的人力资源和基本物质资源消耗。 | F97: 乙 | G97: 次 | H97: 2600 | I97: 2340 | J97: 市定价
A98: 92 | B98: 013307000320001 | C98: 胸膜固定费-儿童（加收） | F98: 乙 | G98: 次 | K98: 6周岁及以下儿童按主项的30%加收
A99: 93 | B99: 013307000330000 | C99: 胸内异物清除费 | D99: 通过手术清除胸内异物。 | E99: 所定价格涵盖手术计划、术区准备、消毒、切开、异物清除、缝合、处理用物等步骤所需的人力资源和基本物质资源消耗。 | F99: 乙 | G99: 次 | H99: 3200 | I99: 2880 | J99: 市定价
A100: 94 | B100: 013307000330001 | C100: 胸内异物清除费-儿童（加收） | F100: 乙 | G100: 次 | K100: 6周岁及以下儿童按主项的30%加收
A101: 95 | B101: 013307000340000 | C101: 纵隔病变切除费（常规） | D101: 通过手术切除纵隔病变。 | E101: 所定价格涵盖手术计划、术区准备、消毒、切开、切除、缝合、处理用物等步骤所需的人力资源和基本物质资源消耗。 | F101: 甲 | G101: 次 | H101: 5400 | I101: 4860 | J101: 市定价
A102: 96 | B102: 013307000340001 | C102: 纵隔病变切除费（常规）-儿童（加收） | F102: 甲 | G102: 次 | K102: 6周岁及以下儿童按主项的30%加收
A103: 97 | B103: 013307000350000 | C103: 纵隔病变切除费（复杂） | D103: 通过手术切除复杂情况纵隔病变。 | E103: 所定价格涵盖手术计划、术区准备、消毒、切开、切除、缝合、处理用物等步骤所需的人力资源和基本物质资源消耗。 | F103: 甲 | G103: 次 | H103: 6800 | I103: 6120 | J103: 市定价 | K103: 本项目中的“复杂”指：含颈部入路手术、术中进行血管成形的情况。
A104: 98 | B104: 013307000350001 | C104: 纵隔病变切除费（复杂）-儿童（加收） | F104: 甲 | G104: 次 | K104: 6周岁及以下儿童按主项的30%加收
A105: 99 | B105: 013307000360000 | C105: 纵隔气肿切开减压费 | D105: 通过手术切开纵隔气肿进行减压。 | E105: 所定价格涵盖手术计划、术区准备、消毒、切开、缝合、处理用物等步骤所需的人力资源和基本物质资源消耗。 | F105: 甲 | G105: 次 | H105: 1800 | I105: 1620 | J105: 市定价
A106: 100 | B106: 013307000360001 | C106: 纵隔气肿切开减压费-儿童（加收） | F106: 甲 | G106: 次 | K106: 6周岁及以下儿童按主项的30%加收
A107: 101 | B107: 013307000370000 | C107: 纵隔感染清创引流费 | D107: 通过手术清除纵隔内感染或坏死组织并进行引流。 | E107: 所定价格涵盖手术计划、术区准备、消毒、切开、清创、引流、缝合、处理用物等步骤所需的人力资源和基本物质资源消耗。 | F107: 甲 | G107: 次 | H107: 3200 | I107: 2880 | J107: 市定价 | K107: 不与“胸腔粘连松解费”同时收取。
A108: 102 | B108: 013307000370001 | C108: 纵隔感染清创引流费-儿童（加收） | F108: 甲 | G108: 次 | K108: 6周岁及以下儿童按主项的30%加收
A109: 103 | B109: 013307000380000 | C109: 膈肌修补费 | D109: 通过手术修补膈肌。 | E109: 所定价格涵盖手术计划、术区准备、消毒、切开、修补、缝合、处理用物等步骤所需的人力资源和基本物质资源消耗。 | F109: 甲 | G109: 次 | H109: 2600 | I109: 2340 | J109: 市定价
A110: 104 | B110: 013307000380001 | C110: 膈肌修补费-儿童（加收） | F110: 甲 | G110: 次 | K110: 6周岁及以下儿童按主项的30%加收
A111: 105 | B111: 013307000390000 | C111: 膈肌折叠费 | D111: 通过手术折叠膈肌。 | E111: 所定价格涵盖手术计划、术区准备、消毒、切开、膈肌折叠、缝合、处理用物等步骤所需的人力资源和基本物质资源消耗。 | F111: 乙 | G111: 次 | H111: 3200 | I111: 2880 | J111: 市定价
A112: 106 | B112: 013307000390001 | C112: 膈肌折叠费-儿童（加收） | F112: 乙 | G112: 次 | K112: 6周岁及以下儿童按主项的30%加收
A113: 107 | B113: 013307000400000 | C113: 气管异物取出费 | D113: 通过手术取出气管异物。 | E113: 所定价格涵盖手术计划、术区准备、消毒、切开、异物取出、缝合、处理用物等步骤所需的人力资源和基本物质资源消耗。 | F113: 甲 | G113: 次 | H113: 2000 | I113: 1800 | J113: 市定价
A114: 108 | B114: 013307000400001 | C114: 气管异物取出费-儿童（加收） | F114: 甲 | G114: 次 | K114: 6周岁及以下儿童按主项的30%加收
A115: 109 | B115: 013307000410000 | C115: 肺空洞药物填充费 | D115: 通过手术对肺空洞填充药物。 | E115: 所定价格涵盖手术计划、术区准备、消毒、切开、药物填充、缝合、处理用物等步骤所需的人力资源和基本物质资源消耗。 | F115: 丙 | G115: 次 | H115: 4600 | I115: 4140 | J115: 市定价
A116: 110 | B116: 013307000410001 | C116: 肺空洞药物填充费-儿童（加收） | F116: 丙 | G116: 次 | K116: 6周岁及以下儿童按主项的30%加收
A117: 111 | B117: 013307000420000 | C117: 胸腔淋巴清扫费 | D117: 通过手术清扫胸腔淋巴结。 | E117: 所定价格涵盖手术计划、术区准备、消毒、切开、分离、切除、处理用物等步骤所需的人力资源和基本物质资源消耗。 | F117: 乙 | G117: 次 | H117: 1700 | I117: 1530 | J117: 市定价 | K117: 本项目中的“胸腔淋巴结”指：纵隔、肺门、肺内淋巴结。
A118: 112 | B118: 013307000420001 | C118: 胸腔淋巴清扫费-儿童（加收） | F118: 乙 | G118: 次 | K118: 6周岁及以下儿童按主项的30%加收
A119: 113 | B119: 013307000420100 | C119: 胸腔淋巴清扫费-胸腔淋巴结采样（扩展） | F119: 乙 | G119: 次 | H119: 1700 | I119: 1530 | J119: 市定价
A120: 114 | B120: 013307000430000 | C120: 胸腔粘连松解费 | D120: 通过手术分离胸腔粘连组织。 | E120: 所定价格涵盖手术计划、术区准备、消毒、探查、分离松解、缝合、处理用物等步骤所需的人力资源和基本物质资源消耗。 | F120: 甲 | G120: 次 | H120: 1800 | I120: 1620 | J120: 市定价
A121: 115 | B121: 013307000430001 | C121: 胸腔粘连松解费-儿童（加收） | F121: 甲 | G121: 次 | K121: 6周岁及以下儿童按主项的30%加收
A122: 116 | B122: 013307000440000 | C122: 胸交感神经链切除费 | D122: 通过手术切断胸交感神经链。 | E122: 所定价格涵盖手术计划、术区准备、消毒、切开、切除、缝合、处理用物等步骤所需的人力资源和基本物质资源消耗。 | F122: 乙 | G122: 次 | H122: 3900 | I122: 3510 | J122: 市定价
A123: 117 | B123: 013307000440001 | C123: 胸交感神经链切除费-儿童（加收） | F123: 乙 | G123: 次 | K123: 6周岁及以下儿童按主项的30%加收
